Organisation Name,Organisation Code,Unique Ref No,Effective Date,Directorate where expenditure incurred,Supplier Name,Payment Date,Net Amount,Purpose of Spend,Procurement Classification (Higher Level),Procurement Classification (Lower Level),Capital/Revenue
Walsall Council,http://opendatacommunities.org/id/metropolitan-district-council/walsall,WC113-01,29/02/2020,Capital Financing,11KBW,05/02/2020,672.00,63000-PROFESSIONAL FEES AND SERVICES,TREASURY MANAGEMENT COSTS,Supplies & Services,Revenue
Walsall Council,http://opendatacommunities.org/id/metropolitan-district-council/walsall,WC113-02,29/02/2020,Resources and Transformation,11KBW,10/02/2020,"7,050.00",63116-EXTERNAL BARRISTERS-SERVICES-FEES,LAW LIBRARY,Supplies & Services,Revenue
Walsall Council,http://opendatacommunities.org/id/metropolitan-district-council/walsall,WC113-03,29/02/2020,Childrens,247 CARS (WILLENHALL) LIMITED,03/02/2020,-949.60,52000-WITH DRIVER-HIRE OF VEHICLES,HOME TO SCHOOL TRANSPORT,Transport,Revenue
Walsall Council,http://opendatacommunities.org/id/metropolitan-district-council/walsall,WC113-04,29/02/2020,Childrens,247 CARS (WILLENHALL) LIMITED,03/02/2020,-420.00,52000-WITH DRIVER-HIRE OF VEHICLES,HOME TO SCHOOL TRANSPORT,Transport,Revenue
Walsall Council,http://opendatacommunities.org/id/metropolitan-district-council/walsall,WC113-05,29/02/2020,Childrens,247 CARS (WILLENHALL) LIMITED,03/02/2020,292.40,52000-WITH DRIVER-HIRE OF VEHICLES,HOME TO SCHOOL TRANSPORT,Transport,Revenue
Walsall Council,http://opendatacommunities.org/id/metropolitan-district-council/walsall,WC113-06,29/02/2020,Childrens,247 CARS (WILLENHALL) LIMITED,27/02/2020,292.40,52000-WITH DRIVER-HIRE OF VEHICLES,HOME TO SCHOOL TRANSPORT,Transport,Revenue
Walsall Council,http://opendatacommunities.org/id/metropolitan-district-council/walsall,WC113-07,29/02/2020,Childrens,247 CARS (WILLENHALL) LIMITED,03/02/2020,438.40,52000-WITH DRIVER-HIRE OF VEHICLES,HOME TO SCHOOL TRANSPORT,Transport,Revenue
Walsall Council,http://opendatacommunities.org/id/metropolitan-district-council/walsall,WC113-08,29/02/2020,Childrens,247 CARS (WILLENHALL) LIMITED,03/02/2020,633.20,52000-WITH DRIVER-HIRE OF VEHICLES,HOME TO SCHOOL TRANSPORT,Transport,Revenue
Walsall Council,http://opendatacommunities.org/id/metropolitan-district-council/walsall,WC113-09,29/02/2020,Childrens,247 CARS (WILLENHALL) LIMITED,03/02/2020,633.20,52000-WITH DRIVER-HIRE OF VEHICLES,HOME TO SCHOOL TRANSPORT,Transport,Revenue
Walsall Council,http://opendatacommunities.org/id/metropolitan-district-council/walsall,WC113-10,29/02/2020,Childrens,247 CARS (WILLENHALL) LIMITED,03/02/2020,633.20,52000-WITH DRIVER-HIRE OF VEHICLES,HOME TO SCHOOL TRANSPORT,Transport,Revenue
Walsall Council,http://opendatacommunities.org/id/metropolitan-district-council/walsall,WC113-11,29/02/2020,Childrens,247 CARS (WILLENHALL) LIMITED,27/02/2020,633.20,52000-WITH DRIVER-HIRE OF VEHICLES,HOME TO SCHOOL TRANSPORT,Transport,Revenue
Walsall Council,http://opendatacommunities.org/id/metropolitan-district-council/walsall,WC113-12,29/02/2020,Childrens,247 CARS (WILLENHALL) LIMITED,27/02/2020,633.20,52000-WITH DRIVER-HIRE OF VEHICLES,HOME TO SCHOOL TRANSPORT,Transport,Revenue
Walsall Council,http://opendatacommunities.org/id/metropolitan-district-council/walsall,WC113-13,29/02/2020,Childrens,247 CARS (WILLENHALL) LIMITED,27/02/2020,633.20,52000-WITH DRIVER-HIRE OF VEHICLES,HOME TO SCHOOL TRANSPORT,Transport,Revenue
Walsall Council,http://opendatacommunities.org/id/metropolitan-district-council/walsall,WC113-14,29/02/2020,Childrens,247 CARS (WILLENHALL) LIMITED,27/02/2020,"1,169.20",52000-WITH DRIVER-HIRE OF VEHICLES,HOME TO SCHOOL TRANSPORT,Transport,Revenue
Walsall Council,http://opendatacommunities.org/id/metropolitan-district-council/walsall,WC113-15,29/02/2020,Childrens,2ENGAGE PERFORMING ARTS CIC,25/02/2020,325.51,63000-PROFESSIONAL FEES AND SERVICES,VIRTUAL SCHOOL CENTRAL PUPIL PREMIUM,Supplies & Services,Revenue
Walsall Council,http://opendatacommunities.org/id/metropolitan-district-council/walsall,WC113-16,29/02/2020,Resources and Transformation,39 ESSEX STREET LLP PFA,07/02/2020,"2,700.00",73014-LEGAL FEES-PRIV CONTRACTOR FEES,LAW LIBRARY,Third Party Payments,Revenue
Walsall Council,http://opendatacommunities.org/id/metropolitan-district-council/walsall,WC113-17,29/02/2020,Resources and Transformation,4 SIGHT EYECARE CENTRE 002,12/02/2020,300.00,63000-PROFESSIONAL FEES AND SERVICES,HR DIRECT SERVICES,Supplies & Services,Revenue
Walsall Council,http://opendatacommunities.org/id/metropolitan-district-council/walsall,WC113-18,29/02/2020,Adult Social Care,5 CARE SERVICES LTD,28/02/2020,257.02,73507-DOMICILIARY CARE,SENSORY SUPPORT,Third Party Payments,Revenue
Walsall Council,http://opendatacommunities.org/id/metropolitan-district-council/walsall,WC113-19,29/02/2020,Adult Social Care,5 CARE SERVICES LTD,25/02/2020,265.29,73025-PROFESSIONAL SERVICES-PRIV CONTRACTOR & OTHER AGENCIES,INTERMEDIATE CARE SERVICE,Third Party Payments,Revenue
Walsall Council,http://opendatacommunities.org/id/metropolitan-district-council/walsall,WC113-20,29/02/2020,Adult Social Care,5 CARE SERVICES LTD,28/02/2020,271.09,73507-DOMICILIARY CARE,PHYSICAL SUPPORT,Third Party Payments,Revenue
Walsall Council,http://opendatacommunities.org/id/metropolitan-district-council/walsall,WC113-21,29/02/2020,Adult Social Care,5 CARE SERVICES LTD,28/02/2020,316.61,73507-DOMICILIARY CARE,MENTAL HEALTH SUPPORT,Third Party Payments,Revenue
Walsall Council,http://opendatacommunities.org/id/metropolitan-district-council/walsall,WC113-22,29/02/2020,Adult Social Care,5 CARE SERVICES LTD,28/02/2020,319.85,73507-DOMICILIARY CARE,PHYSICAL SUPPORT,Third Party Payments,Revenue
Walsall Council,http://opendatacommunities.org/id/metropolitan-district-council/walsall,WC113-23,29/02/2020,Adult Social Care,5 CARE SERVICES LTD,28/02/2020,332.90,73507-DOMICILIARY CARE,SOCIAL SUPPORT,Third Party Payments,Revenue
Walsall Council,http://opendatacommunities.org/id/metropolitan-district-council/walsall,WC113-24,29/02/2020,Adult Social Care,5 CARE SERVICES LTD,28/02/2020,337.88,73507-DOMICILIARY CARE,PHYSICAL SUPPORT,Third Party Payments,Revenue
Walsall Council,http://opendatacommunities.org/id/metropolitan-district-council/walsall,WC113-25,29/02/2020,Adult Social Care,5 CARE SERVICES LTD,11/02/2020,351.28,73025-PROFESSIONAL SERVICES-PRIV CONTRACTOR & OTHER AGENCIES,INTERMEDIATE CARE SERVICE,Third Party Payments,Revenue
Walsall Council,http://opendatacommunities.org/id/metropolitan-district-council/walsall,WC113-26,29/02/2020,Adult Social Care,5 CARE SERVICES LTD,28/02/2020,376.51,73507-DOMICILIARY CARE,PHYSICAL SUPPORT,Third Party Payments,Revenue
Walsall Council,http://opendatacommunities.org/id/metropolitan-district-council/walsall,WC113-27,29/02/2020,Adult Social Care,5 CARE SERVICES LTD,28/02/2020,382.70,73507-DOMICILIARY CARE,PHYSICAL SUPPORT,Third Party Payments,Revenue
Walsall Council,http://opendatacommunities.org/id/metropolitan-district-council/walsall,WC113-28,29/02/2020,Adult Social Care,5 CARE SERVICES LTD,28/02/2020,387.42,73507-DOMICILIARY CARE,PHYSICAL SUPPORT,Third Party Payments,Revenue
Walsall Council,http://opendatacommunities.org/id/metropolitan-district-council/walsall,WC113-29,29/02/2020,Adult Social Care,5 CARE SERVICES LTD,28/02/2020,391.62,73507-DOMICILIARY CARE,PHYSICAL SUPPORT,Third Party Payments,Revenue
Walsall Council,http://opendatacommunities.org/id/metropolitan-district-council/walsall,WC113-30,29/02/2020,Adult Social Care,5 CARE SERVICES LTD,28/02/2020,397.52,73507-DOMICILIARY CARE,PHYSICAL SUPPORT,Third Party Payments,Revenue
Walsall Council,http://opendatacommunities.org/id/metropolitan-district-council/walsall,WC113-31,29/02/2020,Adult Social Care,5 CARE SERVICES LTD,28/02/2020,430.42,73507-DOMICILIARY CARE,PHYSICAL SUPPORT,Third Party Payments,Revenue
Walsall Council,http://opendatacommunities.org/id/metropolitan-district-council/walsall,WC113-32,29/02/2020,Adult Social Care,5 CARE SERVICES LTD,28/02/2020,491.25,73507-DOMICILIARY CARE,SENSORY SUPPORT,Third Party Payments,Revenue
Walsall Council,http://opendatacommunities.org/id/metropolitan-district-council/walsall,WC113-33,29/02/2020,Adult Social Care,5 CARE SERVICES LTD,25/02/2020,516.16,73025-PROFESSIONAL SERVICES-PRIV CONTRACTOR & OTHER AGENCIES,INTERMEDIATE CARE SERVICE,Third Party Payments,Revenue
Walsall Council,http://opendatacommunities.org/id/metropolitan-district-council/walsall,WC113-34,29/02/2020,Adult Social Care,5 CARE SERVICES LTD,28/02/2020,555.51,73507-DOMICILIARY CARE,PHYSICAL SUPPORT,Third Party Payments,Revenue
Walsall Council,http://opendatacommunities.org/id/metropolitan-district-council/walsall,WC113-35,29/02/2020,Adult Social Care,5 CARE SERVICES LTD,28/02/2020,558.92,73507-DOMICILIARY CARE,LEARNING DISABILITY SUPPORT,Third Party Payments,Revenue
Walsall Council,http://opendatacommunities.org/id/metropolitan-district-council/walsall,WC113-36,29/02/2020,Adult Social Care,5 CARE SERVICES LTD,28/02/2020,576.97,73507-DOMICILIARY CARE,PHYSICAL SUPPORT,Third Party Payments,Revenue
Walsall Council,http://opendatacommunities.org/id/metropolitan-district-council/walsall,WC113-37,29/02/2020,Adult Social Care,5 CARE SERVICES LTD,28/02/2020,603.63,73507-DOMICILIARY CARE,PHYSICAL SUPPORT,Third Party Payments,Revenue
Walsall Council,http://opendatacommunities.org/id/metropolitan-district-council/walsall,WC113-38,29/02/2020,Adult Social Care,5 CARE SERVICES LTD,28/02/2020,617.40,73507-DOMICILIARY CARE,PHYSICAL SUPPORT,Third Party Payments,Revenue
Walsall Council,http://opendatacommunities.org/id/metropolitan-district-council/walsall,WC113-39,29/02/2020,Adult Social Care,5 CARE SERVICES LTD,28/02/2020,622.89,73507-DOMICILIARY CARE,PHYSICAL SUPPORT,Third Party Payments,Revenue
Walsall Council,http://opendatacommunities.org/id/metropolitan-district-council/walsall,WC113-40,29/02/2020,Adult Social Care,5 CARE SERVICES LTD,28/02/2020,641.83,73507-DOMICILIARY CARE,PHYSICAL SUPPORT,Third Party Payments,Revenue
Walsall Council,http://opendatacommunities.org/id/metropolitan-district-council/walsall,WC113-41,29/02/2020,Adult Social Care,5 CARE SERVICES LTD,28/02/2020,664.17,73507-DOMICILIARY CARE,PHYSICAL SUPPORT,Third Party Payments,Revenue
Walsall Council,http://opendatacommunities.org/id/metropolitan-district-council/walsall,WC113-42,29/02/2020,Adult Social Care,5 CARE SERVICES LTD,28/02/2020,748.71,73507-DOMICILIARY CARE,SENSORY SUPPORT,Third Party Payments,Revenue
Walsall Council,http://opendatacommunities.org/id/metropolitan-district-council/walsall,WC113-43,29/02/2020,Adult Social Care,5 CARE SERVICES LTD,28/02/2020,779.77,73507-DOMICILIARY CARE,LEARNING DISABILITY SUPPORT,Third Party Payments,Revenue
Walsall Council,http://opendatacommunities.org/id/metropolitan-district-council/walsall,WC113-44,29/02/2020,Adult Social Care,5 CARE SERVICES LTD,28/02/2020,785.16,73507-DOMICILIARY CARE,PHYSICAL SUPPORT,Third Party Payments,Revenue
Walsall Council,http://opendatacommunities.org/id/metropolitan-district-council/walsall,WC113-45,29/02/2020,Adult Social Care,5 CARE SERVICES LTD,28/02/2020,789.12,73507-DOMICILIARY CARE,PHYSICAL SUPPORT,Third Party Payments,Revenue
Walsall Council,http://opendatacommunities.org/id/metropolitan-district-council/walsall,WC113-46,29/02/2020,Adult Social Care,5 CARE SERVICES LTD,28/02/2020,856.43,73507-DOMICILIARY CARE,PHYSICAL SUPPORT,Third Party Payments,Revenue
Walsall Council,http://opendatacommunities.org/id/metropolitan-district-council/walsall,WC113-47,29/02/2020,Adult Social Care,5 CARE SERVICES LTD,28/02/2020,857.30,73507-DOMICILIARY CARE,PHYSICAL SUPPORT,Third Party Payments,Revenue
Walsall Council,http://opendatacommunities.org/id/metropolitan-district-council/walsall,WC113-48,29/02/2020,Adult Social Care,5 CARE SERVICES LTD,28/02/2020,889.61,73507-DOMICILIARY CARE,PHYSICAL SUPPORT,Third Party Payments,Revenue
Walsall Council,http://opendatacommunities.org/id/metropolitan-district-council/walsall,WC113-49,29/02/2020,Adult Social Care,5 CARE SERVICES LTD,28/02/2020,900.20,73507-DOMICILIARY CARE,SENSORY SUPPORT,Third Party Payments,Revenue
Walsall Council,http://opendatacommunities.org/id/metropolitan-district-council/walsall,WC113-50,29/02/2020,Adult Social Care,5 CARE SERVICES LTD,01/02/2020,903.28,73025-PROFESSIONAL SERVICES-PRIV CONTRACTOR & OTHER AGENCIES,INTERMEDIATE CARE SERVICE,Third Party Payments,Revenue
Walsall Council,http://opendatacommunities.org/id/metropolitan-district-council/walsall,WC113-51,29/02/2020,Adult Social Care,5 CARE SERVICES LTD,28/02/2020,943.26,73507-DOMICILIARY CARE,PHYSICAL SUPPORT,Third Party Payments,Revenue
Walsall Council,http://opendatacommunities.org/id/metropolitan-district-council/walsall,WC113-52,29/02/2020,Adult Social Care,5 CARE SERVICES LTD,28/02/2020,"1,038.24",73507-DOMICILIARY CARE,MENTAL HEALTH SUPPORT,Third Party Payments,Revenue
Walsall Council,http://opendatacommunities.org/id/metropolitan-district-council/walsall,WC113-53,29/02/2020,Adult Social Care,5 CARE SERVICES LTD,25/02/2020,"1,115.41",73025-PROFESSIONAL SERVICES-PRIV CONTRACTOR & OTHER AGENCIES,INTERMEDIATE CARE SERVICE,Third Party Payments,Revenue
Walsall Council,http://opendatacommunities.org/id/metropolitan-district-council/walsall,WC113-54,29/02/2020,Adult Social Care,5 CARE SERVICES LTD,28/02/2020,"1,117.26",73507-DOMICILIARY CARE,PHYSICAL SUPPORT,Third Party Payments,Revenue
Walsall Council,http://opendatacommunities.org/id/metropolitan-district-council/walsall,WC113-55,29/02/2020,Adult Social Care,5 CARE SERVICES LTD,28/02/2020,"1,135.44",73507-DOMICILIARY CARE,LEARNING DISABILITY SUPPORT,Third Party Payments,Revenue
Walsall Council,http://opendatacommunities.org/id/metropolitan-district-council/walsall,WC113-56,29/02/2020,Adult Social Care,5 CARE SERVICES LTD,28/02/2020,"1,175.10",73507-DOMICILIARY CARE,PHYSICAL SUPPORT,Third Party Payments,Revenue
Walsall Council,http://opendatacommunities.org/id/metropolitan-district-council/walsall,WC113-57,29/02/2020,Adult Social Care,5 CARE SERVICES LTD,28/02/2020,"1,258.46",73507-DOMICILIARY CARE,PHYSICAL SUPPORT,Third Party Payments,Revenue
Walsall Council,http://opendatacommunities.org/id/metropolitan-district-council/walsall,WC113-58,29/02/2020,Adult Social Care,5 CARE SERVICES LTD,28/02/2020,"1,304.74",73507-DOMICILIARY CARE,PHYSICAL SUPPORT,Third Party Payments,Revenue
Walsall Council,http://opendatacommunities.org/id/metropolitan-district-council/walsall,WC113-59,29/02/2020,Adult Social Care,5 CARE SERVICES LTD,28/02/2020,"1,440.11",73507-DOMICILIARY CARE,PHYSICAL SUPPORT,Third Party Payments,Revenue
Walsall Council,http://opendatacommunities.org/id/metropolitan-district-council/walsall,WC113-60,29/02/2020,Adult Social Care,5 CARE SERVICES LTD,28/02/2020,"1,465.58",73507-DOMICILIARY CARE,PHYSICAL SUPPORT,Third Party Payments,Revenue
Walsall Council,http://opendatacommunities.org/id/metropolitan-district-council/walsall,WC113-61,29/02/2020,Adult Social Care,5 CARE SERVICES LTD,28/02/2020,"1,569.17",73507-DOMICILIARY CARE,PHYSICAL SUPPORT,Third Party Payments,Revenue
Walsall Council,http://opendatacommunities.org/id/metropolitan-district-council/walsall,WC113-62,29/02/2020,Adult Social Care,5 CARE SERVICES LTD,28/02/2020,"1,603.73",73507-DOMICILIARY CARE,PHYSICAL SUPPORT,Third Party Payments,Revenue
Walsall Council,http://opendatacommunities.org/id/metropolitan-district-council/walsall,WC113-63,29/02/2020,Adult Social Care,5 CARE SERVICES LTD,28/02/2020,"1,608.11",73507-DOMICILIARY CARE,PHYSICAL SUPPORT,Third Party Payments,Revenue
Walsall Council,http://opendatacommunities.org/id/metropolitan-district-council/walsall,WC113-64,29/02/2020,Adult Social Care,5 CARE SERVICES LTD,28/02/2020,"1,661.68",73507-DOMICILIARY CARE,PHYSICAL SUPPORT,Third Party Payments,Revenue
Walsall Council,http://opendatacommunities.org/id/metropolitan-district-council/walsall,WC113-65,29/02/2020,Adult Social Care,5 CARE SERVICES LTD,28/02/2020,"1,716.46",73507-DOMICILIARY CARE,PHYSICAL SUPPORT,Third Party Payments,Revenue
Walsall Council,http://opendatacommunities.org/id/metropolitan-district-council/walsall,WC113-66,29/02/2020,Adult Social Care,5 CARE SERVICES LTD,28/02/2020,"1,799.06",73507-DOMICILIARY CARE,MENTAL HEALTH SUPPORT,Third Party Payments,Revenue
Walsall Council,http://opendatacommunities.org/id/metropolitan-district-council/walsall,WC113-67,29/02/2020,Adult Social Care,5 CARE SERVICES LTD,28/02/2020,"1,908.86",73507-DOMICILIARY CARE,PHYSICAL SUPPORT,Third Party Payments,Revenue
Walsall Council,http://opendatacommunities.org/id/metropolitan-district-council/walsall,WC113-68,29/02/2020,Adult Social Care,5 CARE SERVICES LTD,28/02/2020,"1,983.55",73507-DOMICILIARY CARE,PHYSICAL SUPPORT,Third Party Payments,Revenue
Walsall Council,http://opendatacommunities.org/id/metropolitan-district-council/walsall,WC113-69,29/02/2020,Adult Social Care,5 CARE SERVICES LTD,28/02/2020,"2,083.52",73507-DOMICILIARY CARE,PHYSICAL SUPPORT,Third Party Payments,Revenue
Walsall Council,http://opendatacommunities.org/id/metropolitan-district-council/walsall,WC113-70,29/02/2020,Adult Social Care,5 CARE SERVICES LTD,25/02/2020,"2,285.64",73025-PROFESSIONAL SERVICES-PRIV CONTRACTOR & OTHER AGENCIES,INTERMEDIATE CARE SERVICE,Third Party Payments,Revenue
Walsall Council,http://opendatacommunities.org/id/metropolitan-district-council/walsall,WC113-71,29/02/2020,Adult Social Care,5 CARE SERVICES LTD,28/02/2020,"3,480.54",73507-DOMICILIARY CARE,PHYSICAL SUPPORT,Third Party Payments,Revenue
Walsall Council,http://opendatacommunities.org/id/metropolitan-district-council/walsall,WC113-72,29/02/2020,Adult Social Care,5 CARE SERVICES LTD,28/02/2020,"4,299.00",73507-DOMICILIARY CARE,PHYSICAL SUPPORT,Third Party Payments,Revenue
Walsall Council,http://opendatacommunities.org/id/metropolitan-district-council/walsall,WC113-73,29/02/2020,Economy & Environment,A ASHTON,07/02/2020,300.00,60500-GENERAL MATERIALS,INFRASTRUCTURE MAINTENANCE,Supplies & Services,Revenue
Walsall Council,http://opendatacommunities.org/id/metropolitan-district-council/walsall,WC113-74,29/02/2020,Resources and Transformation,A D T FIRE AND SECURITY PLC,19/02/2020,292.14,73002-SECURITY-PRIV CONTRACTOR FEES,CENTRALISED MAINTENANCE,Third Party Payments,Revenue
Walsall Council,http://opendatacommunities.org/id/metropolitan-district-council/walsall,WC113-75,29/02/2020,Resources and Transformation,A D T FIRE AND SECURITY PLC,19/02/2020,"1,284.56",73002-SECURITY-PRIV CONTRACTOR FEES,CENTRALISED MAINTENANCE,Third Party Payments,Revenue
Walsall Council,http://opendatacommunities.org/id/metropolitan-district-council/walsall,WC113-76,29/02/2020,Economy & Environment,A F BLAKEMORE & SON LTD,25/02/2020,250.17,61008-CONFECTIONERY/SNACKS-PROVISIONS,DARLASTON LEISURE CENTRE,Supplies & Services,Revenue
Walsall Council,http://opendatacommunities.org/id/metropolitan-district-council/walsall,WC113-77,29/02/2020,Economy & Environment,A F BLAKEMORE & SON LTD,18/02/2020,264.76,61002-DRY FOODS-PROVISIONS,WALSALL GALA CENTRE,Supplies & Services,Revenue
Walsall Council,http://opendatacommunities.org/id/metropolitan-district-council/walsall,WC113-78,29/02/2020,Economy & Environment,A F BLAKEMORE & SON LTD,13/02/2020,327.72,61000-FOOD & DRINK SUPPLIES,OAK PARK,Supplies & Services,Revenue
Walsall Council,http://opendatacommunities.org/id/metropolitan-district-council/walsall,WC113-79,29/02/2020,Economy & Environment,A F BLAKEMORE & SON LTD,11/02/2020,361.91,61000-FOOD & DRINK SUPPLIES,OAK PARK,Supplies & Services,Revenue
Walsall Council,http://opendatacommunities.org/id/metropolitan-district-council/walsall,WC113-80,29/02/2020,Adult Social Care,A F BLAKEMORE & SON LTD,19/02/2020,377.67,61016-FOOD AND BEVERAGES-PROVISIONS,GOSCOTE,Supplies & Services,Revenue
Walsall Council,http://opendatacommunities.org/id/metropolitan-district-council/walsall,WC113-81,29/02/2020,Economy & Environment,A F BLAKEMORE & SON LTD,03/02/2020,412.65,61000-FOOD & DRINK SUPPLIES,OAK PARK,Supplies & Services,Revenue
Walsall Council,http://opendatacommunities.org/id/metropolitan-district-council/walsall,WC113-82,29/02/2020,Economy & Environment,A F BLAKEMORE & SON LTD,25/02/2020,418.54,61008-CONFECTIONERY/SNACKS-PROVISIONS,DARLASTON LEISURE CENTRE,Supplies & Services,Revenue
Walsall Council,http://opendatacommunities.org/id/metropolitan-district-council/walsall,WC113-83,29/02/2020,Economy & Environment,A F BLAKEMORE & SON LTD,18/02/2020,423.94,61000-FOOD & DRINK SUPPLIES,OAK PARK,Supplies & Services,Revenue
Walsall Council,http://opendatacommunities.org/id/metropolitan-district-council/walsall,WC113-84,29/02/2020,Economy & Environment,A F BLAKEMORE & SON LTD,18/02/2020,432.45,61000-FOOD & DRINK SUPPLIES,OAK PARK,Supplies & Services,Revenue
Walsall Council,http://opendatacommunities.org/id/metropolitan-district-council/walsall,WC113-85,29/02/2020,Economy & Environment,A F BLAKEMORE & SON LTD,26/02/2020,464.46,61000-FOOD & DRINK SUPPLIES,OAK PARK,Supplies & Services,Revenue
Walsall Council,http://opendatacommunities.org/id/metropolitan-district-council/walsall,WC113-86,29/02/2020,Adult Social Care,A F BLAKEMORE & SON LTD,24/02/2020,470.48,61016-FOOD AND BEVERAGES-PROVISIONS,GOSCOTE,Supplies & Services,Revenue
Walsall Council,http://opendatacommunities.org/id/metropolitan-district-council/walsall,WC113-87,29/02/2020,Adult Social Care,A F BLAKEMORE & SON LTD,01/02/2020,508.28,61016-FOOD AND BEVERAGES-PROVISIONS,GOSCOTE,Supplies & Services,Revenue
Walsall Council,http://opendatacommunities.org/id/metropolitan-district-council/walsall,WC113-88,29/02/2020,Economy & Environment,A F BLAKEMORE & SON LTD,13/02/2020,791.90,61000-FOOD & DRINK SUPPLIES,OAK PARK,Supplies & Services,Revenue
Walsall Council,http://opendatacommunities.org/id/metropolitan-district-council/walsall,WC113-89,29/02/2020,Economy & Environment,A F BLAKEMORE & SON LTD,18/02/2020,"1,346.45",61000-FOOD & DRINK SUPPLIES,BLOXWICH LEISURE CENTRE,Supplies & Services,Revenue
Walsall Council,http://opendatacommunities.org/id/metropolitan-district-council/walsall,WC113-90,29/02/2020,Economy & Environment,AAINA COMMUNITY HUB,24/02/2020,"1,144.00",63253-PAYMENT TO CONTRACTOR,MENTAL HEALTH,Third Party Payments,Revenue
Walsall Council,http://opendatacommunities.org/id/metropolitan-district-council/walsall,WC113-91,29/02/2020,Childrens,REDACTED,04/02/2020,712.12,73506-DIRECT PAYMENT,FAMILY SUPPORT - DIRECT PAYMENTS,Third Party Payments,Revenue
Walsall Council,http://opendatacommunities.org/id/metropolitan-district-council/walsall,WC113-92,29/02/2020,Adult Social Care,ABBEY COURT NURSING & RESIDEN,03/02/2020,"1,814.96",73500-RESIDENTIAL,PHYSICAL SUPPORT,Third Party Payments,Revenue
Walsall Council,http://opendatacommunities.org/id/metropolitan-district-council/walsall,WC113-93,29/02/2020,Adult Social Care,ABBEY COURT NURSING & RESIDEN,27/02/2020,"1,814.96",73500-RESIDENTIAL,PHYSICAL SUPPORT,Third Party Payments,Revenue
Walsall Council,http://opendatacommunities.org/id/metropolitan-district-council/walsall,WC113-94,29/02/2020,Adult Social Care,ABBEY COURT NURSING & RESIDEN,03/02/2020,"1,972.24",73501-RESIDENTIAL EMI,PHYSICAL SUPPORT,Third Party Payments,Revenue
Walsall Council,http://opendatacommunities.org/id/metropolitan-district-council/walsall,WC113-95,29/02/2020,Adult Social Care,ABBEY COURT NURSING & RESIDEN,03/02/2020,"1,972.24",73501-RESIDENTIAL EMI,PHYSICAL SUPPORT,Third Party Payments,Revenue
Walsall Council,http://opendatacommunities.org/id/metropolitan-district-council/walsall,WC113-96,29/02/2020,Adult Social Care,ABBEY COURT NURSING & RESIDEN,03/02/2020,"1,972.24",73501-RESIDENTIAL EMI,SUPPORT WITH MEMORY & COGNITION,Third Party Payments,Revenue
Walsall Council,http://opendatacommunities.org/id/metropolitan-district-council/walsall,WC113-97,29/02/2020,Adult Social Care,ABBEY COURT NURSING & RESIDEN,27/02/2020,"1,972.24",73501-RESIDENTIAL EMI,SUPPORT WITH MEMORY & COGNITION,Third Party Payments,Revenue
Walsall Council,http://opendatacommunities.org/id/metropolitan-district-council/walsall,WC113-98,29/02/2020,Adult Social Care,ABBEY COURT NURSING & RESIDEN,27/02/2020,"1,972.24",73501-RESIDENTIAL EMI,PHYSICAL SUPPORT,Third Party Payments,Revenue
Walsall Council,http://opendatacommunities.org/id/metropolitan-district-council/walsall,WC113-99,29/02/2020,Adult Social Care,ABBEY COURT NURSING & RESIDEN,27/02/2020,"1,972.24",73501-RESIDENTIAL EMI,PHYSICAL SUPPORT,Third Party Payments,Revenue
Walsall Council,http://opendatacommunities.org/id/metropolitan-district-council/walsall,WC113-100,29/02/2020,Adult Social Care,ABBEY COURT NURSING & RESIDEN,03/02/2020,"2,358.08",73503-NURSING EMI,MENTAL HEALTH SUPPORT,Third Party Payments,Revenue
Walsall Council,http://opendatacommunities.org/id/metropolitan-district-council/walsall,WC113-101,29/02/2020,Adult Social Care,ABBEY COURT NURSING & RESIDEN,27/02/2020,"2,358.08",73503-NURSING EMI,MENTAL HEALTH SUPPORT,Third Party Payments,Revenue
Walsall Council,http://opendatacommunities.org/id/metropolitan-district-council/walsall,WC113-102,29/02/2020,Adult Social Care,ABBEY COURT NURSING & RESIDEN,03/02/2020,"2,383.72",73502-NURSING,SUPPORT WITH MEMORY & COGNITION,Third Party Payments,Revenue
Walsall Council,http://opendatacommunities.org/id/metropolitan-district-council/walsall,WC113-103,29/02/2020,Adult Social Care,ABBEY COURT NURSING & RESIDEN,27/02/2020,"2,383.72",73502-NURSING,SUPPORT WITH MEMORY & COGNITION,Third Party Payments,Revenue
Walsall Council,http://opendatacommunities.org/id/metropolitan-district-council/walsall,WC113-104,29/02/2020,Adult Social Care,ABBEY HEALTHCARE HOMES LTD,03/02/2020,"2,317.04",73500-RESIDENTIAL,PHYSICAL SUPPORT,Third Party Payments,Revenue
Walsall Council,http://opendatacommunities.org/id/metropolitan-district-council/walsall,WC113-105,29/02/2020,Adult Social Care,ABBEY HEALTHCARE HOMES LTD,27/02/2020,"2,317.04",73500-RESIDENTIAL,PHYSICAL SUPPORT,Third Party Payments,Revenue
Walsall Council,http://opendatacommunities.org/id/metropolitan-district-council/walsall,WC113-106,29/02/2020,Adult Social Care,ABBEY HEALTHCARE HOMES LTD,03/02/2020,"3,030.00",73500-RESIDENTIAL,PHYSICAL SUPPORT,Third Party Payments,Revenue
Walsall Council,http://opendatacommunities.org/id/metropolitan-district-council/walsall,WC113-107,29/02/2020,Adult Social Care,ABBEY HEALTHCARE HOMES LTD,03/02/2020,"3,030.00",73500-RESIDENTIAL,LEARNING DISABILITY SUPPORT,Third Party Payments,Revenue
Walsall Council,http://opendatacommunities.org/id/metropolitan-district-council/walsall,WC113-108,29/02/2020,Adult Social Care,ABBEY HEALTHCARE HOMES LTD,27/02/2020,"3,030.00",73500-RESIDENTIAL,LEARNING DISABILITY SUPPORT,Third Party Payments,Revenue
Walsall Council,http://opendatacommunities.org/id/metropolitan-district-council/walsall,WC113-109,29/02/2020,Adult Social Care,ABBEY HEALTHCARE HOMES LTD,27/02/2020,"3,030.00",73500-RESIDENTIAL,PHYSICAL SUPPORT,Third Party Payments,Revenue
Walsall Council,http://opendatacommunities.org/id/metropolitan-district-council/walsall,WC113-110,29/02/2020,Adult Social Care,ABBEY HEALTHCARE HOMES LTD,03/02/2020,"3,434.00",73500-RESIDENTIAL,LEARNING DISABILITY SUPPORT,Third Party Payments,Revenue
Walsall Council,http://opendatacommunities.org/id/metropolitan-district-council/walsall,WC113-111,29/02/2020,Adult Social Care,ABBEY HEALTHCARE HOMES LTD,27/02/2020,"3,434.00",73500-RESIDENTIAL,LEARNING DISABILITY SUPPORT,Third Party Payments,Revenue
Walsall Council,http://opendatacommunities.org/id/metropolitan-district-council/walsall,WC113-112,29/02/2020,Adult Social Care,ABBEY HEALTHCARE HOMES LTD,03/02/2020,"3,514.44",73503-NURSING EMI,PHYSICAL SUPPORT,Third Party Payments,Revenue
Walsall Council,http://opendatacommunities.org/id/metropolitan-district-council/walsall,WC113-113,29/02/2020,Adult Social Care,ABBEY HEALTHCARE HOMES LTD,27/02/2020,"3,514.44",73503-NURSING EMI,PHYSICAL SUPPORT,Third Party Payments,Revenue
Walsall Council,http://opendatacommunities.org/id/metropolitan-district-council/walsall,WC113-114,29/02/2020,Childrens,ABC DAY NURSERY (WILLENHALL) LIMITED,01/02/2020,"1,827.00",66505-OTHER-GRANTS TO OTHER ORGS,EARLY YEARS - 3 YR OLDS,Third Party Payments,Revenue
Walsall Council,http://opendatacommunities.org/id/metropolitan-district-council/walsall,WC113-115,29/02/2020,Childrens,ABC DAY NURSERY (WILLENHALL) LIMITED,03/02/2020,"2,512.13",66505-OTHER-GRANTS TO OTHER ORGS,EARLY YEARS - 3 YR OLDS,Third Party Payments,Revenue
Walsall Council,http://opendatacommunities.org/id/metropolitan-district-council/walsall,WC113-116,29/02/2020,Childrens,ABC DAY NURSERY (WILLENHALL) LIMITED,04/02/2020,"4,539.15",66505-OTHER-GRANTS TO OTHER ORGS,EARLY YEARS - 2 YR OLDS,Third Party Payments,Revenue
Walsall Council,http://opendatacommunities.org/id/metropolitan-district-council/walsall,WC113-117,29/02/2020,Adult Social Care,REDACTED,04/02/2020,"1,999.20",73506-DIRECT PAYMENT,LEARNING DISABILITY SUPPORT,Third Party Payments,Revenue
Walsall Council,http://opendatacommunities.org/id/metropolitan-district-council/walsall,WC113-118,29/02/2020,Resources and Transformation,ABLEWELL ADVICE SERVICES,21/02/2020,"3,750.00",66500-GRANTS TO OTHER ORGS,AREA PARTNERSHIPS,Third Party Payments,Revenue
Walsall Council,http://opendatacommunities.org/id/metropolitan-district-council/walsall,WC113-119,29/02/2020,Childrens,ABLEWELL CARS,03/02/2020,-696.61,52000-WITH DRIVER-HIRE OF VEHICLES,HOME TO SCHOOL TRANSPORT,Transport,Revenue
Walsall Council,http://opendatacommunities.org/id/metropolitan-district-council/walsall,WC113-120,29/02/2020,Childrens,ABLEWELL CARS,03/02/2020,-580.80,52000-WITH DRIVER-HIRE OF VEHICLES,HOME TO SCHOOL TRANSPORT,Transport,Revenue
Walsall Council,http://opendatacommunities.org/id/metropolitan-district-council/walsall,WC113-121,29/02/2020,Childrens,ABLEWELL CARS,03/02/2020,328.00,52000-WITH DRIVER-HIRE OF VEHICLES,HOME TO SCHOOL TRANSPORT,Transport,Revenue
Walsall Council,http://opendatacommunities.org/id/metropolitan-district-council/walsall,WC113-122,29/02/2020,Childrens,ABLEWELL CARS,27/02/2020,328.00,52000-WITH DRIVER-HIRE OF VEHICLES,HOME TO SCHOOL TRANSPORT,Transport,Revenue
Walsall Council,http://opendatacommunities.org/id/metropolitan-district-council/walsall,WC113-123,29/02/2020,Childrens,ABLEWELL CARS,03/02/2020,528.00,52000-WITH DRIVER-HIRE OF VEHICLES,HOME TO SCHOOL TRANSPORT,Transport,Revenue
Walsall Council,http://opendatacommunities.org/id/metropolitan-district-council/walsall,WC113-124,29/02/2020,Childrens,ABLEWELL CARS,03/02/2020,528.00,52000-WITH DRIVER-HIRE OF VEHICLES,HOME TO SCHOOL TRANSPORT,Transport,Revenue
Walsall Council,http://opendatacommunities.org/id/metropolitan-district-council/walsall,WC113-125,29/02/2020,Childrens,ABLEWELL CARS,27/02/2020,528.00,52000-WITH DRIVER-HIRE OF VEHICLES,HOME TO SCHOOL TRANSPORT,Transport,Revenue
Walsall Council,http://opendatacommunities.org/id/metropolitan-district-council/walsall,WC113-126,29/02/2020,Childrens,ABLEWELL CARS,27/02/2020,528.00,52000-WITH DRIVER-HIRE OF VEHICLES,HOME TO SCHOOL TRANSPORT,Transport,Revenue
Walsall Council,http://opendatacommunities.org/id/metropolitan-district-council/walsall,WC113-127,29/02/2020,Childrens,ABLEWELL CARS,03/02/2020,656.00,52000-WITH DRIVER-HIRE OF VEHICLES,HOME TO SCHOOL TRANSPORT,Transport,Revenue
Walsall Council,http://opendatacommunities.org/id/metropolitan-district-council/walsall,WC113-128,29/02/2020,Childrens,ABLEWELL CARS,27/02/2020,656.00,52000-WITH DRIVER-HIRE OF VEHICLES,HOME TO SCHOOL TRANSPORT,Transport,Revenue
Walsall Council,http://opendatacommunities.org/id/metropolitan-district-council/walsall,WC113-129,29/02/2020,Childrens,ABLEWELL CARS,03/02/2020,"1,266.40",52000-WITH DRIVER-HIRE OF VEHICLES,HOME TO SCHOOL TRANSPORT,Transport,Revenue
Walsall Council,http://opendatacommunities.org/id/metropolitan-district-council/walsall,WC113-130,29/02/2020,Childrens,ABLEWELL CARS,27/02/2020,"1,266.40",52000-WITH DRIVER-HIRE OF VEHICLES,HOME TO SCHOOL TRANSPORT,Transport,Revenue
Walsall Council,http://opendatacommunities.org/id/metropolitan-district-council/walsall,WC113-131,29/02/2020,Economy & Environment,ABRSM,01/02/2020,"1,807.00",63013-EXAMINATIONS-SERVICES,MUSIC HUB FOREST ARTS,Supplies & Services,Revenue
Walsall Council,http://opendatacommunities.org/id/metropolitan-district-council/walsall,WC113-132,29/02/2020,Childrens,ABS TAXIS (ALDRIDGE),03/02/2020,-831.60,52000-WITH DRIVER-HIRE OF VEHICLES,HOME TO SCHOOL TRANSPORT,Transport,Revenue
Walsall Council,http://opendatacommunities.org/id/metropolitan-district-council/walsall,WC113-133,29/02/2020,Childrens,ABS TAXIS (ALDRIDGE),03/02/2020,-262.52,52000-WITH DRIVER-HIRE OF VEHICLES,HOME TO SCHOOL TRANSPORT,Transport,Revenue
Walsall Council,http://opendatacommunities.org/id/metropolitan-district-council/walsall,WC113-134,29/02/2020,Childrens,ABS TAXIS (ALDRIDGE),03/02/2020,378.00,52000-WITH DRIVER-HIRE OF VEHICLES,HOME TO SCHOOL TRANSPORT,Transport,Revenue
Walsall Council,http://opendatacommunities.org/id/metropolitan-district-council/walsall,WC113-135,29/02/2020,Childrens,ABS TAXIS (ALDRIDGE),03/02/2020,378.00,52000-WITH DRIVER-HIRE OF VEHICLES,HOME TO SCHOOL TRANSPORT,Transport,Revenue
Walsall Council,http://opendatacommunities.org/id/metropolitan-district-council/walsall,WC113-136,29/02/2020,Childrens,ABS TAXIS (ALDRIDGE),03/02/2020,378.00,52000-WITH DRIVER-HIRE OF VEHICLES,HOME TO SCHOOL TRANSPORT,Transport,Revenue
Walsall Council,http://opendatacommunities.org/id/metropolitan-district-council/walsall,WC113-137,29/02/2020,Childrens,ABS TAXIS (ALDRIDGE),03/02/2020,378.00,52000-WITH DRIVER-HIRE OF VEHICLES,HOME TO SCHOOL TRANSPORT,Transport,Revenue
Walsall Council,http://opendatacommunities.org/id/metropolitan-district-council/walsall,WC113-138,29/02/2020,Childrens,ABS TAXIS (ALDRIDGE),27/02/2020,378.00,52000-WITH DRIVER-HIRE OF VEHICLES,HOME TO SCHOOL TRANSPORT,Transport,Revenue
Walsall Council,http://opendatacommunities.org/id/metropolitan-district-council/walsall,WC113-139,29/02/2020,Childrens,ABS TAXIS (ALDRIDGE),27/02/2020,378.00,52000-WITH DRIVER-HIRE OF VEHICLES,HOME TO SCHOOL TRANSPORT,Transport,Revenue
Walsall Council,http://opendatacommunities.org/id/metropolitan-district-council/walsall,WC113-140,29/02/2020,Childrens,ABS TAXIS (ALDRIDGE),27/02/2020,378.00,52000-WITH DRIVER-HIRE OF VEHICLES,HOME TO SCHOOL TRANSPORT,Transport,Revenue
Walsall Council,http://opendatacommunities.org/id/metropolitan-district-council/walsall,WC113-141,29/02/2020,Childrens,ABS TAXIS (ALDRIDGE),27/02/2020,403.20,52000-WITH DRIVER-HIRE OF VEHICLES,HOME TO SCHOOL TRANSPORT,Transport,Revenue
Walsall Council,http://opendatacommunities.org/id/metropolitan-district-council/walsall,WC113-142,29/02/2020,Childrens,ABS TAXIS (ALDRIDGE),03/02/2020,403.60,52000-WITH DRIVER-HIRE OF VEHICLES,HOME TO SCHOOL TRANSPORT,Transport,Revenue
Walsall Council,http://opendatacommunities.org/id/metropolitan-district-council/walsall,WC113-143,29/02/2020,Childrens,ABS TAXIS (ALDRIDGE),03/02/2020,403.60,52000-WITH DRIVER-HIRE OF VEHICLES,HOME TO SCHOOL TRANSPORT,Transport,Revenue
Walsall Council,http://opendatacommunities.org/id/metropolitan-district-council/walsall,WC113-144,29/02/2020,Childrens,ABS TAXIS (ALDRIDGE),27/02/2020,403.60,52000-WITH DRIVER-HIRE OF VEHICLES,HOME TO SCHOOL TRANSPORT,Transport,Revenue
Walsall Council,http://opendatacommunities.org/id/metropolitan-district-council/walsall,WC113-145,29/02/2020,Childrens,ABS TAXIS (ALDRIDGE),27/02/2020,403.60,52000-WITH DRIVER-HIRE OF VEHICLES,HOME TO SCHOOL TRANSPORT,Transport,Revenue
Walsall Council,http://opendatacommunities.org/id/metropolitan-district-council/walsall,WC113-146,29/02/2020,Childrens,ABS TAXIS (ALDRIDGE),03/02/2020,490.00,52000-WITH DRIVER-HIRE OF VEHICLES,HOME TO SCHOOL TRANSPORT,Transport,Revenue
Walsall Council,http://opendatacommunities.org/id/metropolitan-district-council/walsall,WC113-147,29/02/2020,Childrens,ABS TAXIS (ALDRIDGE),27/02/2020,490.00,52000-WITH DRIVER-HIRE OF VEHICLES,HOME TO SCHOOL TRANSPORT,Transport,Revenue
Walsall Council,http://opendatacommunities.org/id/metropolitan-district-council/walsall,WC113-148,29/02/2020,Childrens,ABS TAXIS (ALDRIDGE),27/02/2020,490.00,52000-WITH DRIVER-HIRE OF VEHICLES,HOME TO SCHOOL TRANSPORT,Transport,Revenue
Walsall Council,http://opendatacommunities.org/id/metropolitan-district-council/walsall,WC113-149,29/02/2020,Childrens,ABU BAKR NURSERY,17/02/2020,640.00,77200-TRANSFER PAYMENTS-OTHER SCHOOLCHILDREN/STUDENT RELATED ITEMS,EARLY YEARS - SOCIAL INCLUSION FUND - 3/4 YR OLD,Transfer Payments,Revenue
Walsall Council,http://opendatacommunities.org/id/metropolitan-district-council/walsall,WC113-150,29/02/2020,Childrens,ABU BAKR NURSERY,04/02/2020,"3,890.70",66505-OTHER-GRANTS TO OTHER ORGS,EARLY YEARS - 2 YR OLDS,Third Party Payments,Revenue
Walsall Council,http://opendatacommunities.org/id/metropolitan-district-council/walsall,WC113-151,29/02/2020,Childrens,ABU BAKR NURSERY,03/02/2020,"15,216.30",66505-OTHER-GRANTS TO OTHER ORGS,EARLY YEARS - 3 YR OLDS,Third Party Payments,Revenue
Walsall Council,http://opendatacommunities.org/id/metropolitan-district-council/walsall,WC113-152,29/02/2020,Childrens,AC EDUCATION,21/02/2020,"4,255.00",63000-PROFESSIONAL FEES AND SERVICES,GENERAL MANAGEMENT SUPPORT (INC LEGAL),Supplies & Services,Revenue
Walsall Council,http://opendatacommunities.org/id/metropolitan-district-council/walsall,WC113-153,29/02/2020,Adult Social Care,ACCORD HOUSING ASSOCIATION LIMITED - HOBS MEADOW,03/02/2020,"4,550.44",73500-RESIDENTIAL,LEARNING DISABILITY SUPPORT,Third Party Payments,Revenue
Walsall Council,http://opendatacommunities.org/id/metropolitan-district-council/walsall,WC113-154,29/02/2020,Adult Social Care,ACCORD HOUSING ASSOCIATION LIMITED - HOBS MEADOW,03/02/2020,"4,550.44",73500-RESIDENTIAL,LEARNING DISABILITY SUPPORT,Third Party Payments,Revenue
Walsall Council,http://opendatacommunities.org/id/metropolitan-district-council/walsall,WC113-155,29/02/2020,Adult Social Care,ACCORD HOUSING ASSOCIATION LIMITED - HOBS MEADOW,03/02/2020,"4,550.44",73500-RESIDENTIAL,LEARNING DISABILITY SUPPORT,Third Party Payments,Revenue
Walsall Council,http://opendatacommunities.org/id/metropolitan-district-council/walsall,WC113-156,29/02/2020,Adult Social Care,ACCORD HOUSING ASSOCIATION LIMITED - HOBS MEADOW,03/02/2020,"4,550.44",73500-RESIDENTIAL,LEARNING DISABILITY SUPPORT,Third Party Payments,Revenue
Walsall Council,http://opendatacommunities.org/id/metropolitan-district-council/walsall,WC113-157,29/02/2020,Adult Social Care,ACCORD HOUSING ASSOCIATION LIMITED - HOBS MEADOW,27/02/2020,"4,550.44",73500-RESIDENTIAL,LEARNING DISABILITY SUPPORT,Third Party Payments,Revenue
Walsall Council,http://opendatacommunities.org/id/metropolitan-district-council/walsall,WC113-158,29/02/2020,Adult Social Care,ACCORD HOUSING ASSOCIATION LIMITED - HOBS MEADOW,27/02/2020,"4,550.44",73500-RESIDENTIAL,LEARNING DISABILITY SUPPORT,Third Party Payments,Revenue
Walsall Council,http://opendatacommunities.org/id/metropolitan-district-council/walsall,WC113-159,29/02/2020,Adult Social Care,ACCORD HOUSING ASSOCIATION LIMITED - HOBS MEADOW,27/02/2020,"4,550.44",73500-RESIDENTIAL,LEARNING DISABILITY SUPPORT,Third Party Payments,Revenue
Walsall Council,http://opendatacommunities.org/id/metropolitan-district-council/walsall,WC113-160,29/02/2020,Adult Social Care,ACCORD HOUSING ASSOCIATION LIMITED - HOBS MEADOW,27/02/2020,"4,550.44",73500-RESIDENTIAL,LEARNING DISABILITY SUPPORT,Third Party Payments,Revenue
Walsall Council,http://opendatacommunities.org/id/metropolitan-district-council/walsall,WC113-161,29/02/2020,Adult Social Care,ACCORD HOUSING ASSOCIATION LTD#135,14/02/2020,302.24,73508-COMMUNITY SUPPORTED LIVING/SUPPORTED ACCOMMODATION,PHYSICAL SUPPORT,Third Party Payments,Revenue
Walsall Council,http://opendatacommunities.org/id/metropolitan-district-council/walsall,WC113-162,29/02/2020,Adult Social Care,ACCORD HOUSING ASSOCIATION LTD#135,03/02/2020,334.32,73507-DOMICILIARY CARE,PHYSICAL SUPPORT,Third Party Payments,Revenue
Walsall Council,http://opendatacommunities.org/id/metropolitan-district-council/walsall,WC113-163,29/02/2020,Adult Social Care,ACCORD HOUSING ASSOCIATION LTD#135,03/02/2020,334.32,73507-DOMICILIARY CARE,PHYSICAL SUPPORT,Third Party Payments,Revenue
Walsall Council,http://opendatacommunities.org/id/metropolitan-district-council/walsall,WC113-164,29/02/2020,Adult Social Care,ACCORD HOUSING ASSOCIATION LTD#135,03/02/2020,334.32,73507-DOMICILIARY CARE,PHYSICAL SUPPORT,Third Party Payments,Revenue
Walsall Council,http://opendatacommunities.org/id/metropolitan-district-council/walsall,WC113-165,29/02/2020,Adult Social Care,ACCORD HOUSING ASSOCIATION LTD#135,03/02/2020,400.68,73507-DOMICILIARY CARE,PHYSICAL SUPPORT,Third Party Payments,Revenue
Walsall Council,http://opendatacommunities.org/id/metropolitan-district-council/walsall,WC113-166,29/02/2020,Adult Social Care,ACCORD HOUSING ASSOCIATION LTD#135,03/02/2020,400.68,73507-DOMICILIARY CARE,MENTAL HEALTH SUPPORT,Third Party Payments,Revenue
Walsall Council,http://opendatacommunities.org/id/metropolitan-district-council/walsall,WC113-167,29/02/2020,Adult Social Care,ACCORD HOUSING ASSOCIATION LTD#135,03/02/2020,400.68,73507-DOMICILIARY CARE,PHYSICAL SUPPORT,Third Party Payments,Revenue
Walsall Council,http://opendatacommunities.org/id/metropolitan-district-council/walsall,WC113-168,29/02/2020,Adult Social Care,ACCORD HOUSING ASSOCIATION LTD#135,03/02/2020,400.68,73507-DOMICILIARY CARE,MENTAL HEALTH SUPPORT,Third Party Payments,Revenue
Walsall Council,http://opendatacommunities.org/id/metropolitan-district-council/walsall,WC113-169,29/02/2020,Adult Social Care,ACCORD HOUSING ASSOCIATION LTD#135,03/02/2020,400.68,73507-DOMICILIARY CARE,PHYSICAL SUPPORT,Third Party Payments,Revenue
Walsall Council,http://opendatacommunities.org/id/metropolitan-district-council/walsall,WC113-170,29/02/2020,Adult Social Care,ACCORD HOUSING ASSOCIATION LTD#135,03/02/2020,400.68,73507-DOMICILIARY CARE,MENTAL HEALTH SUPPORT,Third Party Payments,Revenue
Walsall Council,http://opendatacommunities.org/id/metropolitan-district-council/walsall,WC113-171,29/02/2020,Adult Social Care,ACCORD HOUSING ASSOCIATION LTD#135,03/02/2020,429.69,73507-DOMICILIARY CARE,PHYSICAL SUPPORT,Third Party Payments,Revenue
Walsall Council,http://opendatacommunities.org/id/metropolitan-district-council/walsall,WC113-172,29/02/2020,Adult Social Care,ACCORD HOUSING ASSOCIATION LTD#135,03/02/2020,458.04,73507-DOMICILIARY CARE,MENTAL HEALTH SUPPORT,Third Party Payments,Revenue
Walsall Council,http://opendatacommunities.org/id/metropolitan-district-council/walsall,WC113-173,29/02/2020,Adult Social Care,ACCORD HOUSING ASSOCIATION LTD#135,03/02/2020,458.04,73507-DOMICILIARY CARE,MENTAL HEALTH SUPPORT,Third Party Payments,Revenue
Walsall Council,http://opendatacommunities.org/id/metropolitan-district-council/walsall,WC113-174,29/02/2020,Adult Social Care,ACCORD HOUSING ASSOCIATION LTD#135,03/02/2020,467.88,73507-DOMICILIARY CARE,PHYSICAL SUPPORT,Third Party Payments,Revenue
Walsall Council,http://opendatacommunities.org/id/metropolitan-district-council/walsall,WC113-175,29/02/2020,Adult Social Care,ACCORD HOUSING ASSOCIATION LTD#135,03/02/2020,486.68,73507-DOMICILIARY CARE,LEARNING DISABILITY SUPPORT,Third Party Payments,Revenue
Walsall Council,http://opendatacommunities.org/id/metropolitan-district-council/walsall,WC113-176,29/02/2020,Adult Social Care,ACCORD HOUSING ASSOCIATION LTD#135,03/02/2020,501.76,73507-DOMICILIARY CARE,MENTAL HEALTH SUPPORT,Third Party Payments,Revenue
Walsall Council,http://opendatacommunities.org/id/metropolitan-district-council/walsall,WC113-177,29/02/2020,Adult Social Care,ACCORD HOUSING ASSOCIATION LTD#135,03/02/2020,501.76,73507-DOMICILIARY CARE,MENTAL HEALTH SUPPORT,Third Party Payments,Revenue
Walsall Council,http://opendatacommunities.org/id/metropolitan-district-council/walsall,WC113-178,29/02/2020,Adult Social Care,ACCORD HOUSING ASSOCIATION LTD#135,03/02/2020,501.76,73507-DOMICILIARY CARE,MENTAL HEALTH SUPPORT,Third Party Payments,Revenue
Walsall Council,http://opendatacommunities.org/id/metropolitan-district-council/walsall,WC113-179,29/02/2020,Adult Social Care,ACCORD HOUSING ASSOCIATION LTD#135,03/02/2020,534.24,73507-DOMICILIARY CARE,PHYSICAL SUPPORT,Third Party Payments,Revenue
Walsall Council,http://opendatacommunities.org/id/metropolitan-district-council/walsall,WC113-180,29/02/2020,Adult Social Care,ACCORD HOUSING ASSOCIATION LTD#135,03/02/2020,534.24,73507-DOMICILIARY CARE,PHYSICAL SUPPORT,Third Party Payments,Revenue
Walsall Council,http://opendatacommunities.org/id/metropolitan-district-council/walsall,WC113-181,29/02/2020,Adult Social Care,ACCORD HOUSING ASSOCIATION LTD#135,03/02/2020,534.24,73507-DOMICILIARY CARE,PHYSICAL SUPPORT,Third Party Payments,Revenue
Walsall Council,http://opendatacommunities.org/id/metropolitan-district-council/walsall,WC113-182,29/02/2020,Adult Social Care,ACCORD HOUSING ASSOCIATION LTD#135,03/02/2020,601.44,73507-DOMICILIARY CARE,PHYSICAL SUPPORT,Third Party Payments,Revenue
Walsall Council,http://opendatacommunities.org/id/metropolitan-district-council/walsall,WC113-183,29/02/2020,Adult Social Care,ACCORD HOUSING ASSOCIATION LTD#135,03/02/2020,601.44,73507-DOMICILIARY CARE,PHYSICAL SUPPORT,Third Party Payments,Revenue
Walsall Council,http://opendatacommunities.org/id/metropolitan-district-council/walsall,WC113-184,29/02/2020,Adult Social Care,ACCORD HOUSING ASSOCIATION LTD#135,03/02/2020,601.44,73507-DOMICILIARY CARE,PHYSICAL SUPPORT,Third Party Payments,Revenue
Walsall Council,http://opendatacommunities.org/id/metropolitan-district-council/walsall,WC113-185,29/02/2020,Adult Social Care,ACCORD HOUSING ASSOCIATION LTD#135,03/02/2020,602.28,73507-DOMICILIARY CARE,SENSORY SUPPORT,Third Party Payments,Revenue
Walsall Council,http://opendatacommunities.org/id/metropolitan-district-council/walsall,WC113-186,29/02/2020,Adult Social Care,ACCORD HOUSING ASSOCIATION LTD#135,03/02/2020,602.28,73507-DOMICILIARY CARE,SENSORY SUPPORT,Third Party Payments,Revenue
Walsall Council,http://opendatacommunities.org/id/metropolitan-district-council/walsall,WC113-187,29/02/2020,Adult Social Care,ACCORD HOUSING ASSOCIATION LTD#135,03/02/2020,602.28,73507-DOMICILIARY CARE,SENSORY SUPPORT,Third Party Payments,Revenue
Walsall Council,http://opendatacommunities.org/id/metropolitan-district-council/walsall,WC113-188,29/02/2020,Adult Social Care,ACCORD HOUSING ASSOCIATION LTD#135,03/02/2020,604.48,73508-COMMUNITY SUPPORTED LIVING/SUPPORTED ACCOMMODATION,MENTAL HEALTH SUPPORT,Third Party Payments,Revenue
Walsall Council,http://opendatacommunities.org/id/metropolitan-district-council/walsall,WC113-189,29/02/2020,Adult Social Care,ACCORD HOUSING ASSOCIATION LTD#135,03/02/2020,604.48,73508-COMMUNITY SUPPORTED LIVING/SUPPORTED ACCOMMODATION,MENTAL HEALTH SUPPORT,Third Party Payments,Revenue
Walsall Council,http://opendatacommunities.org/id/metropolitan-district-council/walsall,WC113-190,29/02/2020,Adult Social Care,ACCORD HOUSING ASSOCIATION LTD#135,03/02/2020,604.48,73508-COMMUNITY SUPPORTED LIVING/SUPPORTED ACCOMMODATION,MENTAL HEALTH SUPPORT,Third Party Payments,Revenue
Walsall Council,http://opendatacommunities.org/id/metropolitan-district-council/walsall,WC113-191,29/02/2020,Adult Social Care,ACCORD HOUSING ASSOCIATION LTD#135,03/02/2020,604.48,73508-COMMUNITY SUPPORTED LIVING/SUPPORTED ACCOMMODATION,MENTAL HEALTH SUPPORT,Third Party Payments,Revenue
Walsall Council,http://opendatacommunities.org/id/metropolitan-district-council/walsall,WC113-192,29/02/2020,Adult Social Care,ACCORD HOUSING ASSOCIATION LTD#135,03/02/2020,604.48,73508-COMMUNITY SUPPORTED LIVING/SUPPORTED ACCOMMODATION,MENTAL HEALTH SUPPORT,Third Party Payments,Revenue
Walsall Council,http://opendatacommunities.org/id/metropolitan-district-council/walsall,WC113-193,29/02/2020,Adult Social Care,ACCORD HOUSING ASSOCIATION LTD#135,03/02/2020,604.48,73508-COMMUNITY SUPPORTED LIVING/SUPPORTED ACCOMMODATION,MENTAL HEALTH SUPPORT,Third Party Payments,Revenue
Walsall Council,http://opendatacommunities.org/id/metropolitan-district-council/walsall,WC113-194,29/02/2020,Adult Social Care,ACCORD HOUSING ASSOCIATION LTD#135,03/02/2020,604.48,73508-COMMUNITY SUPPORTED LIVING/SUPPORTED ACCOMMODATION,MENTAL HEALTH SUPPORT,Third Party Payments,Revenue
Walsall Council,http://opendatacommunities.org/id/metropolitan-district-council/walsall,WC113-195,29/02/2020,Adult Social Care,ACCORD HOUSING ASSOCIATION LTD#135,14/02/2020,604.48,73508-COMMUNITY SUPPORTED LIVING/SUPPORTED ACCOMMODATION,PHYSICAL SUPPORT,Third Party Payments,Revenue
Walsall Council,http://opendatacommunities.org/id/metropolitan-district-council/walsall,WC113-196,29/02/2020,Adult Social Care,ACCORD HOUSING ASSOCIATION LTD#135,14/02/2020,604.48,73508-COMMUNITY SUPPORTED LIVING/SUPPORTED ACCOMMODATION,PHYSICAL SUPPORT,Third Party Payments,Revenue
Walsall Council,http://opendatacommunities.org/id/metropolitan-district-council/walsall,WC113-197,29/02/2020,Adult Social Care,ACCORD HOUSING ASSOCIATION LTD#135,14/02/2020,604.48,73508-COMMUNITY SUPPORTED LIVING/SUPPORTED ACCOMMODATION,PHYSICAL SUPPORT,Third Party Payments,Revenue
Walsall Council,http://opendatacommunities.org/id/metropolitan-district-council/walsall,WC113-198,29/02/2020,Adult Social Care,ACCORD HOUSING ASSOCIATION LTD#135,14/02/2020,604.48,73508-COMMUNITY SUPPORTED LIVING/SUPPORTED ACCOMMODATION,PHYSICAL SUPPORT,Third Party Payments,Revenue
Walsall Council,http://opendatacommunities.org/id/metropolitan-district-council/walsall,WC113-199,29/02/2020,Adult Social Care,ACCORD HOUSING ASSOCIATION LTD#135,14/02/2020,604.48,73508-COMMUNITY SUPPORTED LIVING/SUPPORTED ACCOMMODATION,PHYSICAL SUPPORT,Third Party Payments,Revenue
Walsall Council,http://opendatacommunities.org/id/metropolitan-district-council/walsall,WC113-200,29/02/2020,Adult Social Care,ACCORD HOUSING ASSOCIATION LTD#135,14/02/2020,604.48,73508-COMMUNITY SUPPORTED LIVING/SUPPORTED ACCOMMODATION,PHYSICAL SUPPORT,Third Party Payments,Revenue
Walsall Council,http://opendatacommunities.org/id/metropolitan-district-council/walsall,WC113-201,29/02/2020,Adult Social Care,ACCORD HOUSING ASSOCIATION LTD#135,14/02/2020,604.48,73508-COMMUNITY SUPPORTED LIVING/SUPPORTED ACCOMMODATION,PHYSICAL SUPPORT,Third Party Payments,Revenue
Walsall Council,http://opendatacommunities.org/id/metropolitan-district-council/walsall,WC113-202,29/02/2020,Adult Social Care,ACCORD HOUSING ASSOCIATION LTD#135,14/02/2020,604.48,73508-COMMUNITY SUPPORTED LIVING/SUPPORTED ACCOMMODATION,PHYSICAL SUPPORT,Third Party Payments,Revenue
Walsall Council,http://opendatacommunities.org/id/metropolitan-district-council/walsall,WC113-203,29/02/2020,Adult Social Care,ACCORD HOUSING ASSOCIATION LTD#135,14/02/2020,604.48,73508-COMMUNITY SUPPORTED LIVING/SUPPORTED ACCOMMODATION,PHYSICAL SUPPORT,Third Party Payments,Revenue
Walsall Council,http://opendatacommunities.org/id/metropolitan-district-council/walsall,WC113-204,29/02/2020,Adult Social Care,ACCORD HOUSING ASSOCIATION LTD#135,14/02/2020,604.48,73508-COMMUNITY SUPPORTED LIVING/SUPPORTED ACCOMMODATION,PHYSICAL SUPPORT,Third Party Payments,Revenue
Walsall Council,http://opendatacommunities.org/id/metropolitan-district-council/walsall,WC113-205,29/02/2020,Adult Social Care,ACCORD HOUSING ASSOCIATION LTD#135,14/02/2020,604.48,73508-COMMUNITY SUPPORTED LIVING/SUPPORTED ACCOMMODATION,PHYSICAL SUPPORT,Third Party Payments,Revenue
Walsall Council,http://opendatacommunities.org/id/metropolitan-district-council/walsall,WC113-206,29/02/2020,Adult Social Care,ACCORD HOUSING ASSOCIATION LTD#135,14/02/2020,604.48,73508-COMMUNITY SUPPORTED LIVING/SUPPORTED ACCOMMODATION,PHYSICAL SUPPORT,Third Party Payments,Revenue
Walsall Council,http://opendatacommunities.org/id/metropolitan-district-council/walsall,WC113-207,29/02/2020,Adult Social Care,ACCORD HOUSING ASSOCIATION LTD#135,14/02/2020,604.48,73508-COMMUNITY SUPPORTED LIVING/SUPPORTED ACCOMMODATION,PHYSICAL SUPPORT,Third Party Payments,Revenue
Walsall Council,http://opendatacommunities.org/id/metropolitan-district-council/walsall,WC113-208,29/02/2020,Adult Social Care,ACCORD HOUSING ASSOCIATION LTD#135,14/02/2020,604.48,73508-COMMUNITY SUPPORTED LIVING/SUPPORTED ACCOMMODATION,PHYSICAL SUPPORT,Third Party Payments,Revenue
Walsall Council,http://opendatacommunities.org/id/metropolitan-district-council/walsall,WC113-209,29/02/2020,Adult Social Care,ACCORD HOUSING ASSOCIATION LTD#135,03/02/2020,642.24,73508-COMMUNITY SUPPORTED LIVING/SUPPORTED ACCOMMODATION,MENTAL HEALTH SUPPORT,Third Party Payments,Revenue
Walsall Council,http://opendatacommunities.org/id/metropolitan-district-council/walsall,WC113-210,29/02/2020,Adult Social Care,ACCORD HOUSING ASSOCIATION LTD#135,03/02/2020,642.24,73508-COMMUNITY SUPPORTED LIVING/SUPPORTED ACCOMMODATION,MENTAL HEALTH SUPPORT,Third Party Payments,Revenue
Walsall Council,http://opendatacommunities.org/id/metropolitan-district-council/walsall,WC113-211,29/02/2020,Adult Social Care,ACCORD HOUSING ASSOCIATION LTD#135,03/02/2020,642.24,73508-COMMUNITY SUPPORTED LIVING/SUPPORTED ACCOMMODATION,MENTAL HEALTH SUPPORT,Third Party Payments,Revenue
Walsall Council,http://opendatacommunities.org/id/metropolitan-district-council/walsall,WC113-212,29/02/2020,Adult Social Care,ACCORD HOUSING ASSOCIATION LTD#135,14/02/2020,661.12,73508-COMMUNITY SUPPORTED LIVING/SUPPORTED ACCOMMODATION,MENTAL HEALTH SUPPORT,Third Party Payments,Revenue
Walsall Council,http://opendatacommunities.org/id/metropolitan-district-council/walsall,WC113-213,29/02/2020,Adult Social Care,ACCORD HOUSING ASSOCIATION LTD#135,14/02/2020,661.12,73508-COMMUNITY SUPPORTED LIVING/SUPPORTED ACCOMMODATION,MENTAL HEALTH SUPPORT,Third Party Payments,Revenue
Walsall Council,http://opendatacommunities.org/id/metropolitan-district-council/walsall,WC113-214,29/02/2020,Adult Social Care,ACCORD HOUSING ASSOCIATION LTD#135,14/02/2020,661.12,73508-COMMUNITY SUPPORTED LIVING/SUPPORTED ACCOMMODATION,MENTAL HEALTH SUPPORT,Third Party Payments,Revenue
Walsall Council,http://opendatacommunities.org/id/metropolitan-district-council/walsall,WC113-215,29/02/2020,Adult Social Care,ACCORD HOUSING ASSOCIATION LTD#135,14/02/2020,661.12,73508-COMMUNITY SUPPORTED LIVING/SUPPORTED ACCOMMODATION,MENTAL HEALTH SUPPORT,Third Party Payments,Revenue
Walsall Council,http://opendatacommunities.org/id/metropolitan-district-council/walsall,WC113-216,29/02/2020,Adult Social Care,ACCORD HOUSING ASSOCIATION LTD#135,14/02/2020,661.12,73508-COMMUNITY SUPPORTED LIVING/SUPPORTED ACCOMMODATION,MENTAL HEALTH SUPPORT,Third Party Payments,Revenue
Walsall Council,http://opendatacommunities.org/id/metropolitan-district-council/walsall,WC113-217,29/02/2020,Adult Social Care,ACCORD HOUSING ASSOCIATION LTD#135,14/02/2020,661.12,73508-COMMUNITY SUPPORTED LIVING/SUPPORTED ACCOMMODATION,MENTAL HEALTH SUPPORT,Third Party Payments,Revenue
Walsall Council,http://opendatacommunities.org/id/metropolitan-district-council/walsall,WC113-218,29/02/2020,Adult Social Care,ACCORD HOUSING ASSOCIATION LTD#135,14/02/2020,661.12,73508-COMMUNITY SUPPORTED LIVING/SUPPORTED ACCOMMODATION,MENTAL HEALTH SUPPORT,Third Party Payments,Revenue
Walsall Council,http://opendatacommunities.org/id/metropolitan-district-council/walsall,WC113-219,29/02/2020,Adult Social Care,ACCORD HOUSING ASSOCIATION LTD#135,14/02/2020,661.12,73508-COMMUNITY SUPPORTED LIVING/SUPPORTED ACCOMMODATION,MENTAL HEALTH SUPPORT,Third Party Payments,Revenue
Walsall Council,http://opendatacommunities.org/id/metropolitan-district-council/walsall,WC113-220,29/02/2020,Adult Social Care,ACCORD HOUSING ASSOCIATION LTD#135,14/02/2020,661.12,73508-COMMUNITY SUPPORTED LIVING/SUPPORTED ACCOMMODATION,MENTAL HEALTH SUPPORT,Third Party Payments,Revenue
Walsall Council,http://opendatacommunities.org/id/metropolitan-district-council/walsall,WC113-221,29/02/2020,Adult Social Care,ACCORD HOUSING ASSOCIATION LTD#135,14/02/2020,661.12,73508-COMMUNITY SUPPORTED LIVING/SUPPORTED ACCOMMODATION,MENTAL HEALTH SUPPORT,Third Party Payments,Revenue
Walsall Council,http://opendatacommunities.org/id/metropolitan-district-council/walsall,WC113-222,29/02/2020,Adult Social Care,ACCORD HOUSING ASSOCIATION LTD#135,03/02/2020,668.64,73507-DOMICILIARY CARE,MENTAL HEALTH SUPPORT,Third Party Payments,Revenue
Walsall Council,http://opendatacommunities.org/id/metropolitan-district-council/walsall,WC113-223,29/02/2020,Adult Social Care,ACCORD HOUSING ASSOCIATION LTD#135,03/02/2020,668.64,73507-DOMICILIARY CARE,PHYSICAL SUPPORT,Third Party Payments,Revenue
Walsall Council,http://opendatacommunities.org/id/metropolitan-district-council/walsall,WC113-224,29/02/2020,Adult Social Care,ACCORD HOUSING ASSOCIATION LTD#135,03/02/2020,668.64,73507-DOMICILIARY CARE,PHYSICAL SUPPORT,Third Party Payments,Revenue
Walsall Council,http://opendatacommunities.org/id/metropolitan-district-council/walsall,WC113-225,29/02/2020,Adult Social Care,ACCORD HOUSING ASSOCIATION LTD#135,03/02/2020,668.64,73507-DOMICILIARY CARE,MENTAL HEALTH SUPPORT,Third Party Payments,Revenue
Walsall Council,http://opendatacommunities.org/id/metropolitan-district-council/walsall,WC113-226,29/02/2020,Adult Social Care,ACCORD HOUSING ASSOCIATION LTD#135,03/02/2020,680.04,73508-COMMUNITY SUPPORTED LIVING/SUPPORTED ACCOMMODATION,MENTAL HEALTH SUPPORT,Third Party Payments,Revenue
Walsall Council,http://opendatacommunities.org/id/metropolitan-district-council/walsall,WC113-227,29/02/2020,Adult Social Care,ACCORD HOUSING ASSOCIATION LTD#135,03/02/2020,680.04,73508-COMMUNITY SUPPORTED LIVING/SUPPORTED ACCOMMODATION,MENTAL HEALTH SUPPORT,Third Party Payments,Revenue
Walsall Council,http://opendatacommunities.org/id/metropolitan-district-council/walsall,WC113-228,29/02/2020,Adult Social Care,ACCORD HOUSING ASSOCIATION LTD#135,03/02/2020,680.04,73508-COMMUNITY SUPPORTED LIVING/SUPPORTED ACCOMMODATION,MENTAL HEALTH SUPPORT,Third Party Payments,Revenue
Walsall Council,http://opendatacommunities.org/id/metropolitan-district-council/walsall,WC113-229,29/02/2020,Adult Social Care,ACCORD HOUSING ASSOCIATION LTD#135,03/02/2020,701.68,73507-DOMICILIARY CARE,PHYSICAL SUPPORT,Third Party Payments,Revenue
Walsall Council,http://opendatacommunities.org/id/metropolitan-district-council/walsall,WC113-230,29/02/2020,Adult Social Care,ACCORD HOUSING ASSOCIATION LTD#135,03/02/2020,717.80,73508-COMMUNITY SUPPORTED LIVING/SUPPORTED ACCOMMODATION,MENTAL HEALTH SUPPORT,Third Party Payments,Revenue
Walsall Council,http://opendatacommunities.org/id/metropolitan-district-council/walsall,WC113-231,29/02/2020,Adult Social Care,ACCORD HOUSING ASSOCIATION LTD#135,03/02/2020,717.80,73508-COMMUNITY SUPPORTED LIVING/SUPPORTED ACCOMMODATION,MENTAL HEALTH SUPPORT,Third Party Payments,Revenue
Walsall Council,http://opendatacommunities.org/id/metropolitan-district-council/walsall,WC113-232,29/02/2020,Adult Social Care,ACCORD HOUSING ASSOCIATION LTD#135,03/02/2020,717.80,73508-COMMUNITY SUPPORTED LIVING/SUPPORTED ACCOMMODATION,MENTAL HEALTH SUPPORT,Third Party Payments,Revenue
Walsall Council,http://opendatacommunities.org/id/metropolitan-district-council/walsall,WC113-233,29/02/2020,Adult Social Care,ACCORD HOUSING ASSOCIATION LTD#135,03/02/2020,717.80,73508-COMMUNITY SUPPORTED LIVING/SUPPORTED ACCOMMODATION,MENTAL HEALTH SUPPORT,Third Party Payments,Revenue
Walsall Council,http://opendatacommunities.org/id/metropolitan-district-council/walsall,WC113-234,29/02/2020,Adult Social Care,ACCORD HOUSING ASSOCIATION LTD#135,03/02/2020,717.80,73508-COMMUNITY SUPPORTED LIVING/SUPPORTED ACCOMMODATION,MENTAL HEALTH SUPPORT,Third Party Payments,Revenue
Walsall Council,http://opendatacommunities.org/id/metropolitan-district-council/walsall,WC113-235,29/02/2020,Adult Social Care,ACCORD HOUSING ASSOCIATION LTD#135,03/02/2020,717.80,73508-COMMUNITY SUPPORTED LIVING/SUPPORTED ACCOMMODATION,MENTAL HEALTH SUPPORT,Third Party Payments,Revenue
Walsall Council,http://opendatacommunities.org/id/metropolitan-district-council/walsall,WC113-236,29/02/2020,Adult Social Care,ACCORD HOUSING ASSOCIATION LTD#135,03/02/2020,755.60,73508-COMMUNITY SUPPORTED LIVING/SUPPORTED ACCOMMODATION,MENTAL HEALTH SUPPORT,Third Party Payments,Revenue
Walsall Council,http://opendatacommunities.org/id/metropolitan-district-council/walsall,WC113-237,29/02/2020,Adult Social Care,ACCORD HOUSING ASSOCIATION LTD#135,03/02/2020,755.60,73508-COMMUNITY SUPPORTED LIVING/SUPPORTED ACCOMMODATION,MENTAL HEALTH SUPPORT,Third Party Payments,Revenue
Walsall Council,http://opendatacommunities.org/id/metropolitan-district-council/walsall,WC113-238,29/02/2020,Adult Social Care,ACCORD HOUSING ASSOCIATION LTD#135,03/02/2020,755.60,73508-COMMUNITY SUPPORTED LIVING/SUPPORTED ACCOMMODATION,MENTAL HEALTH SUPPORT,Third Party Payments,Revenue
Walsall Council,http://opendatacommunities.org/id/metropolitan-district-council/walsall,WC113-239,29/02/2020,Adult Social Care,ACCORD HOUSING ASSOCIATION LTD#135,14/02/2020,755.60,73508-COMMUNITY SUPPORTED LIVING/SUPPORTED ACCOMMODATION,PHYSICAL SUPPORT,Third Party Payments,Revenue
Walsall Council,http://opendatacommunities.org/id/metropolitan-district-council/walsall,WC113-240,29/02/2020,Adult Social Care,ACCORD HOUSING ASSOCIATION LTD#135,14/02/2020,755.60,73508-COMMUNITY SUPPORTED LIVING/SUPPORTED ACCOMMODATION,PHYSICAL SUPPORT,Third Party Payments,Revenue
Walsall Council,http://opendatacommunities.org/id/metropolitan-district-council/walsall,WC113-241,29/02/2020,Adult Social Care,ACCORD HOUSING ASSOCIATION LTD#135,03/02/2020,768.88,73507-DOMICILIARY CARE,PHYSICAL SUPPORT,Third Party Payments,Revenue
Walsall Council,http://opendatacommunities.org/id/metropolitan-district-council/walsall,WC113-242,29/02/2020,Adult Social Care,ACCORD HOUSING ASSOCIATION LTD#135,14/02/2020,793.36,73508-COMMUNITY SUPPORTED LIVING/SUPPORTED ACCOMMODATION,MENTAL HEALTH SUPPORT,Third Party Payments,Revenue
Walsall Council,http://opendatacommunities.org/id/metropolitan-district-council/walsall,WC113-243,29/02/2020,Adult Social Care,ACCORD HOUSING ASSOCIATION LTD#135,03/02/2020,803.04,73507-DOMICILIARY CARE,PHYSICAL SUPPORT,Third Party Payments,Revenue
Walsall Council,http://opendatacommunities.org/id/metropolitan-district-council/walsall,WC113-244,29/02/2020,Adult Social Care,ACCORD HOUSING ASSOCIATION LTD#135,03/02/2020,836.08,73507-DOMICILIARY CARE,PHYSICAL SUPPORT,Third Party Payments,Revenue
Walsall Council,http://opendatacommunities.org/id/metropolitan-district-council/walsall,WC113-245,29/02/2020,Adult Social Care,ACCORD HOUSING ASSOCIATION LTD#135,03/02/2020,836.08,73507-DOMICILIARY CARE,PHYSICAL SUPPORT,Third Party Payments,Revenue
Walsall Council,http://opendatacommunities.org/id/metropolitan-district-council/walsall,WC113-246,29/02/2020,Adult Social Care,ACCORD HOUSING ASSOCIATION LTD#135,03/02/2020,850.04,73508-COMMUNITY SUPPORTED LIVING/SUPPORTED ACCOMMODATION,MENTAL HEALTH SUPPORT,Third Party Payments,Revenue
Walsall Council,http://opendatacommunities.org/id/metropolitan-district-council/walsall,WC113-247,29/02/2020,Adult Social Care,ACCORD HOUSING ASSOCIATION LTD#135,03/02/2020,850.04,73508-COMMUNITY SUPPORTED LIVING/SUPPORTED ACCOMMODATION,MENTAL HEALTH SUPPORT,Third Party Payments,Revenue
Walsall Council,http://opendatacommunities.org/id/metropolitan-district-council/walsall,WC113-248,29/02/2020,Adult Social Care,ACCORD HOUSING ASSOCIATION LTD#135,03/02/2020,850.04,73508-COMMUNITY SUPPORTED LIVING/SUPPORTED ACCOMMODATION,MENTAL HEALTH SUPPORT,Third Party Payments,Revenue
Walsall Council,http://opendatacommunities.org/id/metropolitan-district-council/walsall,WC113-249,29/02/2020,Adult Social Care,ACCORD HOUSING ASSOCIATION LTD#135,03/02/2020,888.89,73508-COMMUNITY SUPPORTED LIVING/SUPPORTED ACCOMMODATION,LEARNING DISABILITY SUPPORT,Third Party Payments,Revenue
Walsall Council,http://opendatacommunities.org/id/metropolitan-district-council/walsall,WC113-250,29/02/2020,Adult Social Care,ACCORD HOUSING ASSOCIATION LTD#135,03/02/2020,917.63,73508-COMMUNITY SUPPORTED LIVING/SUPPORTED ACCOMMODATION,LEARNING DISABILITY SUPPORT,Third Party Payments,Revenue
Walsall Council,http://opendatacommunities.org/id/metropolitan-district-council/walsall,WC113-251,29/02/2020,Adult Social Care,ACCORD HOUSING ASSOCIATION LTD#135,03/02/2020,932.94,73507-DOMICILIARY CARE,PHYSICAL SUPPORT,Third Party Payments,Revenue
Walsall Council,http://opendatacommunities.org/id/metropolitan-district-council/walsall,WC113-252,29/02/2020,Adult Social Care,ACCORD HOUSING ASSOCIATION LTD#135,03/02/2020,982.28,73508-COMMUNITY SUPPORTED LIVING/SUPPORTED ACCOMMODATION,MENTAL HEALTH SUPPORT,Third Party Payments,Revenue
Walsall Council,http://opendatacommunities.org/id/metropolitan-district-council/walsall,WC113-253,29/02/2020,Adult Social Care,ACCORD HOUSING ASSOCIATION LTD#135,03/02/2020,982.28,73508-COMMUNITY SUPPORTED LIVING/SUPPORTED ACCOMMODATION,MENTAL HEALTH SUPPORT,Third Party Payments,Revenue
Walsall Council,http://opendatacommunities.org/id/metropolitan-district-council/walsall,WC113-254,29/02/2020,Adult Social Care,ACCORD HOUSING ASSOCIATION LTD#135,03/02/2020,982.28,73508-COMMUNITY SUPPORTED LIVING/SUPPORTED ACCOMMODATION,MENTAL HEALTH SUPPORT,Third Party Payments,Revenue
Walsall Council,http://opendatacommunities.org/id/metropolitan-district-council/walsall,WC113-255,29/02/2020,Adult Social Care,ACCORD HOUSING ASSOCIATION LTD#135,14/02/2020,"1,009.12",73508-COMMUNITY SUPPORTED LIVING/SUPPORTED ACCOMMODATION,MENTAL HEALTH SUPPORT,Third Party Payments,Revenue
Walsall Council,http://opendatacommunities.org/id/metropolitan-district-council/walsall,WC113-256,29/02/2020,Adult Social Care,ACCORD HOUSING ASSOCIATION LTD#135,03/02/2020,"1,131.18",73507-DOMICILIARY CARE,PHYSICAL SUPPORT,Third Party Payments,Revenue
Walsall Council,http://opendatacommunities.org/id/metropolitan-district-council/walsall,WC113-257,29/02/2020,Adult Social Care,ACCORD HOUSING ASSOCIATION LTD#135,14/02/2020,"1,133.40",73508-COMMUNITY SUPPORTED LIVING/SUPPORTED ACCOMMODATION,MENTAL HEALTH SUPPORT,Third Party Payments,Revenue
Walsall Council,http://opendatacommunities.org/id/metropolitan-district-council/walsall,WC113-258,29/02/2020,Adult Social Care,ACCORD HOUSING ASSOCIATION LTD#135,03/02/2020,"1,202.88",73507-DOMICILIARY CARE,PHYSICAL SUPPORT,Third Party Payments,Revenue
Walsall Council,http://opendatacommunities.org/id/metropolitan-district-council/walsall,WC113-259,29/02/2020,Adult Social Care,ACCORD HOUSING ASSOCIATION LTD#135,03/02/2020,"1,244.32",73507-DOMICILIARY CARE,PHYSICAL SUPPORT,Third Party Payments,Revenue
Walsall Council,http://opendatacommunities.org/id/metropolitan-district-council/walsall,WC113-260,29/02/2020,Adult Social Care,ACCORD HOUSING ASSOCIATION LTD#135,03/02/2020,"1,278.95",73507-DOMICILIARY CARE,PHYSICAL SUPPORT,Third Party Payments,Revenue
Walsall Council,http://opendatacommunities.org/id/metropolitan-district-council/walsall,WC113-261,29/02/2020,Adult Social Care,ACCORD HOUSING ASSOCIATION LTD#135,14/02/2020,"1,322.28",73508-COMMUNITY SUPPORTED LIVING/SUPPORTED ACCOMMODATION,MENTAL HEALTH SUPPORT,Third Party Payments,Revenue
Walsall Council,http://opendatacommunities.org/id/metropolitan-district-council/walsall,WC113-262,29/02/2020,Adult Social Care,ACCORD HOUSING ASSOCIATION LTD#135,14/02/2020,"1,322.28",73508-COMMUNITY SUPPORTED LIVING/SUPPORTED ACCOMMODATION,MENTAL HEALTH SUPPORT,Third Party Payments,Revenue
Walsall Council,http://opendatacommunities.org/id/metropolitan-district-council/walsall,WC113-263,29/02/2020,Adult Social Care,ACCORD HOUSING ASSOCIATION LTD#135,14/02/2020,"1,322.28",73508-COMMUNITY SUPPORTED LIVING/SUPPORTED ACCOMMODATION,MENTAL HEALTH SUPPORT,Third Party Payments,Revenue
Walsall Council,http://opendatacommunities.org/id/metropolitan-district-council/walsall,WC113-264,29/02/2020,Adult Social Care,ACCORD HOUSING ASSOCIATION LTD#135,03/02/2020,"1,337.28",73507-DOMICILIARY CARE,PHYSICAL SUPPORT,Third Party Payments,Revenue
Walsall Council,http://opendatacommunities.org/id/metropolitan-district-council/walsall,WC113-265,29/02/2020,Adult Social Care,ACCORD HOUSING ASSOCIATION LTD#135,03/02/2020,"1,393.68",73507-DOMICILIARY CARE,PHYSICAL SUPPORT,Third Party Payments,Revenue
Walsall Council,http://opendatacommunities.org/id/metropolitan-district-council/walsall,WC113-266,29/02/2020,Adult Social Care,ACCORD HOUSING ASSOCIATION LTD#135,03/02/2020,"1,432.96",73507-DOMICILIARY CARE,PHYSICAL SUPPORT,Third Party Payments,Revenue
Walsall Council,http://opendatacommunities.org/id/metropolitan-district-council/walsall,WC113-267,29/02/2020,Adult Social Care,ACCORD HOUSING ASSOCIATION LTD#135,03/02/2020,"1,560.99",73507-DOMICILIARY CARE,PHYSICAL SUPPORT,Third Party Payments,Revenue
Walsall Council,http://opendatacommunities.org/id/metropolitan-district-council/walsall,WC113-268,29/02/2020,Adult Social Care,ACCORD HOUSING ASSOCIATION LTD#135,03/02/2020,"1,605.52",73507-DOMICILIARY CARE,PHYSICAL SUPPORT,Third Party Payments,Revenue
Walsall Council,http://opendatacommunities.org/id/metropolitan-district-council/walsall,WC113-269,29/02/2020,Adult Social Care,ACCORD HOUSING ASSOCIATION LTD#135,03/02/2020,"1,605.52",73507-DOMICILIARY CARE,PHYSICAL SUPPORT,Third Party Payments,Revenue
Walsall Council,http://opendatacommunities.org/id/metropolitan-district-council/walsall,WC113-270,29/02/2020,Adult Social Care,ACCORD HOUSING ASSOCIATION LTD#135,03/02/2020,"1,661.30",73507-DOMICILIARY CARE,PHYSICAL SUPPORT,Third Party Payments,Revenue
Walsall Council,http://opendatacommunities.org/id/metropolitan-district-council/walsall,WC113-271,29/02/2020,Adult Social Care,ACCORD HOUSING ASSOCIATION LTD#135,03/02/2020,"1,672.16",73507-DOMICILIARY CARE,PHYSICAL SUPPORT,Third Party Payments,Revenue
Walsall Council,http://opendatacommunities.org/id/metropolitan-district-council/walsall,WC113-272,29/02/2020,Adult Social Care,ACCORD HOUSING ASSOCIATION LTD#135,03/02/2020,"1,672.16",73507-DOMICILIARY CARE,PHYSICAL SUPPORT,Third Party Payments,Revenue
Walsall Council,http://opendatacommunities.org/id/metropolitan-district-council/walsall,WC113-273,29/02/2020,Adult Social Care,ACCORD HOUSING ASSOCIATION LTD#135,03/02/2020,"1,672.16",73507-DOMICILIARY CARE,PHYSICAL SUPPORT,Third Party Payments,Revenue
Walsall Council,http://opendatacommunities.org/id/metropolitan-district-council/walsall,WC113-274,29/02/2020,Adult Social Care,ACCORD HOUSING ASSOCIATION LTD#135,03/02/2020,"1,689.96",73507-DOMICILIARY CARE,PHYSICAL SUPPORT,Third Party Payments,Revenue
Walsall Council,http://opendatacommunities.org/id/metropolitan-district-council/walsall,WC113-275,29/02/2020,Adult Social Care,ACCORD HOUSING ASSOCIATION LTD#135,03/02/2020,"1,720.72",73507-DOMICILIARY CARE,SOCIAL SUPPORT,Third Party Payments,Revenue
Walsall Council,http://opendatacommunities.org/id/metropolitan-district-council/walsall,WC113-276,29/02/2020,Adult Social Care,ACCORD HOUSING ASSOCIATION LTD#135,03/02/2020,"1,720.72",73507-DOMICILIARY CARE,SOCIAL SUPPORT,Third Party Payments,Revenue
Walsall Council,http://opendatacommunities.org/id/metropolitan-district-council/walsall,WC113-277,29/02/2020,Adult Social Care,ACCORD HOUSING ASSOCIATION LTD#135,03/02/2020,"1,732.00",73507-DOMICILIARY CARE,PHYSICAL SUPPORT,Third Party Payments,Revenue
Walsall Council,http://opendatacommunities.org/id/metropolitan-district-council/walsall,WC113-278,29/02/2020,Adult Social Care,ACCORD HOUSING ASSOCIATION LTD#135,03/02/2020,"1,746.31",73507-DOMICILIARY CARE,PHYSICAL SUPPORT,Third Party Payments,Revenue
Walsall Council,http://opendatacommunities.org/id/metropolitan-district-council/walsall,WC113-279,29/02/2020,Adult Social Care,ACCORD HOUSING ASSOCIATION LTD#135,14/02/2020,"2,686.04",73508-COMMUNITY SUPPORTED LIVING/SUPPORTED ACCOMMODATION,MENTAL HEALTH SUPPORT,Third Party Payments,Revenue
Walsall Council,http://opendatacommunities.org/id/metropolitan-district-council/walsall,WC113-280,29/02/2020,Adult Social Care,ACCORD HOUSING ASSOCIATION LTD#135,03/02/2020,"3,075.52",73507-DOMICILIARY CARE,SENSORY SUPPORT,Third Party Payments,Revenue
Walsall Council,http://opendatacommunities.org/id/metropolitan-district-council/walsall,WC113-281,29/02/2020,Adult Social Care,ACCORD HOUSING ASSOCIATION LTD#135,03/02/2020,"3,075.52",73507-DOMICILIARY CARE,SENSORY SUPPORT,Third Party Payments,Revenue
Walsall Council,http://opendatacommunities.org/id/metropolitan-district-council/walsall,WC113-282,29/02/2020,Resources and Transformation,ACCORD HOUSING ASSOCIATION LTD#135,05/02/2020,"3,736.56",01045-PRIVATE GRANTS,CFR 1359 DISABLED FACILITIES GRANT,Capital,Capital
Walsall Council,http://opendatacommunities.org/id/metropolitan-district-council/walsall,WC113-283,29/02/2020,Resources and Transformation,ACCORD HOUSING ASSOCIATION LTD#135,25/02/2020,"3,899.11",01045-PRIVATE GRANTS,CFR 1359 DISABLED FACILITIES GRANT,Capital,Capital
Walsall Council,http://opendatacommunities.org/id/metropolitan-district-council/walsall,WC113-284,29/02/2020,Resources and Transformation,ACCORD HOUSING ASSOCIATION LTD#135,25/02/2020,"3,923.68",01045-PRIVATE GRANTS,CFR 1359 DISABLED FACILITIES GRANT,Capital,Capital
Walsall Council,http://opendatacommunities.org/id/metropolitan-district-council/walsall,WC113-285,29/02/2020,Resources and Transformation,ACCORD HOUSING ASSOCIATION LTD#135,05/02/2020,"4,405.20",01045-PRIVATE GRANTS,CFR 1359 DISABLED FACILITIES GRANT,Capital,Capital
Walsall Council,http://opendatacommunities.org/id/metropolitan-district-council/walsall,WC113-286,29/02/2020,Resources and Transformation,ACCORD HOUSING ASSOCIATION LTD#135,05/02/2020,"4,444.64",01045-PRIVATE GRANTS,CFR 1359 DISABLED FACILITIES GRANT,Capital,Capital
Walsall Council,http://opendatacommunities.org/id/metropolitan-district-council/walsall,WC113-287,29/02/2020,Resources and Transformation,ACCORD HOUSING ASSOCIATION LTD#135,25/02/2020,"4,444.64",01045-PRIVATE GRANTS,CFR 1359 DISABLED FACILITIES GRANT,Capital,Capital
Walsall Council,http://opendatacommunities.org/id/metropolitan-district-council/walsall,WC113-288,29/02/2020,Resources and Transformation,ACCORD HOUSING ASSOCIATION LTD#135,25/02/2020,"4,444.64",01045-PRIVATE GRANTS,CFR 1359 DISABLED FACILITIES GRANT,Capital,Capital
Walsall Council,http://opendatacommunities.org/id/metropolitan-district-council/walsall,WC113-289,29/02/2020,Resources and Transformation,ACCORD HOUSING ASSOCIATION LTD#135,25/02/2020,"4,444.64",01045-PRIVATE GRANTS,CFR 1359 DISABLED FACILITIES GRANT,Capital,Capital
Walsall Council,http://opendatacommunities.org/id/metropolitan-district-council/walsall,WC113-290,29/02/2020,Resources and Transformation,ACCORD HOUSING ASSOCIATION LTD#135,25/02/2020,"4,774.64",01045-PRIVATE GRANTS,CFR 1359 DISABLED FACILITIES GRANT,Capital,Capital
Walsall Council,http://opendatacommunities.org/id/metropolitan-district-council/walsall,WC113-291,29/02/2020,Adult Social Care,ACCORD HOUSING ASSOCIATION LTD#135,14/02/2020,"4,911.36",73508-COMMUNITY SUPPORTED LIVING/SUPPORTED ACCOMMODATION,MENTAL HEALTH SUPPORT,Third Party Payments,Revenue
Walsall Council,http://opendatacommunities.org/id/metropolitan-district-council/walsall,WC113-292,29/02/2020,Resources and Transformation,ACCORD HOUSING ASSOCIATION LTD#135,25/02/2020,"4,949.15",01045-PRIVATE GRANTS,CFR 1359 DISABLED FACILITIES GRANT,Capital,Capital
Walsall Council,http://opendatacommunities.org/id/metropolitan-district-council/walsall,WC113-293,29/02/2020,Resources and Transformation,ACCORD HOUSING ASSOCIATION LTD#135,25/02/2020,"4,949.15",01045-PRIVATE GRANTS,CFR 1359 DISABLED FACILITIES GRANT,Capital,Capital
Walsall Council,http://opendatacommunities.org/id/metropolitan-district-council/walsall,WC113-294,29/02/2020,Resources and Transformation,ACCORD HOUSING ASSOCIATION LTD#135,25/02/2020,"4,949.15",01045-PRIVATE GRANTS,CFR 1359 DISABLED FACILITIES GRANT,Capital,Capital
Walsall Council,http://opendatacommunities.org/id/metropolitan-district-council/walsall,WC113-295,29/02/2020,Resources and Transformation,ACCORD HOUSING ASSOCIATION LTD#135,25/02/2020,"4,949.15",01045-PRIVATE GRANTS,CFR 1359 DISABLED FACILITIES GRANT,Capital,Capital
Walsall Council,http://opendatacommunities.org/id/metropolitan-district-council/walsall,WC113-296,29/02/2020,Adult Social Care,ACCORD HOUSING ASSOCIATION LTD#135,03/02/2020,"5,671.44",73500-RESIDENTIAL,LEARNING DISABILITY SUPPORT,Third Party Payments,Revenue
Walsall Council,http://opendatacommunities.org/id/metropolitan-district-council/walsall,WC113-297,29/02/2020,Adult Social Care,ACCORD HOUSING ASSOCIATION LTD#135,27/02/2020,"5,671.44",73500-RESIDENTIAL,LEARNING DISABILITY SUPPORT,Third Party Payments,Revenue
Walsall Council,http://opendatacommunities.org/id/metropolitan-district-council/walsall,WC113-298,29/02/2020,Adult Social Care,ACCORD HOUSING ASSOCIATION LTD#135,03/02/2020,"6,350.96",73500-RESIDENTIAL,LEARNING DISABILITY SUPPORT,Third Party Payments,Revenue
Walsall Council,http://opendatacommunities.org/id/metropolitan-district-council/walsall,WC113-299,29/02/2020,Adult Social Care,ACCORD HOUSING ASSOCIATION LTD#135,03/02/2020,"6,350.96",73500-RESIDENTIAL,LEARNING DISABILITY SUPPORT,Third Party Payments,Revenue
Walsall Council,http://opendatacommunities.org/id/metropolitan-district-council/walsall,WC113-300,29/02/2020,Adult Social Care,ACCORD HOUSING ASSOCIATION LTD#135,27/02/2020,"6,350.96",73500-RESIDENTIAL,LEARNING DISABILITY SUPPORT,Third Party Payments,Revenue
Walsall Council,http://opendatacommunities.org/id/metropolitan-district-council/walsall,WC113-301,29/02/2020,Adult Social Care,ACCORD HOUSING ASSOCIATION LTD#135,27/02/2020,"6,350.96",73500-RESIDENTIAL,LEARNING DISABILITY SUPPORT,Third Party Payments,Revenue
Walsall Council,http://opendatacommunities.org/id/metropolitan-district-council/walsall,WC113-302,29/02/2020,Economy & Environment,ACCORD HOUSING ASSOCIATION LTD#135,11/02/2020,"11,250.00",63253-PAYMENT TO CONTRACTOR,FALLS PREVENTION AGE UK,Third Party Payments,Revenue
Walsall Council,http://opendatacommunities.org/id/metropolitan-district-council/walsall,WC113-303,29/02/2020,Resources and Transformation,ACCORD HOUSING ASSOCIATION LTD#135,12/02/2020,"21,144.92",63000-PROFESSIONAL FEES AND SERVICES,HOUSING FIRST,Supplies & Services,Revenue
Walsall Council,http://opendatacommunities.org/id/metropolitan-district-council/walsall,WC113-304,29/02/2020,Childrens,ACE CARS & MINIBUSES LTD,03/02/2020,"-2,139.48",52000-WITH DRIVER-HIRE OF VEHICLES,HOME TO SCHOOL TRANSPORT,Transport,Revenue
Walsall Council,http://opendatacommunities.org/id/metropolitan-district-council/walsall,WC113-305,29/02/2020,Childrens,ACE CARS & MINIBUSES LTD,03/02/2020,"-2,062.50",52000-WITH DRIVER-HIRE OF VEHICLES,HOME TO SCHOOL TRANSPORT,Transport,Revenue
Walsall Council,http://opendatacommunities.org/id/metropolitan-district-council/walsall,WC113-306,29/02/2020,Childrens,ACE CARS & MINIBUSES LTD,03/02/2020,"-1,699.92",52000-WITH DRIVER-HIRE OF VEHICLES,HOME TO SCHOOL TRANSPORT,Transport,Revenue
Walsall Council,http://opendatacommunities.org/id/metropolitan-district-council/walsall,WC113-307,29/02/2020,Childrens,ACE CARS & MINIBUSES LTD,03/02/2020,"-1,699.50",52000-WITH DRIVER-HIRE OF VEHICLES,HOME TO SCHOOL TRANSPORT,Transport,Revenue
Walsall Council,http://opendatacommunities.org/id/metropolitan-district-council/walsall,WC113-308,29/02/2020,Childrens,ACE CARS & MINIBUSES LTD,03/02/2020,"-1,644.50",52000-WITH DRIVER-HIRE OF VEHICLES,HOME TO SCHOOL TRANSPORT,Transport,Revenue
Walsall Council,http://opendatacommunities.org/id/metropolitan-district-council/walsall,WC113-309,29/02/2020,Childrens,ACE CARS & MINIBUSES LTD,03/02/2020,"-1,518.00",52000-WITH DRIVER-HIRE OF VEHICLES,HOME TO SCHOOL TRANSPORT,Transport,Revenue
Walsall Council,http://opendatacommunities.org/id/metropolitan-district-council/walsall,WC113-310,29/02/2020,Childrens,ACE CARS & MINIBUSES LTD,03/02/2020,"-1,512.92",52000-WITH DRIVER-HIRE OF VEHICLES,HOME TO SCHOOL TRANSPORT,Transport,Revenue
Walsall Council,http://opendatacommunities.org/id/metropolitan-district-council/walsall,WC113-311,29/02/2020,Childrens,ACE CARS & MINIBUSES LTD,03/02/2020,"-1,410.75",52000-WITH DRIVER-HIRE OF VEHICLES,HOME TO SCHOOL TRANSPORT,Transport,Revenue
Walsall Council,http://opendatacommunities.org/id/metropolitan-district-council/walsall,WC113-312,29/02/2020,Childrens,ACE CARS & MINIBUSES LTD,03/02/2020,"-1,391.92",52000-WITH DRIVER-HIRE OF VEHICLES,HOME TO SCHOOL TRANSPORT,Transport,Revenue
Walsall Council,http://opendatacommunities.org/id/metropolitan-district-council/walsall,WC113-313,29/02/2020,Childrens,ACE CARS & MINIBUSES LTD,03/02/2020,"-1,320.00",52000-WITH DRIVER-HIRE OF VEHICLES,HOME TO SCHOOL TRANSPORT,Transport,Revenue
Walsall Council,http://opendatacommunities.org/id/metropolitan-district-council/walsall,WC113-314,29/02/2020,Childrens,ACE CARS & MINIBUSES LTD,03/02/2020,"-1,210.00",52000-WITH DRIVER-HIRE OF VEHICLES,HOME TO SCHOOL TRANSPORT,Transport,Revenue
Walsall Council,http://opendatacommunities.org/id/metropolitan-district-council/walsall,WC113-315,29/02/2020,Childrens,ACE CARS & MINIBUSES LTD,03/02/2020,"-1,154.80",52000-WITH DRIVER-HIRE OF VEHICLES,HOME TO SCHOOL TRANSPORT,Transport,Revenue
Walsall Council,http://opendatacommunities.org/id/metropolitan-district-council/walsall,WC113-316,29/02/2020,Childrens,ACE CARS & MINIBUSES LTD,03/02/2020,"-1,138.50",52000-WITH DRIVER-HIRE OF VEHICLES,HOME TO SCHOOL TRANSPORT,Transport,Revenue
Walsall Council,http://opendatacommunities.org/id/metropolitan-district-council/walsall,WC113-317,29/02/2020,Childrens,ACE CARS & MINIBUSES LTD,03/02/2020,"-1,138.50",52000-WITH DRIVER-HIRE OF VEHICLES,HOME TO SCHOOL TRANSPORT,Transport,Revenue
Walsall Council,http://opendatacommunities.org/id/metropolitan-district-council/walsall,WC113-318,29/02/2020,Childrens,ACE CARS & MINIBUSES LTD,03/02/2020,"-1,081.50",52000-WITH DRIVER-HIRE OF VEHICLES,HOME TO SCHOOL TRANSPORT,Transport,Revenue
Walsall Council,http://opendatacommunities.org/id/metropolitan-district-council/walsall,WC113-319,29/02/2020,Childrens,ACE CARS & MINIBUSES LTD,03/02/2020,"-1,012.00",52000-WITH DRIVER-HIRE OF VEHICLES,HOME TO SCHOOL TRANSPORT,Transport,Revenue
Walsall Council,http://opendatacommunities.org/id/metropolitan-district-council/walsall,WC113-320,29/02/2020,Childrens,ACE CARS & MINIBUSES LTD,03/02/2020,-948.00,52000-WITH DRIVER-HIRE OF VEHICLES,HOME TO SCHOOL TRANSPORT,Transport,Revenue
Walsall Council,http://opendatacommunities.org/id/metropolitan-district-council/walsall,WC113-321,29/02/2020,Childrens,ACE CARS & MINIBUSES LTD,03/02/2020,-885.50,52000-WITH DRIVER-HIRE OF VEHICLES,HOME TO SCHOOL TRANSPORT,Transport,Revenue
Walsall Council,http://opendatacommunities.org/id/metropolitan-district-council/walsall,WC113-322,29/02/2020,Childrens,ACE CARS & MINIBUSES LTD,03/02/2020,-858.00,52000-WITH DRIVER-HIRE OF VEHICLES,HOME TO SCHOOL TRANSPORT,Transport,Revenue
Walsall Council,http://opendatacommunities.org/id/metropolitan-district-council/walsall,WC113-323,29/02/2020,Childrens,ACE CARS & MINIBUSES LTD,03/02/2020,-847.00,52000-WITH DRIVER-HIRE OF VEHICLES,HOME TO SCHOOL TRANSPORT,Transport,Revenue
Walsall Council,http://opendatacommunities.org/id/metropolitan-district-council/walsall,WC113-324,29/02/2020,Childrens,ACE CARS & MINIBUSES LTD,03/02/2020,-825.00,52000-WITH DRIVER-HIRE OF VEHICLES,HOME TO SCHOOL TRANSPORT,Transport,Revenue
Walsall Council,http://opendatacommunities.org/id/metropolitan-district-council/walsall,WC113-325,29/02/2020,Childrens,ACE CARS & MINIBUSES LTD,03/02/2020,-770.00,52000-WITH DRIVER-HIRE OF VEHICLES,HOME TO SCHOOL TRANSPORT,Transport,Revenue
Walsall Council,http://opendatacommunities.org/id/metropolitan-district-council/walsall,WC113-326,29/02/2020,Childrens,ACE CARS & MINIBUSES LTD,03/02/2020,-764.75,52000-WITH DRIVER-HIRE OF VEHICLES,HOME TO SCHOOL TRANSPORT,Transport,Revenue
Walsall Council,http://opendatacommunities.org/id/metropolitan-district-council/walsall,WC113-327,29/02/2020,Childrens,ACE CARS & MINIBUSES LTD,03/02/2020,-764.75,52000-WITH DRIVER-HIRE OF VEHICLES,HOME TO SCHOOL TRANSPORT,Transport,Revenue
Walsall Council,http://opendatacommunities.org/id/metropolitan-district-council/walsall,WC113-328,29/02/2020,Childrens,ACE CARS & MINIBUSES LTD,03/02/2020,-715.00,52000-WITH DRIVER-HIRE OF VEHICLES,HOME TO SCHOOL TRANSPORT,Transport,Revenue
Walsall Council,http://opendatacommunities.org/id/metropolitan-district-council/walsall,WC113-329,29/02/2020,Childrens,ACE CARS & MINIBUSES LTD,03/02/2020,-696.00,52000-WITH DRIVER-HIRE OF VEHICLES,HOME TO SCHOOL TRANSPORT,Transport,Revenue
Walsall Council,http://opendatacommunities.org/id/metropolitan-district-council/walsall,WC113-330,29/02/2020,Childrens,ACE CARS & MINIBUSES LTD,03/02/2020,-600.00,52000-WITH DRIVER-HIRE OF VEHICLES,HOME TO SCHOOL TRANSPORT,Transport,Revenue
Walsall Council,http://opendatacommunities.org/id/metropolitan-district-council/walsall,WC113-331,29/02/2020,Childrens,ACE CARS & MINIBUSES LTD,03/02/2020,-528.00,52000-WITH DRIVER-HIRE OF VEHICLES,HOME TO SCHOOL TRANSPORT,Transport,Revenue
Walsall Council,http://opendatacommunities.org/id/metropolitan-district-council/walsall,WC113-332,29/02/2020,Childrens,ACE CARS & MINIBUSES LTD,03/02/2020,-480.00,52000-WITH DRIVER-HIRE OF VEHICLES,HOME TO SCHOOL TRANSPORT,Transport,Revenue
Walsall Council,http://opendatacommunities.org/id/metropolitan-district-council/walsall,WC113-333,29/02/2020,Childrens,ACE CARS & MINIBUSES LTD,03/02/2020,-440.00,52000-WITH DRIVER-HIRE OF VEHICLES,HOME TO SCHOOL TRANSPORT,Transport,Revenue
Walsall Council,http://opendatacommunities.org/id/metropolitan-district-council/walsall,WC113-334,29/02/2020,Childrens,ACE CARS & MINIBUSES LTD,03/02/2020,-336.00,52000-WITH DRIVER-HIRE OF VEHICLES,HOME TO SCHOOL TRANSPORT,Transport,Revenue
Walsall Council,http://opendatacommunities.org/id/metropolitan-district-council/walsall,WC113-335,29/02/2020,Childrens,ACE CARS & MINIBUSES LTD,03/02/2020,-288.00,52000-WITH DRIVER-HIRE OF VEHICLES,HOME TO SCHOOL TRANSPORT,Transport,Revenue
Walsall Council,http://opendatacommunities.org/id/metropolitan-district-council/walsall,WC113-336,29/02/2020,Childrens,ACE CARS & MINIBUSES LTD,03/02/2020,-275.00,52000-WITH DRIVER-HIRE OF VEHICLES,HOME TO SCHOOL TRANSPORT,Transport,Revenue
Walsall Council,http://opendatacommunities.org/id/metropolitan-district-council/walsall,WC113-337,29/02/2020,Childrens,ACE CARS & MINIBUSES LTD,27/02/2020,327.75,52000-WITH DRIVER-HIRE OF VEHICLES,HOME TO SCHOOL TRANSPORT,Transport,Revenue
Walsall Council,http://opendatacommunities.org/id/metropolitan-district-council/walsall,WC113-338,29/02/2020,Childrens,ACE CARS & MINIBUSES LTD,27/02/2020,327.75,52000-WITH DRIVER-HIRE OF VEHICLES,HOME TO SCHOOL TRANSPORT,Transport,Revenue
Walsall Council,http://opendatacommunities.org/id/metropolitan-district-council/walsall,WC113-339,29/02/2020,Childrens,ACE CARS & MINIBUSES LTD,03/02/2020,368.00,52000-WITH DRIVER-HIRE OF VEHICLES,HOME TO SCHOOL TRANSPORT,Transport,Revenue
Walsall Council,http://opendatacommunities.org/id/metropolitan-district-council/walsall,WC113-340,29/02/2020,Childrens,ACE CARS & MINIBUSES LTD,03/02/2020,368.00,52000-WITH DRIVER-HIRE OF VEHICLES,HOME TO SCHOOL TRANSPORT,Transport,Revenue
Walsall Council,http://opendatacommunities.org/id/metropolitan-district-council/walsall,WC113-341,29/02/2020,Childrens,ACE CARS & MINIBUSES LTD,03/02/2020,368.00,52000-WITH DRIVER-HIRE OF VEHICLES,HOME TO SCHOOL TRANSPORT,Transport,Revenue
Walsall Council,http://opendatacommunities.org/id/metropolitan-district-council/walsall,WC113-342,29/02/2020,Childrens,ACE CARS & MINIBUSES LTD,03/02/2020,368.00,52000-WITH DRIVER-HIRE OF VEHICLES,HOME TO SCHOOL TRANSPORT,Transport,Revenue
Walsall Council,http://opendatacommunities.org/id/metropolitan-district-council/walsall,WC113-343,29/02/2020,Childrens,ACE CARS & MINIBUSES LTD,03/02/2020,368.00,52000-WITH DRIVER-HIRE OF VEHICLES,HOME TO SCHOOL TRANSPORT,Transport,Revenue
Walsall Council,http://opendatacommunities.org/id/metropolitan-district-council/walsall,WC113-344,29/02/2020,Childrens,ACE CARS & MINIBUSES LTD,27/02/2020,368.00,52000-WITH DRIVER-HIRE OF VEHICLES,HOME TO SCHOOL TRANSPORT,Transport,Revenue
Walsall Council,http://opendatacommunities.org/id/metropolitan-district-council/walsall,WC113-345,29/02/2020,Childrens,ACE CARS & MINIBUSES LTD,27/02/2020,368.00,52000-WITH DRIVER-HIRE OF VEHICLES,HOME TO SCHOOL TRANSPORT,Transport,Revenue
Walsall Council,http://opendatacommunities.org/id/metropolitan-district-council/walsall,WC113-346,29/02/2020,Childrens,ACE CARS & MINIBUSES LTD,27/02/2020,368.00,52000-WITH DRIVER-HIRE OF VEHICLES,HOME TO SCHOOL TRANSPORT,Transport,Revenue
Walsall Council,http://opendatacommunities.org/id/metropolitan-district-council/walsall,WC113-347,29/02/2020,Childrens,ACE CARS & MINIBUSES LTD,27/02/2020,368.00,52000-WITH DRIVER-HIRE OF VEHICLES,HOME TO SCHOOL TRANSPORT,Transport,Revenue
Walsall Council,http://opendatacommunities.org/id/metropolitan-district-council/walsall,WC113-348,29/02/2020,Childrens,ACE CARS & MINIBUSES LTD,27/02/2020,368.00,52000-WITH DRIVER-HIRE OF VEHICLES,HOME TO SCHOOL TRANSPORT,Transport,Revenue
Walsall Council,http://opendatacommunities.org/id/metropolitan-district-council/walsall,WC113-349,29/02/2020,Childrens,ACE CARS & MINIBUSES LTD,27/02/2020,379.50,52000-WITH DRIVER-HIRE OF VEHICLES,HOME TO SCHOOL TRANSPORT,Transport,Revenue
Walsall Council,http://opendatacommunities.org/id/metropolitan-district-council/walsall,WC113-350,29/02/2020,Childrens,ACE CARS & MINIBUSES LTD,03/02/2020,383.60,52000-WITH DRIVER-HIRE OF VEHICLES,HOME TO SCHOOL TRANSPORT,Transport,Revenue
Walsall Council,http://opendatacommunities.org/id/metropolitan-district-council/walsall,WC113-351,29/02/2020,Childrens,ACE CARS & MINIBUSES LTD,03/02/2020,383.60,52000-WITH DRIVER-HIRE OF VEHICLES,HOME TO SCHOOL TRANSPORT,Transport,Revenue
Walsall Council,http://opendatacommunities.org/id/metropolitan-district-council/walsall,WC113-352,29/02/2020,Childrens,ACE CARS & MINIBUSES LTD,03/02/2020,383.60,52000-WITH DRIVER-HIRE OF VEHICLES,HOME TO SCHOOL TRANSPORT,Transport,Revenue
Walsall Council,http://opendatacommunities.org/id/metropolitan-district-council/walsall,WC113-353,29/02/2020,Childrens,ACE CARS & MINIBUSES LTD,03/02/2020,383.60,52000-WITH DRIVER-HIRE OF VEHICLES,HOME TO SCHOOL TRANSPORT,Transport,Revenue
Walsall Council,http://opendatacommunities.org/id/metropolitan-district-council/walsall,WC113-354,29/02/2020,Childrens,ACE CARS & MINIBUSES LTD,03/02/2020,383.60,52000-WITH DRIVER-HIRE OF VEHICLES,HOME TO SCHOOL TRANSPORT,Transport,Revenue
Walsall Council,http://opendatacommunities.org/id/metropolitan-district-council/walsall,WC113-355,29/02/2020,Childrens,ACE CARS & MINIBUSES LTD,03/02/2020,383.60,52000-WITH DRIVER-HIRE OF VEHICLES,HOME TO SCHOOL TRANSPORT,Transport,Revenue
Walsall Council,http://opendatacommunities.org/id/metropolitan-district-council/walsall,WC113-356,29/02/2020,Childrens,ACE CARS & MINIBUSES LTD,27/02/2020,383.60,52000-WITH DRIVER-HIRE OF VEHICLES,HOME TO SCHOOL TRANSPORT,Transport,Revenue
Walsall Council,http://opendatacommunities.org/id/metropolitan-district-council/walsall,WC113-357,29/02/2020,Childrens,ACE CARS & MINIBUSES LTD,27/02/2020,383.60,52000-WITH DRIVER-HIRE OF VEHICLES,HOME TO SCHOOL TRANSPORT,Transport,Revenue
Walsall Council,http://opendatacommunities.org/id/metropolitan-district-council/walsall,WC113-358,29/02/2020,Childrens,ACE CARS & MINIBUSES LTD,27/02/2020,383.60,52000-WITH DRIVER-HIRE OF VEHICLES,HOME TO SCHOOL TRANSPORT,Transport,Revenue
Walsall Council,http://opendatacommunities.org/id/metropolitan-district-council/walsall,WC113-359,29/02/2020,Childrens,ACE CARS & MINIBUSES LTD,27/02/2020,383.60,52000-WITH DRIVER-HIRE OF VEHICLES,HOME TO SCHOOL TRANSPORT,Transport,Revenue
Walsall Council,http://opendatacommunities.org/id/metropolitan-district-council/walsall,WC113-360,29/02/2020,Childrens,ACE CARS & MINIBUSES LTD,27/02/2020,383.60,52000-WITH DRIVER-HIRE OF VEHICLES,HOME TO SCHOOL TRANSPORT,Transport,Revenue
Walsall Council,http://opendatacommunities.org/id/metropolitan-district-council/walsall,WC113-361,29/02/2020,Childrens,ACE CARS & MINIBUSES LTD,27/02/2020,383.60,52000-WITH DRIVER-HIRE OF VEHICLES,HOME TO SCHOOL TRANSPORT,Transport,Revenue
Walsall Council,http://opendatacommunities.org/id/metropolitan-district-council/walsall,WC113-362,29/02/2020,Childrens,ACE CARS & MINIBUSES LTD,27/02/2020,405.00,52000-WITH DRIVER-HIRE OF VEHICLES,HOME TO SCHOOL TRANSPORT,Transport,Revenue
Walsall Council,http://opendatacommunities.org/id/metropolitan-district-council/walsall,WC113-363,29/02/2020,Childrens,ACE CARS & MINIBUSES LTD,03/02/2020,414.00,52000-WITH DRIVER-HIRE OF VEHICLES,HOME TO SCHOOL TRANSPORT,Transport,Revenue
Walsall Council,http://opendatacommunities.org/id/metropolitan-district-council/walsall,WC113-364,29/02/2020,Childrens,ACE CARS & MINIBUSES LTD,03/02/2020,414.00,52000-WITH DRIVER-HIRE OF VEHICLES,HOME TO SCHOOL TRANSPORT,Transport,Revenue
Walsall Council,http://opendatacommunities.org/id/metropolitan-district-council/walsall,WC113-365,29/02/2020,Childrens,ACE CARS & MINIBUSES LTD,03/02/2020,414.00,52000-WITH DRIVER-HIRE OF VEHICLES,HOME TO SCHOOL TRANSPORT,Transport,Revenue
Walsall Council,http://opendatacommunities.org/id/metropolitan-district-council/walsall,WC113-366,29/02/2020,Childrens,ACE CARS & MINIBUSES LTD,03/02/2020,414.00,52000-WITH DRIVER-HIRE OF VEHICLES,HOME TO SCHOOL TRANSPORT,Transport,Revenue
Walsall Council,http://opendatacommunities.org/id/metropolitan-district-council/walsall,WC113-367,29/02/2020,Childrens,ACE CARS & MINIBUSES LTD,03/02/2020,414.00,52000-WITH DRIVER-HIRE OF VEHICLES,HOME TO SCHOOL TRANSPORT,Transport,Revenue
Walsall Council,http://opendatacommunities.org/id/metropolitan-district-council/walsall,WC113-368,29/02/2020,Childrens,ACE CARS & MINIBUSES LTD,03/02/2020,414.00,52000-WITH DRIVER-HIRE OF VEHICLES,HOME TO SCHOOL TRANSPORT,Transport,Revenue
Walsall Council,http://opendatacommunities.org/id/metropolitan-district-council/walsall,WC113-369,29/02/2020,Childrens,ACE CARS & MINIBUSES LTD,03/02/2020,414.00,52000-WITH DRIVER-HIRE OF VEHICLES,HOME TO SCHOOL TRANSPORT,Transport,Revenue
Walsall Council,http://opendatacommunities.org/id/metropolitan-district-council/walsall,WC113-370,29/02/2020,Childrens,ACE CARS & MINIBUSES LTD,03/02/2020,414.00,52000-WITH DRIVER-HIRE OF VEHICLES,HOME TO SCHOOL TRANSPORT,Transport,Revenue
Walsall Council,http://opendatacommunities.org/id/metropolitan-district-council/walsall,WC113-371,29/02/2020,Childrens,ACE CARS & MINIBUSES LTD,03/02/2020,414.00,52000-WITH DRIVER-HIRE OF VEHICLES,HOME TO SCHOOL TRANSPORT,Transport,Revenue
Walsall Council,http://opendatacommunities.org/id/metropolitan-district-council/walsall,WC113-372,29/02/2020,Childrens,ACE CARS & MINIBUSES LTD,03/02/2020,414.00,52000-WITH DRIVER-HIRE OF VEHICLES,HOME TO SCHOOL TRANSPORT,Transport,Revenue
Walsall Council,http://opendatacommunities.org/id/metropolitan-district-council/walsall,WC113-373,29/02/2020,Childrens,ACE CARS & MINIBUSES LTD,27/02/2020,414.00,52000-WITH DRIVER-HIRE OF VEHICLES,HOME TO SCHOOL TRANSPORT,Transport,Revenue
Walsall Council,http://opendatacommunities.org/id/metropolitan-district-council/walsall,WC113-374,29/02/2020,Childrens,ACE CARS & MINIBUSES LTD,27/02/2020,414.00,52000-WITH DRIVER-HIRE OF VEHICLES,HOME TO SCHOOL TRANSPORT,Transport,Revenue
Walsall Council,http://opendatacommunities.org/id/metropolitan-district-council/walsall,WC113-375,29/02/2020,Childrens,ACE CARS & MINIBUSES LTD,27/02/2020,414.00,52000-WITH DRIVER-HIRE OF VEHICLES,HOME TO SCHOOL TRANSPORT,Transport,Revenue
Walsall Council,http://opendatacommunities.org/id/metropolitan-district-council/walsall,WC113-376,29/02/2020,Childrens,ACE CARS & MINIBUSES LTD,27/02/2020,414.00,52000-WITH DRIVER-HIRE OF VEHICLES,HOME TO SCHOOL TRANSPORT,Transport,Revenue
Walsall Council,http://opendatacommunities.org/id/metropolitan-district-council/walsall,WC113-377,29/02/2020,Childrens,ACE CARS & MINIBUSES LTD,27/02/2020,414.00,52000-WITH DRIVER-HIRE OF VEHICLES,HOME TO SCHOOL TRANSPORT,Transport,Revenue
Walsall Council,http://opendatacommunities.org/id/metropolitan-district-council/walsall,WC113-378,29/02/2020,Childrens,ACE CARS & MINIBUSES LTD,27/02/2020,414.00,52000-WITH DRIVER-HIRE OF VEHICLES,HOME TO SCHOOL TRANSPORT,Transport,Revenue
Walsall Council,http://opendatacommunities.org/id/metropolitan-district-council/walsall,WC113-379,29/02/2020,Childrens,ACE CARS & MINIBUSES LTD,27/02/2020,414.00,52000-WITH DRIVER-HIRE OF VEHICLES,HOME TO SCHOOL TRANSPORT,Transport,Revenue
Walsall Council,http://opendatacommunities.org/id/metropolitan-district-council/walsall,WC113-380,29/02/2020,Childrens,ACE CARS & MINIBUSES LTD,27/02/2020,414.00,52000-WITH DRIVER-HIRE OF VEHICLES,HOME TO SCHOOL TRANSPORT,Transport,Revenue
Walsall Council,http://opendatacommunities.org/id/metropolitan-district-council/walsall,WC113-381,29/02/2020,Childrens,ACE CARS & MINIBUSES LTD,27/02/2020,414.00,52000-WITH DRIVER-HIRE OF VEHICLES,HOME TO SCHOOL TRANSPORT,Transport,Revenue
Walsall Council,http://opendatacommunities.org/id/metropolitan-district-council/walsall,WC113-382,29/02/2020,Childrens,ACE CARS & MINIBUSES LTD,27/02/2020,414.00,52000-WITH DRIVER-HIRE OF VEHICLES,HOME TO SCHOOL TRANSPORT,Transport,Revenue
Walsall Council,http://opendatacommunities.org/id/metropolitan-district-council/walsall,WC113-383,29/02/2020,Childrens,ACE CARS & MINIBUSES LTD,27/02/2020,436.06,52000-WITH DRIVER-HIRE OF VEHICLES,HOME TO SCHOOL TRANSPORT,Transport,Revenue
Walsall Council,http://opendatacommunities.org/id/metropolitan-district-council/walsall,WC113-384,29/02/2020,Childrens,ACE CARS & MINIBUSES LTD,03/02/2020,437.20,52000-WITH DRIVER-HIRE OF VEHICLES,HOME TO SCHOOL TRANSPORT,Transport,Revenue
Walsall Council,http://opendatacommunities.org/id/metropolitan-district-council/walsall,WC113-385,29/02/2020,Childrens,ACE CARS & MINIBUSES LTD,03/02/2020,437.20,52000-WITH DRIVER-HIRE OF VEHICLES,HOME TO SCHOOL TRANSPORT,Transport,Revenue
Walsall Council,http://opendatacommunities.org/id/metropolitan-district-council/walsall,WC113-386,29/02/2020,Childrens,ACE CARS & MINIBUSES LTD,03/02/2020,437.20,52000-WITH DRIVER-HIRE OF VEHICLES,HOME TO SCHOOL TRANSPORT,Transport,Revenue
Walsall Council,http://opendatacommunities.org/id/metropolitan-district-council/walsall,WC113-387,29/02/2020,Childrens,ACE CARS & MINIBUSES LTD,03/02/2020,437.20,52000-WITH DRIVER-HIRE OF VEHICLES,HOME TO SCHOOL TRANSPORT,Transport,Revenue
Walsall Council,http://opendatacommunities.org/id/metropolitan-district-council/walsall,WC113-388,29/02/2020,Childrens,ACE CARS & MINIBUSES LTD,03/02/2020,437.20,52000-WITH DRIVER-HIRE OF VEHICLES,HOME TO SCHOOL TRANSPORT,Transport,Revenue
Walsall Council,http://opendatacommunities.org/id/metropolitan-district-council/walsall,WC113-389,29/02/2020,Childrens,ACE CARS & MINIBUSES LTD,03/02/2020,437.20,52000-WITH DRIVER-HIRE OF VEHICLES,HOME TO SCHOOL TRANSPORT,Transport,Revenue
Walsall Council,http://opendatacommunities.org/id/metropolitan-district-council/walsall,WC113-390,29/02/2020,Childrens,ACE CARS & MINIBUSES LTD,03/02/2020,437.20,52000-WITH DRIVER-HIRE OF VEHICLES,HOME TO SCHOOL TRANSPORT,Transport,Revenue
Walsall Council,http://opendatacommunities.org/id/metropolitan-district-council/walsall,WC113-391,29/02/2020,Childrens,ACE CARS & MINIBUSES LTD,03/02/2020,437.20,52000-WITH DRIVER-HIRE OF VEHICLES,HOME TO SCHOOL TRANSPORT,Transport,Revenue
Walsall Council,http://opendatacommunities.org/id/metropolitan-district-council/walsall,WC113-392,29/02/2020,Childrens,ACE CARS & MINIBUSES LTD,27/02/2020,437.20,52000-WITH DRIVER-HIRE OF VEHICLES,HOME TO SCHOOL TRANSPORT,Transport,Revenue
Walsall Council,http://opendatacommunities.org/id/metropolitan-district-council/walsall,WC113-393,29/02/2020,Childrens,ACE CARS & MINIBUSES LTD,27/02/2020,437.20,52000-WITH DRIVER-HIRE OF VEHICLES,HOME TO SCHOOL TRANSPORT,Transport,Revenue
Walsall Council,http://opendatacommunities.org/id/metropolitan-district-council/walsall,WC113-394,29/02/2020,Childrens,ACE CARS & MINIBUSES LTD,27/02/2020,437.20,52000-WITH DRIVER-HIRE OF VEHICLES,HOME TO SCHOOL TRANSPORT,Transport,Revenue
Walsall Council,http://opendatacommunities.org/id/metropolitan-district-council/walsall,WC113-395,29/02/2020,Childrens,ACE CARS & MINIBUSES LTD,27/02/2020,437.20,52000-WITH DRIVER-HIRE OF VEHICLES,HOME TO SCHOOL TRANSPORT,Transport,Revenue
Walsall Council,http://opendatacommunities.org/id/metropolitan-district-council/walsall,WC113-396,29/02/2020,Childrens,ACE CARS & MINIBUSES LTD,27/02/2020,437.20,52000-WITH DRIVER-HIRE OF VEHICLES,HOME TO SCHOOL TRANSPORT,Transport,Revenue
Walsall Council,http://opendatacommunities.org/id/metropolitan-district-council/walsall,WC113-397,29/02/2020,Childrens,ACE CARS & MINIBUSES LTD,27/02/2020,437.20,52000-WITH DRIVER-HIRE OF VEHICLES,HOME TO SCHOOL TRANSPORT,Transport,Revenue
Walsall Council,http://opendatacommunities.org/id/metropolitan-district-council/walsall,WC113-398,29/02/2020,Childrens,ACE CARS & MINIBUSES LTD,27/02/2020,437.20,52000-WITH DRIVER-HIRE OF VEHICLES,HOME TO SCHOOL TRANSPORT,Transport,Revenue
Walsall Council,http://opendatacommunities.org/id/metropolitan-district-council/walsall,WC113-399,29/02/2020,Childrens,ACE CARS & MINIBUSES LTD,27/02/2020,437.20,52000-WITH DRIVER-HIRE OF VEHICLES,HOME TO SCHOOL TRANSPORT,Transport,Revenue
Walsall Council,http://opendatacommunities.org/id/metropolitan-district-council/walsall,WC113-400,29/02/2020,Childrens,ACE CARS & MINIBUSES LTD,03/02/2020,450.00,52000-WITH DRIVER-HIRE OF VEHICLES,HOME TO SCHOOL TRANSPORT,Transport,Revenue
Walsall Council,http://opendatacommunities.org/id/metropolitan-district-council/walsall,WC113-401,29/02/2020,Childrens,ACE CARS & MINIBUSES LTD,27/02/2020,450.00,52000-WITH DRIVER-HIRE OF VEHICLES,HOME TO SCHOOL TRANSPORT,Transport,Revenue
Walsall Council,http://opendatacommunities.org/id/metropolitan-district-council/walsall,WC113-402,29/02/2020,Childrens,ACE CARS & MINIBUSES LTD,27/02/2020,463.50,52000-WITH DRIVER-HIRE OF VEHICLES,HOME TO SCHOOL TRANSPORT,Transport,Revenue
Walsall Council,http://opendatacommunities.org/id/metropolitan-district-council/walsall,WC113-403,29/02/2020,Childrens,ACE CARS & MINIBUSES LTD,03/02/2020,480.00,52000-WITH DRIVER-HIRE OF VEHICLES,HOME TO SCHOOL TRANSPORT,Transport,Revenue
Walsall Council,http://opendatacommunities.org/id/metropolitan-district-council/walsall,WC113-404,29/02/2020,Childrens,ACE CARS & MINIBUSES LTD,27/02/2020,480.00,52000-WITH DRIVER-HIRE OF VEHICLES,HOME TO SCHOOL TRANSPORT,Transport,Revenue
Walsall Council,http://opendatacommunities.org/id/metropolitan-district-council/walsall,WC113-405,29/02/2020,Childrens,ACE CARS & MINIBUSES LTD,03/02/2020,506.00,52000-WITH DRIVER-HIRE OF VEHICLES,HOME TO SCHOOL TRANSPORT,Transport,Revenue
Walsall Council,http://opendatacommunities.org/id/metropolitan-district-council/walsall,WC113-406,29/02/2020,Childrens,ACE CARS & MINIBUSES LTD,03/02/2020,506.00,52000-WITH DRIVER-HIRE OF VEHICLES,HOME TO SCHOOL TRANSPORT,Transport,Revenue
Walsall Council,http://opendatacommunities.org/id/metropolitan-district-council/walsall,WC113-407,29/02/2020,Childrens,ACE CARS & MINIBUSES LTD,03/02/2020,506.00,52000-WITH DRIVER-HIRE OF VEHICLES,HOME TO SCHOOL TRANSPORT,Transport,Revenue
Walsall Council,http://opendatacommunities.org/id/metropolitan-district-council/walsall,WC113-408,29/02/2020,Childrens,ACE CARS & MINIBUSES LTD,03/02/2020,506.00,52000-WITH DRIVER-HIRE OF VEHICLES,HOME TO SCHOOL TRANSPORT,Transport,Revenue
Walsall Council,http://opendatacommunities.org/id/metropolitan-district-council/walsall,WC113-409,29/02/2020,Childrens,ACE CARS & MINIBUSES LTD,27/02/2020,506.00,52000-WITH DRIVER-HIRE OF VEHICLES,HOME TO SCHOOL TRANSPORT,Transport,Revenue
Walsall Council,http://opendatacommunities.org/id/metropolitan-district-council/walsall,WC113-410,29/02/2020,Childrens,ACE CARS & MINIBUSES LTD,27/02/2020,506.00,52000-WITH DRIVER-HIRE OF VEHICLES,HOME TO SCHOOL TRANSPORT,Transport,Revenue
Walsall Council,http://opendatacommunities.org/id/metropolitan-district-council/walsall,WC113-411,29/02/2020,Childrens,ACE CARS & MINIBUSES LTD,27/02/2020,506.00,52000-WITH DRIVER-HIRE OF VEHICLES,HOME TO SCHOOL TRANSPORT,Transport,Revenue
Walsall Council,http://opendatacommunities.org/id/metropolitan-district-council/walsall,WC113-412,29/02/2020,Childrens,ACE CARS & MINIBUSES LTD,27/02/2020,506.00,52000-WITH DRIVER-HIRE OF VEHICLES,HOME TO SCHOOL TRANSPORT,Transport,Revenue
Walsall Council,http://opendatacommunities.org/id/metropolitan-district-council/walsall,WC113-413,29/02/2020,Childrens,ACE CARS & MINIBUSES LTD,03/02/2020,513.20,52000-WITH DRIVER-HIRE OF VEHICLES,HOME TO SCHOOL TRANSPORT,Transport,Revenue
Walsall Council,http://opendatacommunities.org/id/metropolitan-district-council/walsall,WC113-414,29/02/2020,Childrens,ACE CARS & MINIBUSES LTD,03/02/2020,513.20,52000-WITH DRIVER-HIRE OF VEHICLES,HOME TO SCHOOL TRANSPORT,Transport,Revenue
Walsall Council,http://opendatacommunities.org/id/metropolitan-district-council/walsall,WC113-415,29/02/2020,Childrens,ACE CARS & MINIBUSES LTD,03/02/2020,513.20,52000-WITH DRIVER-HIRE OF VEHICLES,HOME TO SCHOOL TRANSPORT,Transport,Revenue
Walsall Council,http://opendatacommunities.org/id/metropolitan-district-council/walsall,WC113-416,29/02/2020,Childrens,ACE CARS & MINIBUSES LTD,03/02/2020,513.20,52000-WITH DRIVER-HIRE OF VEHICLES,HOME TO SCHOOL TRANSPORT,Transport,Revenue
Walsall Council,http://opendatacommunities.org/id/metropolitan-district-council/walsall,WC113-417,29/02/2020,Childrens,ACE CARS & MINIBUSES LTD,03/02/2020,513.20,52000-WITH DRIVER-HIRE OF VEHICLES,HOME TO SCHOOL TRANSPORT,Transport,Revenue
Walsall Council,http://opendatacommunities.org/id/metropolitan-district-council/walsall,WC113-418,29/02/2020,Childrens,ACE CARS & MINIBUSES LTD,03/02/2020,513.20,52000-WITH DRIVER-HIRE OF VEHICLES,HOME TO SCHOOL TRANSPORT,Transport,Revenue
Walsall Council,http://opendatacommunities.org/id/metropolitan-district-council/walsall,WC113-419,29/02/2020,Childrens,ACE CARS & MINIBUSES LTD,27/02/2020,513.20,52000-WITH DRIVER-HIRE OF VEHICLES,HOME TO SCHOOL TRANSPORT,Transport,Revenue
Walsall Council,http://opendatacommunities.org/id/metropolitan-district-council/walsall,WC113-420,29/02/2020,Childrens,ACE CARS & MINIBUSES LTD,27/02/2020,513.20,52000-WITH DRIVER-HIRE OF VEHICLES,HOME TO SCHOOL TRANSPORT,Transport,Revenue
Walsall Council,http://opendatacommunities.org/id/metropolitan-district-council/walsall,WC113-421,29/02/2020,Childrens,ACE CARS & MINIBUSES LTD,27/02/2020,513.20,52000-WITH DRIVER-HIRE OF VEHICLES,HOME TO SCHOOL TRANSPORT,Transport,Revenue
Walsall Council,http://opendatacommunities.org/id/metropolitan-district-council/walsall,WC113-422,29/02/2020,Childrens,ACE CARS & MINIBUSES LTD,27/02/2020,513.20,52000-WITH DRIVER-HIRE OF VEHICLES,HOME TO SCHOOL TRANSPORT,Transport,Revenue
Walsall Council,http://opendatacommunities.org/id/metropolitan-district-council/walsall,WC113-423,29/02/2020,Childrens,ACE CARS & MINIBUSES LTD,27/02/2020,513.20,52000-WITH DRIVER-HIRE OF VEHICLES,HOME TO SCHOOL TRANSPORT,Transport,Revenue
Walsall Council,http://opendatacommunities.org/id/metropolitan-district-council/walsall,WC113-424,29/02/2020,Childrens,ACE CARS & MINIBUSES LTD,03/02/2020,550.00,52000-WITH DRIVER-HIRE OF VEHICLES,HOME TO SCHOOL TRANSPORT,Transport,Revenue
Walsall Council,http://opendatacommunities.org/id/metropolitan-district-council/walsall,WC113-425,29/02/2020,Childrens,ACE CARS & MINIBUSES LTD,03/02/2020,550.00,52000-WITH DRIVER-HIRE OF VEHICLES,HOME TO SCHOOL TRANSPORT,Transport,Revenue
Walsall Council,http://opendatacommunities.org/id/metropolitan-district-council/walsall,WC113-426,29/02/2020,Childrens,ACE CARS & MINIBUSES LTD,03/02/2020,550.00,52000-WITH DRIVER-HIRE OF VEHICLES,HOME TO SCHOOL TRANSPORT,Transport,Revenue
Walsall Council,http://opendatacommunities.org/id/metropolitan-district-council/walsall,WC113-427,29/02/2020,Childrens,ACE CARS & MINIBUSES LTD,03/02/2020,550.00,52000-WITH DRIVER-HIRE OF VEHICLES,HOME TO SCHOOL TRANSPORT,Transport,Revenue
Walsall Council,http://opendatacommunities.org/id/metropolitan-district-council/walsall,WC113-428,29/02/2020,Childrens,ACE CARS & MINIBUSES LTD,27/02/2020,550.00,52000-WITH DRIVER-HIRE OF VEHICLES,HOME TO SCHOOL TRANSPORT,Transport,Revenue
Walsall Council,http://opendatacommunities.org/id/metropolitan-district-council/walsall,WC113-429,29/02/2020,Childrens,ACE CARS & MINIBUSES LTD,27/02/2020,550.00,52000-WITH DRIVER-HIRE OF VEHICLES,HOME TO SCHOOL TRANSPORT,Transport,Revenue
Walsall Council,http://opendatacommunities.org/id/metropolitan-district-council/walsall,WC113-430,29/02/2020,Childrens,ACE CARS & MINIBUSES LTD,27/02/2020,550.00,52000-WITH DRIVER-HIRE OF VEHICLES,HOME TO SCHOOL TRANSPORT,Transport,Revenue
Walsall Council,http://opendatacommunities.org/id/metropolitan-district-council/walsall,WC113-431,29/02/2020,Childrens,ACE CARS & MINIBUSES LTD,03/02/2020,560.00,52000-WITH DRIVER-HIRE OF VEHICLES,HOME TO SCHOOL TRANSPORT,Transport,Revenue
Walsall Council,http://opendatacommunities.org/id/metropolitan-district-council/walsall,WC113-432,29/02/2020,Childrens,ACE CARS & MINIBUSES LTD,27/02/2020,560.00,52000-WITH DRIVER-HIRE OF VEHICLES,HOME TO SCHOOL TRANSPORT,Transport,Revenue
Walsall Council,http://opendatacommunities.org/id/metropolitan-district-council/walsall,WC113-433,29/02/2020,Childrens,ACE CARS & MINIBUSES LTD,03/02/2020,598.00,52000-WITH DRIVER-HIRE OF VEHICLES,HOME TO SCHOOL TRANSPORT,Transport,Revenue
Walsall Council,http://opendatacommunities.org/id/metropolitan-district-council/walsall,WC113-434,29/02/2020,Childrens,ACE CARS & MINIBUSES LTD,03/02/2020,598.00,52000-WITH DRIVER-HIRE OF VEHICLES,HOME TO SCHOOL TRANSPORT,Transport,Revenue
Walsall Council,http://opendatacommunities.org/id/metropolitan-district-council/walsall,WC113-435,29/02/2020,Childrens,ACE CARS & MINIBUSES LTD,03/02/2020,598.00,52000-WITH DRIVER-HIRE OF VEHICLES,HOME TO SCHOOL TRANSPORT,Transport,Revenue
Walsall Council,http://opendatacommunities.org/id/metropolitan-district-council/walsall,WC113-436,29/02/2020,Childrens,ACE CARS & MINIBUSES LTD,03/02/2020,598.00,52000-WITH DRIVER-HIRE OF VEHICLES,HOME TO SCHOOL TRANSPORT,Transport,Revenue
Walsall Council,http://opendatacommunities.org/id/metropolitan-district-council/walsall,WC113-437,29/02/2020,Childrens,ACE CARS & MINIBUSES LTD,03/02/2020,598.00,52000-WITH DRIVER-HIRE OF VEHICLES,HOME TO SCHOOL TRANSPORT,Transport,Revenue
Walsall Council,http://opendatacommunities.org/id/metropolitan-district-council/walsall,WC113-438,29/02/2020,Childrens,ACE CARS & MINIBUSES LTD,27/02/2020,598.00,52000-WITH DRIVER-HIRE OF VEHICLES,HOME TO SCHOOL TRANSPORT,Transport,Revenue
Walsall Council,http://opendatacommunities.org/id/metropolitan-district-council/walsall,WC113-439,29/02/2020,Childrens,ACE CARS & MINIBUSES LTD,27/02/2020,598.00,52000-WITH DRIVER-HIRE OF VEHICLES,HOME TO SCHOOL TRANSPORT,Transport,Revenue
Walsall Council,http://opendatacommunities.org/id/metropolitan-district-council/walsall,WC113-440,29/02/2020,Childrens,ACE CARS & MINIBUSES LTD,27/02/2020,598.00,52000-WITH DRIVER-HIRE OF VEHICLES,HOME TO SCHOOL TRANSPORT,Transport,Revenue
Walsall Council,http://opendatacommunities.org/id/metropolitan-district-council/walsall,WC113-441,29/02/2020,Childrens,ACE CARS & MINIBUSES LTD,27/02/2020,598.00,52000-WITH DRIVER-HIRE OF VEHICLES,HOME TO SCHOOL TRANSPORT,Transport,Revenue
Walsall Council,http://opendatacommunities.org/id/metropolitan-district-council/walsall,WC113-442,29/02/2020,Childrens,ACE CARS & MINIBUSES LTD,27/02/2020,598.00,52000-WITH DRIVER-HIRE OF VEHICLES,HOME TO SCHOOL TRANSPORT,Transport,Revenue
Walsall Council,http://opendatacommunities.org/id/metropolitan-district-council/walsall,WC113-443,29/02/2020,Childrens,ACE CARS & MINIBUSES LTD,03/02/2020,618.00,52000-WITH DRIVER-HIRE OF VEHICLES,HOME TO SCHOOL TRANSPORT,Transport,Revenue
Walsall Council,http://opendatacommunities.org/id/metropolitan-district-council/walsall,WC113-444,29/02/2020,Childrens,ACE CARS & MINIBUSES LTD,03/02/2020,618.00,52000-WITH DRIVER-HIRE OF VEHICLES,HOME TO SCHOOL TRANSPORT,Transport,Revenue
Walsall Council,http://opendatacommunities.org/id/metropolitan-district-council/walsall,WC113-445,29/02/2020,Childrens,ACE CARS & MINIBUSES LTD,03/02/2020,618.00,52000-WITH DRIVER-HIRE OF VEHICLES,HOME TO SCHOOL TRANSPORT,Transport,Revenue
Walsall Council,http://opendatacommunities.org/id/metropolitan-district-council/walsall,WC113-446,29/02/2020,Childrens,ACE CARS & MINIBUSES LTD,03/02/2020,618.00,52000-WITH DRIVER-HIRE OF VEHICLES,HOME TO SCHOOL TRANSPORT,Transport,Revenue
Walsall Council,http://opendatacommunities.org/id/metropolitan-district-council/walsall,WC113-447,29/02/2020,Childrens,ACE CARS & MINIBUSES LTD,03/02/2020,618.00,52000-WITH DRIVER-HIRE OF VEHICLES,HOME TO SCHOOL TRANSPORT,Transport,Revenue
Walsall Council,http://opendatacommunities.org/id/metropolitan-district-council/walsall,WC113-448,29/02/2020,Childrens,ACE CARS & MINIBUSES LTD,03/02/2020,618.00,52000-WITH DRIVER-HIRE OF VEHICLES,HOME TO SCHOOL TRANSPORT,Transport,Revenue
Walsall Council,http://opendatacommunities.org/id/metropolitan-district-council/walsall,WC113-449,29/02/2020,Childrens,ACE CARS & MINIBUSES LTD,03/02/2020,618.00,52000-WITH DRIVER-HIRE OF VEHICLES,HOME TO SCHOOL TRANSPORT,Transport,Revenue
Walsall Council,http://opendatacommunities.org/id/metropolitan-district-council/walsall,WC113-450,29/02/2020,Childrens,ACE CARS & MINIBUSES LTD,03/02/2020,618.00,52000-WITH DRIVER-HIRE OF VEHICLES,HOME TO SCHOOL TRANSPORT,Transport,Revenue
Walsall Council,http://opendatacommunities.org/id/metropolitan-district-council/walsall,WC113-451,29/02/2020,Childrens,ACE CARS & MINIBUSES LTD,03/02/2020,618.00,52000-WITH DRIVER-HIRE OF VEHICLES,HOME TO SCHOOL TRANSPORT,Transport,Revenue
Walsall Council,http://opendatacommunities.org/id/metropolitan-district-council/walsall,WC113-452,29/02/2020,Childrens,ACE CARS & MINIBUSES LTD,27/02/2020,618.00,52000-WITH DRIVER-HIRE OF VEHICLES,HOME TO SCHOOL TRANSPORT,Transport,Revenue
Walsall Council,http://opendatacommunities.org/id/metropolitan-district-council/walsall,WC113-453,29/02/2020,Childrens,ACE CARS & MINIBUSES LTD,27/02/2020,618.00,52000-WITH DRIVER-HIRE OF VEHICLES,HOME TO SCHOOL TRANSPORT,Transport,Revenue
Walsall Council,http://opendatacommunities.org/id/metropolitan-district-council/walsall,WC113-454,29/02/2020,Childrens,ACE CARS & MINIBUSES LTD,27/02/2020,618.00,52000-WITH DRIVER-HIRE OF VEHICLES,HOME TO SCHOOL TRANSPORT,Transport,Revenue
Walsall Council,http://opendatacommunities.org/id/metropolitan-district-council/walsall,WC113-455,29/02/2020,Childrens,ACE CARS & MINIBUSES LTD,27/02/2020,618.00,52000-WITH DRIVER-HIRE OF VEHICLES,HOME TO SCHOOL TRANSPORT,Transport,Revenue
Walsall Council,http://opendatacommunities.org/id/metropolitan-district-council/walsall,WC113-456,29/02/2020,Childrens,ACE CARS & MINIBUSES LTD,27/02/2020,618.00,52000-WITH DRIVER-HIRE OF VEHICLES,HOME TO SCHOOL TRANSPORT,Transport,Revenue
Walsall Council,http://opendatacommunities.org/id/metropolitan-district-council/walsall,WC113-457,29/02/2020,Childrens,ACE CARS & MINIBUSES LTD,27/02/2020,618.00,52000-WITH DRIVER-HIRE OF VEHICLES,HOME TO SCHOOL TRANSPORT,Transport,Revenue
Walsall Council,http://opendatacommunities.org/id/metropolitan-district-council/walsall,WC113-458,29/02/2020,Childrens,ACE CARS & MINIBUSES LTD,27/02/2020,618.00,52000-WITH DRIVER-HIRE OF VEHICLES,HOME TO SCHOOL TRANSPORT,Transport,Revenue
Walsall Council,http://opendatacommunities.org/id/metropolitan-district-council/walsall,WC113-459,29/02/2020,Childrens,ACE CARS & MINIBUSES LTD,27/02/2020,618.00,52000-WITH DRIVER-HIRE OF VEHICLES,HOME TO SCHOOL TRANSPORT,Transport,Revenue
Walsall Council,http://opendatacommunities.org/id/metropolitan-district-council/walsall,WC113-460,29/02/2020,Childrens,ACE CARS & MINIBUSES LTD,27/02/2020,618.00,52000-WITH DRIVER-HIRE OF VEHICLES,HOME TO SCHOOL TRANSPORT,Transport,Revenue
Walsall Council,http://opendatacommunities.org/id/metropolitan-district-council/walsall,WC113-461,29/02/2020,Childrens,ACE CARS & MINIBUSES LTD,27/02/2020,632.00,52000-WITH DRIVER-HIRE OF VEHICLES,HOME TO SCHOOL TRANSPORT,Transport,Revenue
Walsall Council,http://opendatacommunities.org/id/metropolitan-district-council/walsall,WC113-462,29/02/2020,Childrens,ACE CARS & MINIBUSES LTD,03/02/2020,632.40,52000-WITH DRIVER-HIRE OF VEHICLES,HOME TO SCHOOL TRANSPORT,Transport,Revenue
Walsall Council,http://opendatacommunities.org/id/metropolitan-district-council/walsall,WC113-463,29/02/2020,Childrens,ACE CARS & MINIBUSES LTD,03/02/2020,632.40,52000-WITH DRIVER-HIRE OF VEHICLES,HOME TO SCHOOL TRANSPORT,Transport,Revenue
Walsall Council,http://opendatacommunities.org/id/metropolitan-district-council/walsall,WC113-464,29/02/2020,Childrens,ACE CARS & MINIBUSES LTD,03/02/2020,632.40,52000-WITH DRIVER-HIRE OF VEHICLES,HOME TO SCHOOL TRANSPORT,Transport,Revenue
Walsall Council,http://opendatacommunities.org/id/metropolitan-district-council/walsall,WC113-465,29/02/2020,Childrens,ACE CARS & MINIBUSES LTD,03/02/2020,632.40,52000-WITH DRIVER-HIRE OF VEHICLES,HOME TO SCHOOL TRANSPORT,Transport,Revenue
Walsall Council,http://opendatacommunities.org/id/metropolitan-district-council/walsall,WC113-466,29/02/2020,Childrens,ACE CARS & MINIBUSES LTD,27/02/2020,632.40,52000-WITH DRIVER-HIRE OF VEHICLES,HOME TO SCHOOL TRANSPORT,Transport,Revenue
Walsall Council,http://opendatacommunities.org/id/metropolitan-district-council/walsall,WC113-467,29/02/2020,Childrens,ACE CARS & MINIBUSES LTD,27/02/2020,632.40,52000-WITH DRIVER-HIRE OF VEHICLES,HOME TO SCHOOL TRANSPORT,Transport,Revenue
Walsall Council,http://opendatacommunities.org/id/metropolitan-district-council/walsall,WC113-468,29/02/2020,Childrens,ACE CARS & MINIBUSES LTD,27/02/2020,632.40,52000-WITH DRIVER-HIRE OF VEHICLES,HOME TO SCHOOL TRANSPORT,Transport,Revenue
Walsall Council,http://opendatacommunities.org/id/metropolitan-district-council/walsall,WC113-469,29/02/2020,Childrens,ACE CARS & MINIBUSES LTD,27/02/2020,632.40,52000-WITH DRIVER-HIRE OF VEHICLES,HOME TO SCHOOL TRANSPORT,Transport,Revenue
Walsall Council,http://opendatacommunities.org/id/metropolitan-district-council/walsall,WC113-470,29/02/2020,Childrens,ACE CARS & MINIBUSES LTD,27/02/2020,639.00,52000-WITH DRIVER-HIRE OF VEHICLES,HOME TO SCHOOL TRANSPORT,Transport,Revenue
Walsall Council,http://opendatacommunities.org/id/metropolitan-district-council/walsall,WC113-471,29/02/2020,Childrens,ACE CARS & MINIBUSES LTD,03/02/2020,687.60,52000-WITH DRIVER-HIRE OF VEHICLES,HOME TO SCHOOL TRANSPORT,Transport,Revenue
Walsall Council,http://opendatacommunities.org/id/metropolitan-district-council/walsall,WC113-472,29/02/2020,Childrens,ACE CARS & MINIBUSES LTD,03/02/2020,687.60,52000-WITH DRIVER-HIRE OF VEHICLES,HOME TO SCHOOL TRANSPORT,Transport,Revenue
Walsall Council,http://opendatacommunities.org/id/metropolitan-district-council/walsall,WC113-473,29/02/2020,Childrens,ACE CARS & MINIBUSES LTD,03/02/2020,687.60,52000-WITH DRIVER-HIRE OF VEHICLES,HOME TO SCHOOL TRANSPORT,Transport,Revenue
Walsall Council,http://opendatacommunities.org/id/metropolitan-district-council/walsall,WC113-474,29/02/2020,Childrens,ACE CARS & MINIBUSES LTD,03/02/2020,687.60,52000-WITH DRIVER-HIRE OF VEHICLES,HOME TO SCHOOL TRANSPORT,Transport,Revenue
Walsall Council,http://opendatacommunities.org/id/metropolitan-district-council/walsall,WC113-475,29/02/2020,Childrens,ACE CARS & MINIBUSES LTD,27/02/2020,687.60,52000-WITH DRIVER-HIRE OF VEHICLES,HOME TO SCHOOL TRANSPORT,Transport,Revenue
Walsall Council,http://opendatacommunities.org/id/metropolitan-district-council/walsall,WC113-476,29/02/2020,Childrens,ACE CARS & MINIBUSES LTD,27/02/2020,687.60,52000-WITH DRIVER-HIRE OF VEHICLES,HOME TO SCHOOL TRANSPORT,Transport,Revenue
Walsall Council,http://opendatacommunities.org/id/metropolitan-district-council/walsall,WC113-477,29/02/2020,Childrens,ACE CARS & MINIBUSES LTD,27/02/2020,687.60,52000-WITH DRIVER-HIRE OF VEHICLES,HOME TO SCHOOL TRANSPORT,Transport,Revenue
Walsall Council,http://opendatacommunities.org/id/metropolitan-district-council/walsall,WC113-478,29/02/2020,Childrens,ACE CARS & MINIBUSES LTD,27/02/2020,687.60,52000-WITH DRIVER-HIRE OF VEHICLES,HOME TO SCHOOL TRANSPORT,Transport,Revenue
Walsall Council,http://opendatacommunities.org/id/metropolitan-district-council/walsall,WC113-479,29/02/2020,Childrens,ACE CARS & MINIBUSES LTD,03/02/2020,690.00,52000-WITH DRIVER-HIRE OF VEHICLES,HOME TO SCHOOL TRANSPORT,Transport,Revenue
Walsall Council,http://opendatacommunities.org/id/metropolitan-district-council/walsall,WC113-480,29/02/2020,Childrens,ACE CARS & MINIBUSES LTD,03/02/2020,690.00,52000-WITH DRIVER-HIRE OF VEHICLES,HOME TO SCHOOL TRANSPORT,Transport,Revenue
Walsall Council,http://opendatacommunities.org/id/metropolitan-district-council/walsall,WC113-481,29/02/2020,Childrens,ACE CARS & MINIBUSES LTD,03/02/2020,690.00,52000-WITH DRIVER-HIRE OF VEHICLES,HOME TO SCHOOL TRANSPORT,Transport,Revenue
Walsall Council,http://opendatacommunities.org/id/metropolitan-district-council/walsall,WC113-482,29/02/2020,Childrens,ACE CARS & MINIBUSES LTD,03/02/2020,690.00,52000-WITH DRIVER-HIRE OF VEHICLES,HOME TO SCHOOL TRANSPORT,Transport,Revenue
Walsall Council,http://opendatacommunities.org/id/metropolitan-district-council/walsall,WC113-483,29/02/2020,Childrens,ACE CARS & MINIBUSES LTD,27/02/2020,690.00,52000-WITH DRIVER-HIRE OF VEHICLES,HOME TO SCHOOL TRANSPORT,Transport,Revenue
Walsall Council,http://opendatacommunities.org/id/metropolitan-district-council/walsall,WC113-484,29/02/2020,Childrens,ACE CARS & MINIBUSES LTD,27/02/2020,690.00,52000-WITH DRIVER-HIRE OF VEHICLES,HOME TO SCHOOL TRANSPORT,Transport,Revenue
Walsall Council,http://opendatacommunities.org/id/metropolitan-district-council/walsall,WC113-485,29/02/2020,Childrens,ACE CARS & MINIBUSES LTD,27/02/2020,690.00,52000-WITH DRIVER-HIRE OF VEHICLES,HOME TO SCHOOL TRANSPORT,Transport,Revenue
Walsall Council,http://opendatacommunities.org/id/metropolitan-district-council/walsall,WC113-486,29/02/2020,Childrens,ACE CARS & MINIBUSES LTD,27/02/2020,690.00,52000-WITH DRIVER-HIRE OF VEHICLES,HOME TO SCHOOL TRANSPORT,Transport,Revenue
Walsall Council,http://opendatacommunities.org/id/metropolitan-district-council/walsall,WC113-487,29/02/2020,Childrens,ACE CARS & MINIBUSES LTD,03/02/2020,710.00,52000-WITH DRIVER-HIRE OF VEHICLES,HOME TO SCHOOL TRANSPORT,Transport,Revenue
Walsall Council,http://opendatacommunities.org/id/metropolitan-district-council/walsall,WC113-488,29/02/2020,Childrens,ACE CARS & MINIBUSES LTD,27/02/2020,710.00,52000-WITH DRIVER-HIRE OF VEHICLES,HOME TO SCHOOL TRANSPORT,Transport,Revenue
Walsall Council,http://opendatacommunities.org/id/metropolitan-district-council/walsall,WC113-489,29/02/2020,Childrens,ACE CARS & MINIBUSES LTD,03/02/2020,772.40,52000-WITH DRIVER-HIRE OF VEHICLES,HOME TO SCHOOL TRANSPORT,Transport,Revenue
Walsall Council,http://opendatacommunities.org/id/metropolitan-district-council/walsall,WC113-490,29/02/2020,Childrens,ACE CARS & MINIBUSES LTD,03/02/2020,772.40,52000-WITH DRIVER-HIRE OF VEHICLES,HOME TO SCHOOL TRANSPORT,Transport,Revenue
Walsall Council,http://opendatacommunities.org/id/metropolitan-district-council/walsall,WC113-491,29/02/2020,Childrens,ACE CARS & MINIBUSES LTD,03/02/2020,772.40,52000-WITH DRIVER-HIRE OF VEHICLES,HOME TO SCHOOL TRANSPORT,Transport,Revenue
Walsall Council,http://opendatacommunities.org/id/metropolitan-district-council/walsall,WC113-492,29/02/2020,Childrens,ACE CARS & MINIBUSES LTD,03/02/2020,772.40,52000-WITH DRIVER-HIRE OF VEHICLES,HOME TO SCHOOL TRANSPORT,Transport,Revenue
Walsall Council,http://opendatacommunities.org/id/metropolitan-district-council/walsall,WC113-493,29/02/2020,Childrens,ACE CARS & MINIBUSES LTD,27/02/2020,772.40,52000-WITH DRIVER-HIRE OF VEHICLES,HOME TO SCHOOL TRANSPORT,Transport,Revenue
Walsall Council,http://opendatacommunities.org/id/metropolitan-district-council/walsall,WC113-494,29/02/2020,Childrens,ACE CARS & MINIBUSES LTD,27/02/2020,772.40,52000-WITH DRIVER-HIRE OF VEHICLES,HOME TO SCHOOL TRANSPORT,Transport,Revenue
Walsall Council,http://opendatacommunities.org/id/metropolitan-district-council/walsall,WC113-495,29/02/2020,Childrens,ACE CARS & MINIBUSES LTD,27/02/2020,772.40,52000-WITH DRIVER-HIRE OF VEHICLES,HOME TO SCHOOL TRANSPORT,Transport,Revenue
Walsall Council,http://opendatacommunities.org/id/metropolitan-district-council/walsall,WC113-496,29/02/2020,Childrens,ACE CARS & MINIBUSES LTD,27/02/2020,772.40,52000-WITH DRIVER-HIRE OF VEHICLES,HOME TO SCHOOL TRANSPORT,Transport,Revenue
Walsall Council,http://opendatacommunities.org/id/metropolitan-district-council/walsall,WC113-497,29/02/2020,Childrens,ACE CARS & MINIBUSES LTD,03/02/2020,800.00,52000-WITH DRIVER-HIRE OF VEHICLES,HOME TO SCHOOL TRANSPORT,Transport,Revenue
Walsall Council,http://opendatacommunities.org/id/metropolitan-district-council/walsall,WC113-498,29/02/2020,Childrens,ACE CARS & MINIBUSES LTD,03/02/2020,800.00,52000-WITH DRIVER-HIRE OF VEHICLES,HOME TO SCHOOL TRANSPORT,Transport,Revenue
Walsall Council,http://opendatacommunities.org/id/metropolitan-district-council/walsall,WC113-499,29/02/2020,Childrens,ACE CARS & MINIBUSES LTD,27/02/2020,800.00,52000-WITH DRIVER-HIRE OF VEHICLES,HOME TO SCHOOL TRANSPORT,Transport,Revenue
Walsall Council,http://opendatacommunities.org/id/metropolitan-district-council/walsall,WC113-500,29/02/2020,Childrens,ACE CARS & MINIBUSES LTD,27/02/2020,800.00,52000-WITH DRIVER-HIRE OF VEHICLES,HOME TO SCHOOL TRANSPORT,Transport,Revenue
Walsall Council,http://opendatacommunities.org/id/metropolitan-district-council/walsall,WC113-501,29/02/2020,Childrens,ACE CARS & MINIBUSES LTD,03/02/2020,880.00,52000-WITH DRIVER-HIRE OF VEHICLES,HOME TO SCHOOL TRANSPORT,Transport,Revenue
Walsall Council,http://opendatacommunities.org/id/metropolitan-district-council/walsall,WC113-502,29/02/2020,Childrens,ACE CARS & MINIBUSES LTD,27/02/2020,880.00,52000-WITH DRIVER-HIRE OF VEHICLES,HOME TO SCHOOL TRANSPORT,Transport,Revenue
Walsall Council,http://opendatacommunities.org/id/metropolitan-district-council/walsall,WC113-503,29/02/2020,Childrens,ACE CARS & MINIBUSES LTD,27/02/2020,887.50,52000-WITH DRIVER-HIRE OF VEHICLES,HOME TO SCHOOL TRANSPORT,Transport,Revenue
Walsall Council,http://opendatacommunities.org/id/metropolitan-district-council/walsall,WC113-504,29/02/2020,Childrens,ACE CARS & MINIBUSES LTD,03/02/2020,972.40,52000-WITH DRIVER-HIRE OF VEHICLES,HOME TO SCHOOL TRANSPORT,Transport,Revenue
Walsall Council,http://opendatacommunities.org/id/metropolitan-district-council/walsall,WC113-505,29/02/2020,Childrens,ACE CARS & MINIBUSES LTD,03/02/2020,972.40,52000-WITH DRIVER-HIRE OF VEHICLES,HOME TO SCHOOL TRANSPORT,Transport,Revenue
Walsall Council,http://opendatacommunities.org/id/metropolitan-district-council/walsall,WC113-506,29/02/2020,Childrens,ACE CARS & MINIBUSES LTD,03/02/2020,972.40,52000-WITH DRIVER-HIRE OF VEHICLES,HOME TO SCHOOL TRANSPORT,Transport,Revenue
Walsall Council,http://opendatacommunities.org/id/metropolitan-district-council/walsall,WC113-507,29/02/2020,Childrens,ACE CARS & MINIBUSES LTD,03/02/2020,972.40,52000-WITH DRIVER-HIRE OF VEHICLES,HOME TO SCHOOL TRANSPORT,Transport,Revenue
Walsall Council,http://opendatacommunities.org/id/metropolitan-district-council/walsall,WC113-508,29/02/2020,Childrens,ACE CARS & MINIBUSES LTD,27/02/2020,972.40,52000-WITH DRIVER-HIRE OF VEHICLES,HOME TO SCHOOL TRANSPORT,Transport,Revenue
Walsall Council,http://opendatacommunities.org/id/metropolitan-district-council/walsall,WC113-509,29/02/2020,Childrens,ACE CARS & MINIBUSES LTD,27/02/2020,972.40,52000-WITH DRIVER-HIRE OF VEHICLES,HOME TO SCHOOL TRANSPORT,Transport,Revenue
Walsall Council,http://opendatacommunities.org/id/metropolitan-district-council/walsall,WC113-510,29/02/2020,Childrens,ACE CARS & MINIBUSES LTD,27/02/2020,972.40,52000-WITH DRIVER-HIRE OF VEHICLES,HOME TO SCHOOL TRANSPORT,Transport,Revenue
Walsall Council,http://opendatacommunities.org/id/metropolitan-district-council/walsall,WC113-511,29/02/2020,Childrens,ACE CARS & MINIBUSES LTD,27/02/2020,972.40,52000-WITH DRIVER-HIRE OF VEHICLES,HOME TO SCHOOL TRANSPORT,Transport,Revenue
Walsall Council,http://opendatacommunities.org/id/metropolitan-district-council/walsall,WC113-512,29/02/2020,Childrens,ACE CARS & MINIBUSES LTD,03/02/2020,"1,000.00",52000-WITH DRIVER-HIRE OF VEHICLES,HOME TO SCHOOL TRANSPORT,Transport,Revenue
Walsall Council,http://opendatacommunities.org/id/metropolitan-district-council/walsall,WC113-513,29/02/2020,Childrens,ACE CARS & MINIBUSES LTD,27/02/2020,"1,000.00",52000-WITH DRIVER-HIRE OF VEHICLES,HOME TO SCHOOL TRANSPORT,Transport,Revenue
Walsall Council,http://opendatacommunities.org/id/metropolitan-district-council/walsall,WC113-514,29/02/2020,Childrens,ACE CARS & MINIBUSES LTD,03/02/2020,"1,100.00",52000-WITH DRIVER-HIRE OF VEHICLES,HOME TO SCHOOL TRANSPORT,Transport,Revenue
Walsall Council,http://opendatacommunities.org/id/metropolitan-district-council/walsall,WC113-515,29/02/2020,Childrens,ACE CARS & MINIBUSES LTD,03/02/2020,"1,100.00",52000-WITH DRIVER-HIRE OF VEHICLES,HOME TO SCHOOL TRANSPORT,Transport,Revenue
Walsall Council,http://opendatacommunities.org/id/metropolitan-district-council/walsall,WC113-516,29/02/2020,Childrens,ACE CARS & MINIBUSES LTD,27/02/2020,"1,100.00",52000-WITH DRIVER-HIRE OF VEHICLES,HOME TO SCHOOL TRANSPORT,Transport,Revenue
Walsall Council,http://opendatacommunities.org/id/metropolitan-district-council/walsall,WC113-517,29/02/2020,Childrens,ACE CARS & MINIBUSES LTD,27/02/2020,"1,100.00",52000-WITH DRIVER-HIRE OF VEHICLES,HOME TO SCHOOL TRANSPORT,Transport,Revenue
Walsall Council,http://opendatacommunities.org/id/metropolitan-district-council/walsall,WC113-518,29/02/2020,Childrens,ACE CARS & MINIBUSES LTD,03/02/2020,"1,160.00",52000-WITH DRIVER-HIRE OF VEHICLES,HOME TO SCHOOL TRANSPORT,Transport,Revenue
Walsall Council,http://opendatacommunities.org/id/metropolitan-district-council/walsall,WC113-519,29/02/2020,Childrens,ACE CARS & MINIBUSES LTD,27/02/2020,"1,160.00",52000-WITH DRIVER-HIRE OF VEHICLES,HOME TO SCHOOL TRANSPORT,Transport,Revenue
Walsall Council,http://opendatacommunities.org/id/metropolitan-district-council/walsall,WC113-520,29/02/2020,Childrens,ACE CARS & MINIBUSES LTD,03/02/2020,"1,250.00",52000-WITH DRIVER-HIRE OF VEHICLES,HOME TO SCHOOL TRANSPORT,Transport,Revenue
Walsall Council,http://opendatacommunities.org/id/metropolitan-district-council/walsall,WC113-521,29/02/2020,Childrens,ACE CARS & MINIBUSES LTD,03/02/2020,"1,250.00",52000-WITH DRIVER-HIRE OF VEHICLES,HOME TO SCHOOL TRANSPORT,Transport,Revenue
Walsall Council,http://opendatacommunities.org/id/metropolitan-district-council/walsall,WC113-522,29/02/2020,Childrens,ACE CARS & MINIBUSES LTD,03/02/2020,"1,250.00",52000-WITH DRIVER-HIRE OF VEHICLES,HOME TO SCHOOL TRANSPORT,Transport,Revenue
Walsall Council,http://opendatacommunities.org/id/metropolitan-district-council/walsall,WC113-523,29/02/2020,Childrens,ACE CARS & MINIBUSES LTD,27/02/2020,"1,250.00",52000-WITH DRIVER-HIRE OF VEHICLES,HOME TO SCHOOL TRANSPORT,Transport,Revenue
Walsall Council,http://opendatacommunities.org/id/metropolitan-district-council/walsall,WC113-524,29/02/2020,Childrens,ACE CARS & MINIBUSES LTD,27/02/2020,"1,250.00",52000-WITH DRIVER-HIRE OF VEHICLES,HOME TO SCHOOL TRANSPORT,Transport,Revenue
Walsall Council,http://opendatacommunities.org/id/metropolitan-district-council/walsall,WC113-525,29/02/2020,Childrens,ACE CARS & MINIBUSES LTD,27/02/2020,"1,250.00",52000-WITH DRIVER-HIRE OF VEHICLES,HOME TO SCHOOL TRANSPORT,Transport,Revenue
Walsall Council,http://opendatacommunities.org/id/metropolitan-district-council/walsall,WC113-526,29/02/2020,Childrens,ACE CARS & MINIBUSES LTD,03/02/2020,"1,300.00",52000-WITH DRIVER-HIRE OF VEHICLES,HOME TO SCHOOL TRANSPORT,Transport,Revenue
Walsall Council,http://opendatacommunities.org/id/metropolitan-district-council/walsall,WC113-527,29/02/2020,Childrens,ACE CARS & MINIBUSES LTD,27/02/2020,"1,300.00",52000-WITH DRIVER-HIRE OF VEHICLES,HOME TO SCHOOL TRANSPORT,Transport,Revenue
Walsall Council,http://opendatacommunities.org/id/metropolitan-district-council/walsall,WC113-528,29/02/2020,Childrens,ACE CARS & MINIBUSES LTD,03/02/2020,"1,400.00",52000-WITH DRIVER-HIRE OF VEHICLES,HOME TO SCHOOL TRANSPORT,Transport,Revenue
Walsall Council,http://opendatacommunities.org/id/metropolitan-district-council/walsall,WC113-529,29/02/2020,Childrens,ACE CARS & MINIBUSES LTD,27/02/2020,"1,400.00",52000-WITH DRIVER-HIRE OF VEHICLES,HOME TO SCHOOL TRANSPORT,Transport,Revenue
Walsall Council,http://opendatacommunities.org/id/metropolitan-district-council/walsall,WC113-530,29/02/2020,Childrens,ACE CARS & MINIBUSES LTD,03/02/2020,"1,500.00",52000-WITH DRIVER-HIRE OF VEHICLES,HOME TO SCHOOL TRANSPORT,Transport,Revenue
Walsall Council,http://opendatacommunities.org/id/metropolitan-district-council/walsall,WC113-531,29/02/2020,Childrens,ACE CARS & MINIBUSES LTD,27/02/2020,"1,500.00",52000-WITH DRIVER-HIRE OF VEHICLES,HOME TO SCHOOL TRANSPORT,Transport,Revenue
Walsall Council,http://opendatacommunities.org/id/metropolitan-district-council/walsall,WC113-532,29/02/2020,Childrens,ACE CARS & MINIBUSES LTD,03/02/2020,"1,540.00",52000-WITH DRIVER-HIRE OF VEHICLES,HOME TO SCHOOL TRANSPORT,Transport,Revenue
Walsall Council,http://opendatacommunities.org/id/metropolitan-district-council/walsall,WC113-533,29/02/2020,Childrens,ACE CARS & MINIBUSES LTD,27/02/2020,"1,540.00",52000-WITH DRIVER-HIRE OF VEHICLES,HOME TO SCHOOL TRANSPORT,Transport,Revenue
Walsall Council,http://opendatacommunities.org/id/metropolitan-district-council/walsall,WC113-534,29/02/2020,Childrens,ACE CARS & MINIBUSES LTD,03/02/2020,"1,560.00",52000-WITH DRIVER-HIRE OF VEHICLES,HOME TO SCHOOL TRANSPORT,Transport,Revenue
Walsall Council,http://opendatacommunities.org/id/metropolitan-district-council/walsall,WC113-535,29/02/2020,Childrens,ACE CARS & MINIBUSES LTD,27/02/2020,"1,560.00",52000-WITH DRIVER-HIRE OF VEHICLES,HOME TO SCHOOL TRANSPORT,Transport,Revenue
Walsall Council,http://opendatacommunities.org/id/metropolitan-district-council/walsall,WC113-536,29/02/2020,Childrens,ACE CARS & MINIBUSES LTD,03/02/2020,"1,580.00",52000-WITH DRIVER-HIRE OF VEHICLES,HOME TO SCHOOL TRANSPORT,Transport,Revenue
Walsall Council,http://opendatacommunities.org/id/metropolitan-district-council/walsall,WC113-537,29/02/2020,Adult Social Care,ACEPAY LTD (COTTAGE NUR HOME),27/02/2020,459.37,73502-NURSING,SOCIAL SUPPORT,Third Party Payments,Revenue
Walsall Council,http://opendatacommunities.org/id/metropolitan-district-council/walsall,WC113-538,29/02/2020,Adult Social Care,ACEPAY LTD (COTTAGE NUR HOME),27/02/2020,"1,684.35",73502-NURSING,PHYSICAL SUPPORT,Third Party Payments,Revenue
Walsall Council,http://opendatacommunities.org/id/metropolitan-district-council/walsall,WC113-539,29/02/2020,Adult Social Care,ACEPAY LTD (COTTAGE NUR HOME),03/02/2020,"1,774.96",73500-RESIDENTIAL,PHYSICAL SUPPORT,Third Party Payments,Revenue
Walsall Council,http://opendatacommunities.org/id/metropolitan-district-council/walsall,WC113-540,29/02/2020,Adult Social Care,ACEPAY LTD (COTTAGE NUR HOME),27/02/2020,"1,774.96",73500-RESIDENTIAL,PHYSICAL SUPPORT,Third Party Payments,Revenue
Walsall Council,http://opendatacommunities.org/id/metropolitan-district-council/walsall,WC113-541,29/02/2020,Adult Social Care,ACEPAY LTD (COTTAGE NUR HOME),03/02/2020,"1,972.24",73501-RESIDENTIAL EMI,PHYSICAL SUPPORT,Third Party Payments,Revenue
Walsall Council,http://opendatacommunities.org/id/metropolitan-district-council/walsall,WC113-542,29/02/2020,Adult Social Care,ACEPAY LTD (COTTAGE NUR HOME),27/02/2020,"1,972.24",73501-RESIDENTIAL EMI,PHYSICAL SUPPORT,Third Party Payments,Revenue
Walsall Council,http://opendatacommunities.org/id/metropolitan-district-council/walsall,WC113-543,29/02/2020,Adult Social Care,ACEPAY LTD (COTTAGE NUR HOME),03/02/2020,"2,143.72",73502-NURSING,PHYSICAL SUPPORT,Third Party Payments,Revenue
Walsall Council,http://opendatacommunities.org/id/metropolitan-district-council/walsall,WC113-544,29/02/2020,Adult Social Care,ACEPAY LTD (COTTAGE NUR HOME),03/02/2020,"2,143.72",73502-NURSING,PHYSICAL SUPPORT,Third Party Payments,Revenue
Walsall Council,http://opendatacommunities.org/id/metropolitan-district-council/walsall,WC113-545,29/02/2020,Adult Social Care,ACEPAY LTD (COTTAGE NUR HOME),03/02/2020,"2,143.72",73502-NURSING,PHYSICAL SUPPORT,Third Party Payments,Revenue
Walsall Council,http://opendatacommunities.org/id/metropolitan-district-council/walsall,WC113-546,29/02/2020,Adult Social Care,ACEPAY LTD (COTTAGE NUR HOME),03/02/2020,"2,143.72",73502-NURSING,SOCIAL SUPPORT,Third Party Payments,Revenue
Walsall Council,http://opendatacommunities.org/id/metropolitan-district-council/walsall,WC113-547,29/02/2020,Adult Social Care,ACEPAY LTD (COTTAGE NUR HOME),03/02/2020,"2,143.72",73502-NURSING,SUPPORT WITH MEMORY & COGNITION,Third Party Payments,Revenue
Walsall Council,http://opendatacommunities.org/id/metropolitan-district-council/walsall,WC113-548,29/02/2020,Adult Social Care,ACEPAY LTD (COTTAGE NUR HOME),03/02/2020,"2,143.72",73502-NURSING,SUPPORT WITH MEMORY & COGNITION,Third Party Payments,Revenue
Walsall Council,http://opendatacommunities.org/id/metropolitan-district-council/walsall,WC113-549,29/02/2020,Adult Social Care,ACEPAY LTD (COTTAGE NUR HOME),03/02/2020,"2,143.72",73502-NURSING,PHYSICAL SUPPORT,Third Party Payments,Revenue
Walsall Council,http://opendatacommunities.org/id/metropolitan-district-council/walsall,WC113-550,29/02/2020,Adult Social Care,ACEPAY LTD (COTTAGE NUR HOME),03/02/2020,"2,143.72",73502-NURSING,PHYSICAL SUPPORT,Third Party Payments,Revenue
Walsall Council,http://opendatacommunities.org/id/metropolitan-district-council/walsall,WC113-551,29/02/2020,Adult Social Care,ACEPAY LTD (COTTAGE NUR HOME),03/02/2020,"2,143.72",73502-NURSING,PHYSICAL SUPPORT,Third Party Payments,Revenue
Walsall Council,http://opendatacommunities.org/id/metropolitan-district-council/walsall,WC113-552,29/02/2020,Adult Social Care,ACEPAY LTD (COTTAGE NUR HOME),03/02/2020,"2,143.72",73502-NURSING,PHYSICAL SUPPORT,Third Party Payments,Revenue
Walsall Council,http://opendatacommunities.org/id/metropolitan-district-council/walsall,WC113-553,29/02/2020,Adult Social Care,ACEPAY LTD (COTTAGE NUR HOME),03/02/2020,"2,143.72",73502-NURSING,SOCIAL SUPPORT,Third Party Payments,Revenue
Walsall Council,http://opendatacommunities.org/id/metropolitan-district-council/walsall,WC113-554,29/02/2020,Adult Social Care,ACEPAY LTD (COTTAGE NUR HOME),03/02/2020,"2,143.72",73502-NURSING,PHYSICAL SUPPORT,Third Party Payments,Revenue
Walsall Council,http://opendatacommunities.org/id/metropolitan-district-council/walsall,WC113-555,29/02/2020,Adult Social Care,ACEPAY LTD (COTTAGE NUR HOME),03/02/2020,"2,143.72",73502-NURSING,SUPPORT WITH MEMORY & COGNITION,Third Party Payments,Revenue
Walsall Council,http://opendatacommunities.org/id/metropolitan-district-council/walsall,WC113-556,29/02/2020,Adult Social Care,ACEPAY LTD (COTTAGE NUR HOME),27/02/2020,"2,143.72",73502-NURSING,SUPPORT WITH MEMORY & COGNITION,Third Party Payments,Revenue
Walsall Council,http://opendatacommunities.org/id/metropolitan-district-council/walsall,WC113-557,29/02/2020,Adult Social Care,ACEPAY LTD (COTTAGE NUR HOME),27/02/2020,"2,143.72",73502-NURSING,PHYSICAL SUPPORT,Third Party Payments,Revenue
Walsall Council,http://opendatacommunities.org/id/metropolitan-district-council/walsall,WC113-558,29/02/2020,Adult Social Care,ACEPAY LTD (COTTAGE NUR HOME),27/02/2020,"2,143.72",73502-NURSING,SUPPORT WITH MEMORY & COGNITION,Third Party Payments,Revenue
Walsall Council,http://opendatacommunities.org/id/metropolitan-district-council/walsall,WC113-559,29/02/2020,Adult Social Care,ACEPAY LTD (COTTAGE NUR HOME),27/02/2020,"2,143.72",73502-NURSING,PHYSICAL SUPPORT,Third Party Payments,Revenue
Walsall Council,http://opendatacommunities.org/id/metropolitan-district-council/walsall,WC113-560,29/02/2020,Adult Social Care,ACEPAY LTD (COTTAGE NUR HOME),27/02/2020,"2,143.72",73502-NURSING,PHYSICAL SUPPORT,Third Party Payments,Revenue
Walsall Council,http://opendatacommunities.org/id/metropolitan-district-council/walsall,WC113-561,29/02/2020,Adult Social Care,ACEPAY LTD (COTTAGE NUR HOME),27/02/2020,"2,143.72",73502-NURSING,SOCIAL SUPPORT,Third Party Payments,Revenue
Walsall Council,http://opendatacommunities.org/id/metropolitan-district-council/walsall,WC113-562,29/02/2020,Adult Social Care,ACEPAY LTD (COTTAGE NUR HOME),27/02/2020,"2,143.72",73502-NURSING,SUPPORT WITH MEMORY & COGNITION,Third Party Payments,Revenue
Walsall Council,http://opendatacommunities.org/id/metropolitan-district-council/walsall,WC113-563,29/02/2020,Adult Social Care,ACEPAY LTD (COTTAGE NUR HOME),27/02/2020,"2,143.72",73502-NURSING,PHYSICAL SUPPORT,Third Party Payments,Revenue
Walsall Council,http://opendatacommunities.org/id/metropolitan-district-council/walsall,WC113-564,29/02/2020,Adult Social Care,ACEPAY LTD (COTTAGE NUR HOME),27/02/2020,"2,143.72",73502-NURSING,PHYSICAL SUPPORT,Third Party Payments,Revenue
Walsall Council,http://opendatacommunities.org/id/metropolitan-district-council/walsall,WC113-565,29/02/2020,Adult Social Care,ACEPAY LTD (COTTAGE NUR HOME),27/02/2020,"2,143.72",73502-NURSING,PHYSICAL SUPPORT,Third Party Payments,Revenue
Walsall Council,http://opendatacommunities.org/id/metropolitan-district-council/walsall,WC113-566,29/02/2020,Adult Social Care,ACEPAY LTD (COTTAGE NUR HOME),27/02/2020,"2,143.72",73502-NURSING,PHYSICAL SUPPORT,Third Party Payments,Revenue
Walsall Council,http://opendatacommunities.org/id/metropolitan-district-council/walsall,WC113-567,29/02/2020,Adult Social Care,ACEPAY LTD (COTTAGE NUR HOME),03/02/2020,"2,343.72",73502-NURSING,PHYSICAL SUPPORT,Third Party Payments,Revenue
Walsall Council,http://opendatacommunities.org/id/metropolitan-district-council/walsall,WC113-568,29/02/2020,Adult Social Care,ACEPAY LTD (COTTAGE NUR HOME),27/02/2020,"2,343.72",73502-NURSING,PHYSICAL SUPPORT,Third Party Payments,Revenue
Walsall Council,http://opendatacommunities.org/id/metropolitan-district-council/walsall,WC113-569,29/02/2020,Childrens,ACORNS CHILDRENS HOSPICE TRUST,11/02/2020,750.00,63000-PROFESSIONAL FEES AND SERVICES,EARLY YEARS AND DISABILITIES SERVICE,Supplies & Services,Revenue
Walsall Council,http://opendatacommunities.org/id/metropolitan-district-council/walsall,WC113-570,29/02/2020,Childrens,ACORNS CHILDRENS HOSPICE TRUST,11/02/2020,"1,700.00",63000-PROFESSIONAL FEES AND SERVICES,EARLY YEARS AND DISABILITIES SERVICE,Supplies & Services,Revenue
Walsall Council,http://opendatacommunities.org/id/metropolitan-district-council/walsall,WC113-571,29/02/2020,Childrens,ACORNS CHILDRENS HOSPICE TRUST,11/02/2020,"1,700.00",63000-PROFESSIONAL FEES AND SERVICES,EARLY YEARS AND DISABILITIES SERVICE,Supplies & Services,Revenue
Walsall Council,http://opendatacommunities.org/id/metropolitan-district-council/walsall,WC113-572,29/02/2020,Childrens,ACORNS CHILDRENS HOSPICE TRUST,11/02/2020,"1,700.00",63000-PROFESSIONAL FEES AND SERVICES,EARLY YEARS AND DISABILITIES SERVICE,Supplies & Services,Revenue
Walsall Council,http://opendatacommunities.org/id/metropolitan-district-council/walsall,WC113-573,29/02/2020,Childrens,ACORNS CHILDRENS HOSPICE TRUST,13/02/2020,"1,700.00",63000-PROFESSIONAL FEES AND SERVICES,EARLY YEARS AND DISABILITIES SERVICE,Supplies & Services,Revenue
Walsall Council,http://opendatacommunities.org/id/metropolitan-district-council/walsall,WC113-574,29/02/2020,Economy & Environment,ACTION GRAPHICS & DISPLAY LTD,07/02/2020,580.00,"62521-INTERPRETATION,TRANSLATION & HUMAN AIDS TO TRANSCRIPTION",NAG - FAMILY GALLERY,Supplies & Services,Revenue
Walsall Council,http://opendatacommunities.org/id/metropolitan-district-council/walsall,WC113-575,29/02/2020,Adult Social Care,ACTION ON HEARING LOSS,03/02/2020,"1,008.00",73508-COMMUNITY SUPPORTED LIVING/SUPPORTED ACCOMMODATION,MENTAL HEALTH SUPPORT,Third Party Payments,Revenue
Walsall Council,http://opendatacommunities.org/id/metropolitan-district-council/walsall,WC113-576,29/02/2020,Childrens,ACTIVE CARE SOLUTIONS LTD,21/02/2020,"2,662.80",74037-INDEPENDENT FOSTER CARE-OTH AGENCY PROVISION,EXTERNAL FOSTER CARE PROVISION,Third Party Payments,Revenue
Walsall Council,http://opendatacommunities.org/id/metropolitan-district-council/walsall,WC113-577,29/02/2020,Childrens,ACTIVE CARE SOLUTIONS LTD,21/02/2020,"3,220.00",74037-INDEPENDENT FOSTER CARE-OTH AGENCY PROVISION,EXTERNAL FOSTER CARE PROVISION,Third Party Payments,Revenue
Walsall Council,http://opendatacommunities.org/id/metropolitan-district-council/walsall,WC113-578,29/02/2020,Adult Social Care,REDACTED,04/02/2020,442.52,73506-DIRECT PAYMENT,LEARNING DISABILITY SUPPORT,Third Party Payments,Revenue
Walsall Council,http://opendatacommunities.org/id/metropolitan-district-council/walsall,WC113-579,29/02/2020,Economy & Environment,ADEPT,17/02/2020,"1,250.00",64500-PUBLICATIONS/ORGANISATIONS-SUBSCRIPTIONS,REGENERATION MANAGEMENT,Supplies & Services,Revenue
Walsall Council,http://opendatacommunities.org/id/metropolitan-district-council/walsall,WC113-580,29/02/2020,Resources and Transformation,ADLER MANUFACTURING LIMITED,01/02/2020,511.49,64009-MAYORAL COSTS,MAYORS SECRETARIAT,Supplies & Services,Revenue
Walsall Council,http://opendatacommunities.org/id/metropolitan-district-council/walsall,WC113-581,29/02/2020,Childrens,ADMIRAL SELF STORAGE LTD,17/02/2020,228.78,63000-PROFESSIONAL FEES AND SERVICES,CHILDREN'S COMMISSIONING,Supplies & Services,Revenue
Walsall Council,http://opendatacommunities.org/id/metropolitan-district-council/walsall,WC113-582,29/02/2020,Childrens,REDACTED,10/02/2020,333.12,74510-RESIDENTS ORDERS,ADOPTION ALLOWANCES,Third Party Payments,Revenue
Walsall Council,http://opendatacommunities.org/id/metropolitan-district-council/walsall,WC113-583,29/02/2020,Childrens,REDACTED,10/02/2020,361.12,74510-RESIDENTS ORDERS,ADOPTION ALLOWANCES,Third Party Payments,Revenue
Walsall Council,http://opendatacommunities.org/id/metropolitan-district-council/walsall,WC113-584,29/02/2020,Adult Social Care,REDACTED,04/02/2020,"2,083.20",73506-DIRECT PAYMENT,LEARNING DISABILITY SUPPORT,Third Party Payments,Revenue
Walsall Council,http://opendatacommunities.org/id/metropolitan-district-council/walsall,WC113-585,29/02/2020,Adult Social Care,ADVANCE HEALTH CARE (UK) LTD,24/02/2020,"-1,548.79",73019-PSE'S-PRIV CONTRACTOR FEES,INTERMEDIATE CARE SERVICE,Third Party Payments,Revenue
Walsall Council,http://opendatacommunities.org/id/metropolitan-district-council/walsall,WC113-586,29/02/2020,Adult Social Care,ADVANCE HEALTH CARE (UK) LTD,01/02/2020,250.78,73025-PROFESSIONAL SERVICES-PRIV CONTRACTOR & OTHER AGENCIES,INTERMEDIATE CARE SERVICE,Third Party Payments,Revenue
Walsall Council,http://opendatacommunities.org/id/metropolitan-district-council/walsall,WC113-587,29/02/2020,Adult Social Care,ADVANCE HEALTH CARE (UK) LTD,01/02/2020,250.78,73025-PROFESSIONAL SERVICES-PRIV CONTRACTOR & OTHER AGENCIES,INTERMEDIATE CARE SERVICE,Third Party Payments,Revenue
Walsall Council,http://opendatacommunities.org/id/metropolitan-district-council/walsall,WC113-588,29/02/2020,Adult Social Care,ADVANCE HEALTH CARE (UK) LTD,05/02/2020,250.78,73025-PROFESSIONAL SERVICES-PRIV CONTRACTOR & OTHER AGENCIES,INTERMEDIATE CARE SERVICE,Third Party Payments,Revenue
Walsall Council,http://opendatacommunities.org/id/metropolitan-district-council/walsall,WC113-589,29/02/2020,Adult Social Care,ADVANCE HEALTH CARE (UK) LTD,12/02/2020,250.78,73025-PROFESSIONAL SERVICES-PRIV CONTRACTOR & OTHER AGENCIES,INTERMEDIATE CARE SERVICE,Third Party Payments,Revenue
Walsall Council,http://opendatacommunities.org/id/metropolitan-district-council/walsall,WC113-590,29/02/2020,Adult Social Care,ADVANCE HEALTH CARE (UK) LTD,14/02/2020,250.78,73025-PROFESSIONAL SERVICES-PRIV CONTRACTOR & OTHER AGENCIES,INTERMEDIATE CARE SERVICE,Third Party Payments,Revenue
Walsall Council,http://opendatacommunities.org/id/metropolitan-district-council/walsall,WC113-591,29/02/2020,Adult Social Care,ADVANCE HEALTH CARE (UK) LTD,14/02/2020,257.94,73025-PROFESSIONAL SERVICES-PRIV CONTRACTOR & OTHER AGENCIES,INTERMEDIATE CARE SERVICE,Third Party Payments,Revenue
Walsall Council,http://opendatacommunities.org/id/metropolitan-district-council/walsall,WC113-592,29/02/2020,Adult Social Care,ADVANCE HEALTH CARE (UK) LTD,01/02/2020,274.40,73019-PSE'S-PRIV CONTRACTOR FEES,INTERMEDIATE CARE SERVICE,Third Party Payments,Revenue
Walsall Council,http://opendatacommunities.org/id/metropolitan-district-council/walsall,WC113-593,29/02/2020,Adult Social Care,ADVANCE HEALTH CARE (UK) LTD,05/02/2020,274.40,73019-PSE'S-PRIV CONTRACTOR FEES,INTERMEDIATE CARE SERVICE,Third Party Payments,Revenue
Walsall Council,http://opendatacommunities.org/id/metropolitan-district-council/walsall,WC113-594,29/02/2020,Adult Social Care,ADVANCE HEALTH CARE (UK) LTD,28/02/2020,275.48,73507-DOMICILIARY CARE,PHYSICAL SUPPORT,Third Party Payments,Revenue
Walsall Council,http://opendatacommunities.org/id/metropolitan-district-council/walsall,WC113-595,29/02/2020,Adult Social Care,ADVANCE HEALTH CARE (UK) LTD,01/02/2020,282.24,73019-PSE'S-PRIV CONTRACTOR FEES,INTERMEDIATE CARE SERVICE,Third Party Payments,Revenue
Walsall Council,http://opendatacommunities.org/id/metropolitan-district-council/walsall,WC113-596,29/02/2020,Adult Social Care,ADVANCE HEALTH CARE (UK) LTD,05/02/2020,297.92,73019-PSE'S-PRIV CONTRACTOR FEES,INTERMEDIATE CARE SERVICE,Third Party Payments,Revenue
Walsall Council,http://opendatacommunities.org/id/metropolitan-district-council/walsall,WC113-597,29/02/2020,Adult Social Care,ADVANCE HEALTH CARE (UK) LTD,05/02/2020,352.80,73019-PSE'S-PRIV CONTRACTOR FEES,INTERMEDIATE CARE SERVICE,Third Party Payments,Revenue
Walsall Council,http://opendatacommunities.org/id/metropolitan-district-council/walsall,WC113-598,29/02/2020,Adult Social Care,ADVANCE HEALTH CARE (UK) LTD,05/02/2020,352.80,73019-PSE'S-PRIV CONTRACTOR FEES,INTERMEDIATE CARE SERVICE,Third Party Payments,Revenue
Walsall Council,http://opendatacommunities.org/id/metropolitan-district-council/walsall,WC113-599,29/02/2020,Adult Social Care,ADVANCE HEALTH CARE (UK) LTD,28/02/2020,356.06,73507-DOMICILIARY CARE,PHYSICAL SUPPORT,Third Party Payments,Revenue
Walsall Council,http://opendatacommunities.org/id/metropolitan-district-council/walsall,WC113-600,29/02/2020,Adult Social Care,ADVANCE HEALTH CARE (UK) LTD,26/02/2020,364.56,73019-PSE'S-PRIV CONTRACTOR FEES,INTERMEDIATE CARE SERVICE,Third Party Payments,Revenue
Walsall Council,http://opendatacommunities.org/id/metropolitan-district-council/walsall,WC113-601,29/02/2020,Adult Social Care,ADVANCE HEALTH CARE (UK) LTD,01/02/2020,384.16,73019-PSE'S-PRIV CONTRACTOR FEES,INTERMEDIATE CARE SERVICE,Third Party Payments,Revenue
Walsall Council,http://opendatacommunities.org/id/metropolitan-district-council/walsall,WC113-602,29/02/2020,Adult Social Care,ADVANCE HEALTH CARE (UK) LTD,01/02/2020,384.16,73019-PSE'S-PRIV CONTRACTOR FEES,INTERMEDIATE CARE SERVICE,Third Party Payments,Revenue
Walsall Council,http://opendatacommunities.org/id/metropolitan-district-council/walsall,WC113-603,29/02/2020,Adult Social Care,ADVANCE HEALTH CARE (UK) LTD,05/02/2020,384.16,73019-PSE'S-PRIV CONTRACTOR FEES,INTERMEDIATE CARE SERVICE,Third Party Payments,Revenue
Walsall Council,http://opendatacommunities.org/id/metropolitan-district-council/walsall,WC113-604,29/02/2020,Adult Social Care,ADVANCE HEALTH CARE (UK) LTD,26/02/2020,384.16,73019-PSE'S-PRIV CONTRACTOR FEES,INTERMEDIATE CARE SERVICE,Third Party Payments,Revenue
Walsall Council,http://opendatacommunities.org/id/metropolitan-district-council/walsall,WC113-605,29/02/2020,Adult Social Care,ADVANCE HEALTH CARE (UK) LTD,28/02/2020,414.66,73507-DOMICILIARY CARE,PHYSICAL SUPPORT,Third Party Payments,Revenue
Walsall Council,http://opendatacommunities.org/id/metropolitan-district-council/walsall,WC113-606,29/02/2020,Adult Social Care,ADVANCE HEALTH CARE (UK) LTD,01/02/2020,423.36,73019-PSE'S-PRIV CONTRACTOR FEES,INTERMEDIATE CARE SERVICE,Third Party Payments,Revenue
Walsall Council,http://opendatacommunities.org/id/metropolitan-district-council/walsall,WC113-607,29/02/2020,Adult Social Care,ADVANCE HEALTH CARE (UK) LTD,19/02/2020,429.90,73025-PROFESSIONAL SERVICES-PRIV CONTRACTOR & OTHER AGENCIES,RAPID RESPONSE,Third Party Payments,Revenue
Walsall Council,http://opendatacommunities.org/id/metropolitan-district-council/walsall,WC113-608,29/02/2020,Adult Social Care,ADVANCE HEALTH CARE (UK) LTD,28/02/2020,451.28,73507-DOMICILIARY CARE,PHYSICAL SUPPORT,Third Party Payments,Revenue
Walsall Council,http://opendatacommunities.org/id/metropolitan-district-council/walsall,WC113-609,29/02/2020,Adult Social Care,ADVANCE HEALTH CARE (UK) LTD,01/02/2020,451.40,73025-PROFESSIONAL SERVICES-PRIV CONTRACTOR & OTHER AGENCIES,INTERMEDIATE CARE SERVICE,Third Party Payments,Revenue
Walsall Council,http://opendatacommunities.org/id/metropolitan-district-council/walsall,WC113-610,29/02/2020,Adult Social Care,ADVANCE HEALTH CARE (UK) LTD,05/02/2020,451.40,73025-PROFESSIONAL SERVICES-PRIV CONTRACTOR & OTHER AGENCIES,INTERMEDIATE CARE SERVICE,Third Party Payments,Revenue
Walsall Council,http://opendatacommunities.org/id/metropolitan-district-council/walsall,WC113-611,29/02/2020,Adult Social Care,ADVANCE HEALTH CARE (UK) LTD,07/02/2020,451.40,73019-PSE'S-PRIV CONTRACTOR FEES,INTERMEDIATE CARE SERVICE,Third Party Payments,Revenue
Walsall Council,http://opendatacommunities.org/id/metropolitan-district-council/walsall,WC113-612,29/02/2020,Adult Social Care,ADVANCE HEALTH CARE (UK) LTD,07/02/2020,451.40,73019-PSE'S-PRIV CONTRACTOR FEES,INTERMEDIATE CARE SERVICE,Third Party Payments,Revenue
Walsall Council,http://opendatacommunities.org/id/metropolitan-district-council/walsall,WC113-613,29/02/2020,Adult Social Care,ADVANCE HEALTH CARE (UK) LTD,12/02/2020,451.40,73025-PROFESSIONAL SERVICES-PRIV CONTRACTOR & OTHER AGENCIES,INTERMEDIATE CARE SERVICE,Third Party Payments,Revenue
Walsall Council,http://opendatacommunities.org/id/metropolitan-district-council/walsall,WC113-614,29/02/2020,Adult Social Care,ADVANCE HEALTH CARE (UK) LTD,12/02/2020,451.40,73025-PROFESSIONAL SERVICES-PRIV CONTRACTOR & OTHER AGENCIES,INTERMEDIATE CARE SERVICE,Third Party Payments,Revenue
Walsall Council,http://opendatacommunities.org/id/metropolitan-district-council/walsall,WC113-615,29/02/2020,Adult Social Care,ADVANCE HEALTH CARE (UK) LTD,25/02/2020,451.40,73025-PROFESSIONAL SERVICES-PRIV CONTRACTOR & OTHER AGENCIES,INTERMEDIATE CARE SERVICE,Third Party Payments,Revenue
Walsall Council,http://opendatacommunities.org/id/metropolitan-district-council/walsall,WC113-616,29/02/2020,Adult Social Care,ADVANCE HEALTH CARE (UK) LTD,25/02/2020,451.40,73025-PROFESSIONAL SERVICES-PRIV CONTRACTOR & OTHER AGENCIES,INTERMEDIATE CARE SERVICE,Third Party Payments,Revenue
Walsall Council,http://opendatacommunities.org/id/metropolitan-district-council/walsall,WC113-617,29/02/2020,Adult Social Care,ADVANCE HEALTH CARE (UK) LTD,25/02/2020,451.40,73025-PROFESSIONAL SERVICES-PRIV CONTRACTOR & OTHER AGENCIES,INTERMEDIATE CARE SERVICE,Third Party Payments,Revenue
Walsall Council,http://opendatacommunities.org/id/metropolitan-district-council/walsall,WC113-618,29/02/2020,Adult Social Care,ADVANCE HEALTH CARE (UK) LTD,25/02/2020,451.40,73025-PROFESSIONAL SERVICES-PRIV CONTRACTOR & OTHER AGENCIES,INTERMEDIATE CARE SERVICE,Third Party Payments,Revenue
Walsall Council,http://opendatacommunities.org/id/metropolitan-district-council/walsall,WC113-619,29/02/2020,Adult Social Care,ADVANCE HEALTH CARE (UK) LTD,01/02/2020,454.72,73019-PSE'S-PRIV CONTRACTOR FEES,INTERMEDIATE CARE SERVICE,Third Party Payments,Revenue
Walsall Council,http://opendatacommunities.org/id/metropolitan-district-council/walsall,WC113-620,29/02/2020,Adult Social Care,ADVANCE HEALTH CARE (UK) LTD,01/02/2020,454.72,73019-PSE'S-PRIV CONTRACTOR FEES,INTERMEDIATE CARE SERVICE,Third Party Payments,Revenue
Walsall Council,http://opendatacommunities.org/id/metropolitan-district-council/walsall,WC113-621,29/02/2020,Adult Social Care,ADVANCE HEALTH CARE (UK) LTD,01/02/2020,462.56,73019-PSE'S-PRIV CONTRACTOR FEES,INTERMEDIATE CARE SERVICE,Third Party Payments,Revenue
Walsall Council,http://opendatacommunities.org/id/metropolitan-district-council/walsall,WC113-622,29/02/2020,Adult Social Care,ADVANCE HEALTH CARE (UK) LTD,05/02/2020,462.56,73019-PSE'S-PRIV CONTRACTOR FEES,INTERMEDIATE CARE SERVICE,Third Party Payments,Revenue
Walsall Council,http://opendatacommunities.org/id/metropolitan-district-council/walsall,WC113-623,29/02/2020,Adult Social Care,ADVANCE HEALTH CARE (UK) LTD,01/02/2020,465.73,73025-PROFESSIONAL SERVICES-PRIV CONTRACTOR & OTHER AGENCIES,INTERMEDIATE CARE SERVICE,Third Party Payments,Revenue
Walsall Council,http://opendatacommunities.org/id/metropolitan-district-council/walsall,WC113-624,29/02/2020,Adult Social Care,ADVANCE HEALTH CARE (UK) LTD,12/02/2020,465.73,73025-PROFESSIONAL SERVICES-PRIV CONTRACTOR & OTHER AGENCIES,INTERMEDIATE CARE SERVICE,Third Party Payments,Revenue
Walsall Council,http://opendatacommunities.org/id/metropolitan-district-council/walsall,WC113-625,29/02/2020,Adult Social Care,ADVANCE HEALTH CARE (UK) LTD,28/02/2020,480.97,73507-DOMICILIARY CARE,PHYSICAL SUPPORT,Third Party Payments,Revenue
Walsall Council,http://opendatacommunities.org/id/metropolitan-district-council/walsall,WC113-626,29/02/2020,Adult Social Care,ADVANCE HEALTH CARE (UK) LTD,28/02/2020,490.41,73507-DOMICILIARY CARE,PHYSICAL SUPPORT,Third Party Payments,Revenue
Walsall Council,http://opendatacommunities.org/id/metropolitan-district-council/walsall,WC113-627,29/02/2020,Adult Social Care,ADVANCE HEALTH CARE (UK) LTD,01/02/2020,493.92,73019-PSE'S-PRIV CONTRACTOR FEES,INTERMEDIATE CARE SERVICE,Third Party Payments,Revenue
Walsall Council,http://opendatacommunities.org/id/metropolitan-district-council/walsall,WC113-628,29/02/2020,Adult Social Care,ADVANCE HEALTH CARE (UK) LTD,01/02/2020,493.92,73019-PSE'S-PRIV CONTRACTOR FEES,INTERMEDIATE CARE SERVICE,Third Party Payments,Revenue
Walsall Council,http://opendatacommunities.org/id/metropolitan-district-council/walsall,WC113-629,29/02/2020,Adult Social Care,ADVANCE HEALTH CARE (UK) LTD,05/02/2020,493.92,73019-PSE'S-PRIV CONTRACTOR FEES,INTERMEDIATE CARE SERVICE,Third Party Payments,Revenue
Walsall Council,http://opendatacommunities.org/id/metropolitan-district-council/walsall,WC113-630,29/02/2020,Adult Social Care,ADVANCE HEALTH CARE (UK) LTD,05/02/2020,493.92,73019-PSE'S-PRIV CONTRACTOR FEES,INTERMEDIATE CARE SERVICE,Third Party Payments,Revenue
Walsall Council,http://opendatacommunities.org/id/metropolitan-district-council/walsall,WC113-631,29/02/2020,Adult Social Care,ADVANCE HEALTH CARE (UK) LTD,05/02/2020,493.92,73019-PSE'S-PRIV CONTRACTOR FEES,INTERMEDIATE CARE SERVICE,Third Party Payments,Revenue
Walsall Council,http://opendatacommunities.org/id/metropolitan-district-council/walsall,WC113-632,29/02/2020,Adult Social Care,ADVANCE HEALTH CARE (UK) LTD,26/02/2020,501.76,73019-PSE'S-PRIV CONTRACTOR FEES,INTERMEDIATE CARE SERVICE,Third Party Payments,Revenue
Walsall Council,http://opendatacommunities.org/id/metropolitan-district-council/walsall,WC113-633,29/02/2020,Adult Social Care,ADVANCE HEALTH CARE (UK) LTD,28/02/2020,620.89,73507-DOMICILIARY CARE,PHYSICAL SUPPORT,Third Party Payments,Revenue
Walsall Council,http://opendatacommunities.org/id/metropolitan-district-council/walsall,WC113-634,29/02/2020,Adult Social Care,ADVANCE HEALTH CARE (UK) LTD,28/02/2020,650.86,73507-DOMICILIARY CARE,PHYSICAL SUPPORT,Third Party Payments,Revenue
Walsall Council,http://opendatacommunities.org/id/metropolitan-district-council/walsall,WC113-635,29/02/2020,Adult Social Care,ADVANCE HEALTH CARE (UK) LTD,07/02/2020,652.02,73019-PSE'S-PRIV CONTRACTOR FEES,INTERMEDIATE CARE SERVICE,Third Party Payments,Revenue
Walsall Council,http://opendatacommunities.org/id/metropolitan-district-council/walsall,WC113-636,29/02/2020,Adult Social Care,ADVANCE HEALTH CARE (UK) LTD,25/02/2020,652.02,73025-PROFESSIONAL SERVICES-PRIV CONTRACTOR & OTHER AGENCIES,INTERMEDIATE CARE SERVICE,Third Party Payments,Revenue
Walsall Council,http://opendatacommunities.org/id/metropolitan-district-council/walsall,WC113-637,29/02/2020,Adult Social Care,ADVANCE HEALTH CARE (UK) LTD,05/02/2020,658.56,73019-PSE'S-PRIV CONTRACTOR FEES,INTERMEDIATE CARE SERVICE,Third Party Payments,Revenue
Walsall Council,http://opendatacommunities.org/id/metropolitan-district-council/walsall,WC113-638,29/02/2020,Adult Social Care,ADVANCE HEALTH CARE (UK) LTD,01/02/2020,689.11,73025-PROFESSIONAL SERVICES-PRIV CONTRACTOR & OTHER AGENCIES,INTERMEDIATE CARE SERVICE,Third Party Payments,Revenue
Walsall Council,http://opendatacommunities.org/id/metropolitan-district-council/walsall,WC113-639,29/02/2020,Adult Social Care,ADVANCE HEALTH CARE (UK) LTD,01/02/2020,689.11,73025-PROFESSIONAL SERVICES-PRIV CONTRACTOR & OTHER AGENCIES,INTERMEDIATE CARE SERVICE,Third Party Payments,Revenue
Walsall Council,http://opendatacommunities.org/id/metropolitan-district-council/walsall,WC113-640,29/02/2020,Adult Social Care,ADVANCE HEALTH CARE (UK) LTD,05/02/2020,689.11,73025-PROFESSIONAL SERVICES-PRIV CONTRACTOR & OTHER AGENCIES,INTERMEDIATE CARE SERVICE,Third Party Payments,Revenue
Walsall Council,http://opendatacommunities.org/id/metropolitan-district-council/walsall,WC113-641,29/02/2020,Adult Social Care,ADVANCE HEALTH CARE (UK) LTD,12/02/2020,689.11,73025-PROFESSIONAL SERVICES-PRIV CONTRACTOR & OTHER AGENCIES,INTERMEDIATE CARE SERVICE,Third Party Payments,Revenue
Walsall Council,http://opendatacommunities.org/id/metropolitan-district-council/walsall,WC113-642,29/02/2020,Adult Social Care,ADVANCE HEALTH CARE (UK) LTD,14/02/2020,689.11,73025-PROFESSIONAL SERVICES-PRIV CONTRACTOR & OTHER AGENCIES,INTERMEDIATE CARE SERVICE,Third Party Payments,Revenue
Walsall Council,http://opendatacommunities.org/id/metropolitan-district-council/walsall,WC113-643,29/02/2020,Adult Social Care,ADVANCE HEALTH CARE (UK) LTD,25/02/2020,689.11,73025-PROFESSIONAL SERVICES-PRIV CONTRACTOR & OTHER AGENCIES,INTERMEDIATE CARE SERVICE,Third Party Payments,Revenue
Walsall Council,http://opendatacommunities.org/id/metropolitan-district-council/walsall,WC113-644,29/02/2020,Adult Social Care,ADVANCE HEALTH CARE (UK) LTD,01/02/2020,713.44,73019-PSE'S-PRIV CONTRACTOR FEES,INTERMEDIATE CARE SERVICE,Third Party Payments,Revenue
Walsall Council,http://opendatacommunities.org/id/metropolitan-district-council/walsall,WC113-645,29/02/2020,Adult Social Care,ADVANCE HEALTH CARE (UK) LTD,01/02/2020,713.44,73019-PSE'S-PRIV CONTRACTOR FEES,INTERMEDIATE CARE SERVICE,Third Party Payments,Revenue
Walsall Council,http://opendatacommunities.org/id/metropolitan-district-council/walsall,WC113-646,29/02/2020,Adult Social Care,ADVANCE HEALTH CARE (UK) LTD,05/02/2020,713.44,73019-PSE'S-PRIV CONTRACTOR FEES,INTERMEDIATE CARE SERVICE,Third Party Payments,Revenue
Walsall Council,http://opendatacommunities.org/id/metropolitan-district-council/walsall,WC113-647,29/02/2020,Adult Social Care,ADVANCE HEALTH CARE (UK) LTD,28/02/2020,768.89,73507-DOMICILIARY CARE,PHYSICAL SUPPORT,Third Party Payments,Revenue
Walsall Council,http://opendatacommunities.org/id/metropolitan-district-council/walsall,WC113-648,29/02/2020,Adult Social Care,ADVANCE HEALTH CARE (UK) LTD,28/02/2020,785.09,73507-DOMICILIARY CARE,PHYSICAL SUPPORT,Third Party Payments,Revenue
Walsall Council,http://opendatacommunities.org/id/metropolitan-district-council/walsall,WC113-649,29/02/2020,Adult Social Care,ADVANCE HEALTH CARE (UK) LTD,28/02/2020,795.92,73507-DOMICILIARY CARE,PHYSICAL SUPPORT,Third Party Payments,Revenue
Walsall Council,http://opendatacommunities.org/id/metropolitan-district-council/walsall,WC113-650,29/02/2020,Adult Social Care,ADVANCE HEALTH CARE (UK) LTD,28/02/2020,823.90,73507-DOMICILIARY CARE,PHYSICAL SUPPORT,Third Party Payments,Revenue
Walsall Council,http://opendatacommunities.org/id/metropolitan-district-council/walsall,WC113-651,29/02/2020,Adult Social Care,ADVANCE HEALTH CARE (UK) LTD,28/02/2020,827.01,73507-DOMICILIARY CARE,SUPPORT WITH MEMORY & COGNITION,Third Party Payments,Revenue
Walsall Council,http://opendatacommunities.org/id/metropolitan-district-council/walsall,WC113-652,29/02/2020,Adult Social Care,ADVANCE HEALTH CARE (UK) LTD,03/02/2020,902.80,73507-DOMICILIARY CARE,PHYSICAL SUPPORT,Third Party Payments,Revenue
Walsall Council,http://opendatacommunities.org/id/metropolitan-district-council/walsall,WC113-653,29/02/2020,Adult Social Care,ADVANCE HEALTH CARE (UK) LTD,28/02/2020,"1,017.84",73507-DOMICILIARY CARE,PHYSICAL SUPPORT,Third Party Payments,Revenue
Walsall Council,http://opendatacommunities.org/id/metropolitan-district-council/walsall,WC113-654,29/02/2020,Adult Social Care,ADVANCE HEALTH CARE (UK) LTD,28/02/2020,"1,043.68",73507-DOMICILIARY CARE,SOCIAL SUPPORT,Third Party Payments,Revenue
Walsall Council,http://opendatacommunities.org/id/metropolitan-district-council/walsall,WC113-655,29/02/2020,Adult Social Care,ADVANCE HEALTH CARE (UK) LTD,28/02/2020,"1,193.98",73507-DOMICILIARY CARE,PHYSICAL SUPPORT,Third Party Payments,Revenue
Walsall Council,http://opendatacommunities.org/id/metropolitan-district-council/walsall,WC113-656,29/02/2020,Adult Social Care,ADVANCE HEALTH CARE (UK) LTD,28/02/2020,"1,292.98",73507-DOMICILIARY CARE,PHYSICAL SUPPORT,Third Party Payments,Revenue
Walsall Council,http://opendatacommunities.org/id/metropolitan-district-council/walsall,WC113-657,29/02/2020,Adult Social Care,ADVANCE HEALTH CARE (UK) LTD,28/02/2020,"1,297.35",73507-DOMICILIARY CARE,PHYSICAL SUPPORT,Third Party Payments,Revenue
Walsall Council,http://opendatacommunities.org/id/metropolitan-district-council/walsall,WC113-658,29/02/2020,Adult Social Care,ADVANCE HEALTH CARE (UK) LTD,28/02/2020,"1,301.49",73507-DOMICILIARY CARE,PHYSICAL SUPPORT,Third Party Payments,Revenue
Walsall Council,http://opendatacommunities.org/id/metropolitan-district-council/walsall,WC113-659,29/02/2020,Adult Social Care,ADVANCE HEALTH CARE (UK) LTD,28/02/2020,"1,305.19",73507-DOMICILIARY CARE,PHYSICAL SUPPORT,Third Party Payments,Revenue
Walsall Council,http://opendatacommunities.org/id/metropolitan-district-council/walsall,WC113-660,29/02/2020,Adult Social Care,ADVANCE HEALTH CARE (UK) LTD,28/02/2020,"1,388.10",73507-DOMICILIARY CARE,PHYSICAL SUPPORT,Third Party Payments,Revenue
Walsall Council,http://opendatacommunities.org/id/metropolitan-district-council/walsall,WC113-661,29/02/2020,Adult Social Care,ADVANCE HEALTH CARE (UK) LTD,28/02/2020,"1,410.55",73507-DOMICILIARY CARE,PHYSICAL SUPPORT,Third Party Payments,Revenue
Walsall Council,http://opendatacommunities.org/id/metropolitan-district-council/walsall,WC113-662,29/02/2020,Adult Social Care,ADVANCE HEALTH CARE (UK) LTD,28/02/2020,"1,415.80",73507-DOMICILIARY CARE,PHYSICAL SUPPORT,Third Party Payments,Revenue
Walsall Council,http://opendatacommunities.org/id/metropolitan-district-council/walsall,WC113-663,29/02/2020,Adult Social Care,ADVANCE HEALTH CARE (UK) LTD,28/02/2020,"1,433.71",73507-DOMICILIARY CARE,PHYSICAL SUPPORT,Third Party Payments,Revenue
Walsall Council,http://opendatacommunities.org/id/metropolitan-district-council/walsall,WC113-664,29/02/2020,Adult Social Care,ADVANCE HEALTH CARE (UK) LTD,28/02/2020,"1,483.44",73507-DOMICILIARY CARE,PHYSICAL SUPPORT,Third Party Payments,Revenue
Walsall Council,http://opendatacommunities.org/id/metropolitan-district-council/walsall,WC113-665,29/02/2020,Adult Social Care,ADVANCE HEALTH CARE (UK) LTD,28/02/2020,"1,491.31",73507-DOMICILIARY CARE,PHYSICAL SUPPORT,Third Party Payments,Revenue
Walsall Council,http://opendatacommunities.org/id/metropolitan-district-council/walsall,WC113-666,29/02/2020,Adult Social Care,ADVANCE HEALTH CARE (UK) LTD,28/02/2020,"1,511.68",73507-DOMICILIARY CARE,SOCIAL SUPPORT,Third Party Payments,Revenue
Walsall Council,http://opendatacommunities.org/id/metropolitan-district-council/walsall,WC113-667,29/02/2020,Adult Social Care,ADVANCE HEALTH CARE (UK) LTD,28/02/2020,"1,540.14",73507-DOMICILIARY CARE,PHYSICAL SUPPORT,Third Party Payments,Revenue
Walsall Council,http://opendatacommunities.org/id/metropolitan-district-council/walsall,WC113-668,29/02/2020,Adult Social Care,ADVANCE HEALTH CARE (UK) LTD,28/02/2020,"1,543.56",73507-DOMICILIARY CARE,PHYSICAL SUPPORT,Third Party Payments,Revenue
Walsall Council,http://opendatacommunities.org/id/metropolitan-district-council/walsall,WC113-669,29/02/2020,Adult Social Care,ADVANCE HEALTH CARE (UK) LTD,28/02/2020,"1,561.23",73507-DOMICILIARY CARE,PHYSICAL SUPPORT,Third Party Payments,Revenue
Walsall Council,http://opendatacommunities.org/id/metropolitan-district-council/walsall,WC113-670,29/02/2020,Adult Social Care,ADVANCE HEALTH CARE (UK) LTD,28/02/2020,"1,565.14",73507-DOMICILIARY CARE,PHYSICAL SUPPORT,Third Party Payments,Revenue
Walsall Council,http://opendatacommunities.org/id/metropolitan-district-council/walsall,WC113-671,29/02/2020,Adult Social Care,ADVANCE HEALTH CARE (UK) LTD,28/02/2020,"1,565.45",73507-DOMICILIARY CARE,PHYSICAL SUPPORT,Third Party Payments,Revenue
Walsall Council,http://opendatacommunities.org/id/metropolitan-district-council/walsall,WC113-672,29/02/2020,Adult Social Care,ADVANCE HEALTH CARE (UK) LTD,28/02/2020,"1,604.38",73507-DOMICILIARY CARE,PHYSICAL SUPPORT,Third Party Payments,Revenue
Walsall Council,http://opendatacommunities.org/id/metropolitan-district-council/walsall,WC113-673,29/02/2020,Adult Social Care,ADVANCE HEALTH CARE (UK) LTD,28/02/2020,"1,615.82",73507-DOMICILIARY CARE,PHYSICAL SUPPORT,Third Party Payments,Revenue
Walsall Council,http://opendatacommunities.org/id/metropolitan-district-council/walsall,WC113-674,29/02/2020,Adult Social Care,ADVANCE HEALTH CARE (UK) LTD,28/02/2020,"1,636.47",73507-DOMICILIARY CARE,PHYSICAL SUPPORT,Third Party Payments,Revenue
Walsall Council,http://opendatacommunities.org/id/metropolitan-district-council/walsall,WC113-675,29/02/2020,Adult Social Care,ADVANCE HEALTH CARE (UK) LTD,28/02/2020,"1,669.58",73507-DOMICILIARY CARE,PHYSICAL SUPPORT,Third Party Payments,Revenue
Walsall Council,http://opendatacommunities.org/id/metropolitan-district-council/walsall,WC113-676,29/02/2020,Adult Social Care,ADVANCE HEALTH CARE (UK) LTD,28/02/2020,"1,701.23",73507-DOMICILIARY CARE,PHYSICAL SUPPORT,Third Party Payments,Revenue
Walsall Council,http://opendatacommunities.org/id/metropolitan-district-council/walsall,WC113-677,29/02/2020,Adult Social Care,ADVANCE HEALTH CARE (UK) LTD,28/02/2020,"1,711.19",73507-DOMICILIARY CARE,PHYSICAL SUPPORT,Third Party Payments,Revenue
Walsall Council,http://opendatacommunities.org/id/metropolitan-district-council/walsall,WC113-678,29/02/2020,Adult Social Care,ADVANCE HEALTH CARE (UK) LTD,28/02/2020,"1,900.89",73507-DOMICILIARY CARE,PHYSICAL SUPPORT,Third Party Payments,Revenue
Walsall Council,http://opendatacommunities.org/id/metropolitan-district-council/walsall,WC113-679,29/02/2020,Adult Social Care,ADVANCE HEALTH CARE (UK) LTD,28/02/2020,"1,924.60",73507-DOMICILIARY CARE,SOCIAL SUPPORT,Third Party Payments,Revenue
Walsall Council,http://opendatacommunities.org/id/metropolitan-district-council/walsall,WC113-680,29/02/2020,Adult Social Care,ADVANCE HEALTH CARE (UK) LTD,28/02/2020,"1,945.95",73507-DOMICILIARY CARE,PHYSICAL SUPPORT,Third Party Payments,Revenue
Walsall Council,http://opendatacommunities.org/id/metropolitan-district-council/walsall,WC113-681,29/02/2020,Adult Social Care,ADVANCE HEALTH CARE (UK) LTD,28/02/2020,"2,184.06",73507-DOMICILIARY CARE,PHYSICAL SUPPORT,Third Party Payments,Revenue
Walsall Council,http://opendatacommunities.org/id/metropolitan-district-council/walsall,WC113-682,29/02/2020,Adult Social Care,ADVANCE HEALTH CARE (UK) LTD,28/02/2020,"2,450.87",73507-DOMICILIARY CARE,PHYSICAL SUPPORT,Third Party Payments,Revenue
Walsall Council,http://opendatacommunities.org/id/metropolitan-district-council/walsall,WC113-683,29/02/2020,Adult Social Care,ADVANCE HEALTH CARE (UK) LTD,28/02/2020,"3,027.64",73507-DOMICILIARY CARE,PHYSICAL SUPPORT,Third Party Payments,Revenue
Walsall Council,http://opendatacommunities.org/id/metropolitan-district-council/walsall,WC113-684,29/02/2020,Adult Social Care,ADVANCE HEALTH CARE (UK) LTD,28/02/2020,"3,248.84",73507-DOMICILIARY CARE,SOCIAL SUPPORT,Third Party Payments,Revenue
Walsall Council,http://opendatacommunities.org/id/metropolitan-district-council/walsall,WC113-685,29/02/2020,Economy & Environment,ADVANCE PHARMA LTD T/A PLECK PHARMACY,24/02/2020,258.70,63253-PAYMENT TO CONTRACTOR,SMOKING CESSATION,Third Party Payments,Revenue
Walsall Council,http://opendatacommunities.org/id/metropolitan-district-council/walsall,WC113-686,29/02/2020,Economy & Environment,ADVANCE PHARMA LTD T/A PLECK PHARMACY,18/02/2020,427.90,63253-PAYMENT TO CONTRACTOR,SMOKING CESSATION,Third Party Payments,Revenue
Walsall Council,http://opendatacommunities.org/id/metropolitan-district-council/walsall,WC113-687,29/02/2020,Economy & Environment,ADVANCE PHARMA LTD T/A PLECK PHARMACY,11/02/2020,462.80,63253-PAYMENT TO CONTRACTOR,SMOKING CESSATION,Third Party Payments,Revenue
Walsall Council,http://opendatacommunities.org/id/metropolitan-district-council/walsall,WC113-688,29/02/2020,Economy & Environment,ADVANCE PHARMA LTD T/A PLECK PHARMACY,11/02/2020,554.48,63253-PAYMENT TO CONTRACTOR,SMOKING CESSATION,Third Party Payments,Revenue
Walsall Council,http://opendatacommunities.org/id/metropolitan-district-council/walsall,WC113-689,29/02/2020,Resources and Transformation,ADVANCED CONTRACTS (MIDLANDS) LTD,26/02/2020,"11,440.00",40000-OPERATIONAL MAINTENANCE,RECHARGEABLE - SCHOOLS MAINTENANCE,Premises,Revenue
Walsall Council,http://opendatacommunities.org/id/metropolitan-district-council/walsall,WC113-690,29/02/2020,Resources and Transformation,ADVANTAGE COMPANIES LTD T/A LENKA LUTONSKA,05/02/2020,595.00,66500-GRANTS TO OTHER ORGS,COHESION,Third Party Payments,Revenue
Walsall Council,http://opendatacommunities.org/id/metropolitan-district-council/walsall,WC113-691,29/02/2020,Childrens,ADVENTURELAND DAY NURSERY,17/02/2020,640.00,77200-TRANSFER PAYMENTS-OTHER SCHOOLCHILDREN/STUDENT RELATED ITEMS,EARLY YEARS - SOCIAL INCLUSION FUND - 3/4 YR OLD,Transfer Payments,Revenue
Walsall Council,http://opendatacommunities.org/id/metropolitan-district-council/walsall,WC113-692,29/02/2020,Childrens,ADVENTURELAND DAY NURSERY,03/02/2020,"3,050.44",66505-OTHER-GRANTS TO OTHER ORGS,EARLY YEARS - 3 YR OLDS,Third Party Payments,Revenue
Walsall Council,http://opendatacommunities.org/id/metropolitan-district-council/walsall,WC113-693,29/02/2020,Adult Social Care,ADVOCACY MATTERS LIMITED,17/02/2020,"14,708.84",70000-SOCIAL SERVICES-FEES TO VOLUNTARY BODIES,OLDER PEOPLE SLA,Third Party Payments,Revenue
Walsall Council,http://opendatacommunities.org/id/metropolitan-district-council/walsall,WC113-694,29/02/2020,Economy & Environment,AEBI SCHMIDT UK LIMITED,17/02/2020,308.08,73025-PROFESSIONAL SERVICES-PRIV CONTRACTOR & OTHER AGENCIES,FLEET,Third Party Payments,Revenue
Walsall Council,http://opendatacommunities.org/id/metropolitan-district-council/walsall,WC113-695,29/02/2020,Adult Social Care,AGINCARE UK LTD,14/02/2020,"1,798.40",73507-DOMICILIARY CARE,PHYSICAL SUPPORT,Third Party Payments,Revenue
Walsall Council,http://opendatacommunities.org/id/metropolitan-district-council/walsall,WC113-696,29/02/2020,Adult Social Care,REDACTED,04/02/2020,"2,325.60",73506-DIRECT PAYMENT,LEARNING DISABILITY SUPPORT,Third Party Payments,Revenue
Walsall Council,http://opendatacommunities.org/id/metropolitan-district-council/walsall,WC113-697,29/02/2020,Economy & Environment,AIRQUEE,14/02/2020,258.06,60008-REPAIR & MAINTENANCE OF FURNITURE & EQUIPMENT,DARLASTON LEISURE CENTRE,Supplies & Services,Revenue
Walsall Council,http://opendatacommunities.org/id/metropolitan-district-council/walsall,WC113-698,29/02/2020,Adult Social Care,ALDERGROVE MANOR LTD,27/02/2020,476.04,73501-RESIDENTIAL EMI,PHYSICAL SUPPORT,Third Party Payments,Revenue
Walsall Council,http://opendatacommunities.org/id/metropolitan-district-council/walsall,WC113-699,29/02/2020,Adult Social Care,ALDERGROVE MANOR LTD,03/02/2020,"1,972.24",73501-RESIDENTIAL EMI,MENTAL HEALTH SUPPORT,Third Party Payments,Revenue
Walsall Council,http://opendatacommunities.org/id/metropolitan-district-council/walsall,WC113-700,29/02/2020,Adult Social Care,ALDERGROVE MANOR LTD,03/02/2020,"1,972.24",73501-RESIDENTIAL EMI,PHYSICAL SUPPORT,Third Party Payments,Revenue
Walsall Council,http://opendatacommunities.org/id/metropolitan-district-council/walsall,WC113-701,29/02/2020,Adult Social Care,ALDERGROVE MANOR LTD,27/02/2020,"1,972.24",73501-RESIDENTIAL EMI,PHYSICAL SUPPORT,Third Party Payments,Revenue
Walsall Council,http://opendatacommunities.org/id/metropolitan-district-council/walsall,WC113-702,29/02/2020,Adult Social Care,ALDERGROVE MANOR LTD,27/02/2020,"1,972.24",73501-RESIDENTIAL EMI,MENTAL HEALTH SUPPORT,Third Party Payments,Revenue
Walsall Council,http://opendatacommunities.org/id/metropolitan-district-council/walsall,WC113-703,29/02/2020,Adult Social Care,ALDERGROVE MANOR LTD,03/02/2020,"2,143.72",73502-NURSING,PHYSICAL SUPPORT,Third Party Payments,Revenue
Walsall Council,http://opendatacommunities.org/id/metropolitan-district-council/walsall,WC113-704,29/02/2020,Adult Social Care,ALDERGROVE MANOR LTD,27/02/2020,"2,143.72",73502-NURSING,PHYSICAL SUPPORT,Third Party Payments,Revenue
Walsall Council,http://opendatacommunities.org/id/metropolitan-district-council/walsall,WC113-705,29/02/2020,Childrens,ALDRIDGE & BARONS LIMITED,03/02/2020,"-1,312.00",52000-WITH DRIVER-HIRE OF VEHICLES,HOME TO SCHOOL TRANSPORT,Transport,Revenue
Walsall Council,http://opendatacommunities.org/id/metropolitan-district-council/walsall,WC113-706,29/02/2020,Childrens,ALDRIDGE & BARONS LIMITED,03/02/2020,"-1,040.40",52000-WITH DRIVER-HIRE OF VEHICLES,HOME TO SCHOOL TRANSPORT,Transport,Revenue
Walsall Council,http://opendatacommunities.org/id/metropolitan-district-council/walsall,WC113-707,29/02/2020,Childrens,ALDRIDGE & BARONS LIMITED,03/02/2020,"-1,036.85",52000-WITH DRIVER-HIRE OF VEHICLES,HOME TO SCHOOL TRANSPORT,Transport,Revenue
Walsall Council,http://opendatacommunities.org/id/metropolitan-district-council/walsall,WC113-708,29/02/2020,Childrens,ALDRIDGE & BARONS LIMITED,03/02/2020,-982.30,52000-WITH DRIVER-HIRE OF VEHICLES,HOME TO SCHOOL TRANSPORT,Transport,Revenue
Walsall Council,http://opendatacommunities.org/id/metropolitan-district-council/walsall,WC113-709,29/02/2020,Childrens,ALDRIDGE & BARONS LIMITED,03/02/2020,-980.50,52000-WITH DRIVER-HIRE OF VEHICLES,HOME TO SCHOOL TRANSPORT,Transport,Revenue
Walsall Council,http://opendatacommunities.org/id/metropolitan-district-council/walsall,WC113-710,29/02/2020,Childrens,ALDRIDGE & BARONS LIMITED,03/02/2020,-968.00,52000-WITH DRIVER-HIRE OF VEHICLES,HOME TO SCHOOL TRANSPORT,Transport,Revenue
Walsall Council,http://opendatacommunities.org/id/metropolitan-district-council/walsall,WC113-711,29/02/2020,Childrens,ALDRIDGE & BARONS LIMITED,03/02/2020,-957.60,52000-WITH DRIVER-HIRE OF VEHICLES,HOME TO SCHOOL TRANSPORT,Transport,Revenue
Walsall Council,http://opendatacommunities.org/id/metropolitan-district-council/walsall,WC113-712,29/02/2020,Childrens,ALDRIDGE & BARONS LIMITED,03/02/2020,-868.68,52000-WITH DRIVER-HIRE OF VEHICLES,HOME TO SCHOOL TRANSPORT,Transport,Revenue
Walsall Council,http://opendatacommunities.org/id/metropolitan-district-council/walsall,WC113-713,29/02/2020,Childrens,ALDRIDGE & BARONS LIMITED,03/02/2020,-759.89,52000-WITH DRIVER-HIRE OF VEHICLES,HOME TO SCHOOL TRANSPORT,Transport,Revenue
Walsall Council,http://opendatacommunities.org/id/metropolitan-district-council/walsall,WC113-714,29/02/2020,Childrens,ALDRIDGE & BARONS LIMITED,03/02/2020,-699.30,52000-WITH DRIVER-HIRE OF VEHICLES,HOME TO SCHOOL TRANSPORT,Transport,Revenue
Walsall Council,http://opendatacommunities.org/id/metropolitan-district-council/walsall,WC113-715,29/02/2020,Childrens,ALDRIDGE & BARONS LIMITED,03/02/2020,-534.00,52000-WITH DRIVER-HIRE OF VEHICLES,HOME TO SCHOOL TRANSPORT,Transport,Revenue
Walsall Council,http://opendatacommunities.org/id/metropolitan-district-council/walsall,WC113-716,29/02/2020,Childrens,ALDRIDGE & BARONS LIMITED,03/02/2020,-516.00,52000-WITH DRIVER-HIRE OF VEHICLES,HOME TO SCHOOL TRANSPORT,Transport,Revenue
Walsall Council,http://opendatacommunities.org/id/metropolitan-district-council/walsall,WC113-717,29/02/2020,Childrens,ALDRIDGE & BARONS LIMITED,03/02/2020,-480.00,52000-WITH DRIVER-HIRE OF VEHICLES,HOME TO SCHOOL TRANSPORT,Transport,Revenue
Walsall Council,http://opendatacommunities.org/id/metropolitan-district-council/walsall,WC113-718,29/02/2020,Childrens,ALDRIDGE & BARONS LIMITED,03/02/2020,-431.20,52000-WITH DRIVER-HIRE OF VEHICLES,HOME TO SCHOOL TRANSPORT,Transport,Revenue
Walsall Council,http://opendatacommunities.org/id/metropolitan-district-council/walsall,WC113-719,29/02/2020,Childrens,ALDRIDGE & BARONS LIMITED,03/02/2020,-422.80,52000-WITH DRIVER-HIRE OF VEHICLES,HOME TO SCHOOL TRANSPORT,Transport,Revenue
Walsall Council,http://opendatacommunities.org/id/metropolitan-district-council/walsall,WC113-720,29/02/2020,Childrens,ALDRIDGE & BARONS LIMITED,03/02/2020,-332.40,52000-WITH DRIVER-HIRE OF VEHICLES,HOME TO SCHOOL TRANSPORT,Transport,Revenue
Walsall Council,http://opendatacommunities.org/id/metropolitan-district-council/walsall,WC113-721,29/02/2020,Childrens,ALDRIDGE & BARONS LIMITED,03/02/2020,-293.00,52000-WITH DRIVER-HIRE OF VEHICLES,HOME TO SCHOOL TRANSPORT,Transport,Revenue
Walsall Council,http://opendatacommunities.org/id/metropolitan-district-council/walsall,WC113-722,29/02/2020,Childrens,ALDRIDGE & BARONS LIMITED,03/02/2020,-267.20,52000-WITH DRIVER-HIRE OF VEHICLES,HOME TO SCHOOL TRANSPORT,Transport,Revenue
Walsall Council,http://opendatacommunities.org/id/metropolitan-district-council/walsall,WC113-723,29/02/2020,Childrens,ALDRIDGE & BARONS LIMITED,03/02/2020,-267.20,52000-WITH DRIVER-HIRE OF VEHICLES,HOME TO SCHOOL TRANSPORT,Transport,Revenue
Walsall Council,http://opendatacommunities.org/id/metropolitan-district-council/walsall,WC113-724,29/02/2020,Childrens,ALDRIDGE & BARONS LIMITED,03/02/2020,-260.00,52000-WITH DRIVER-HIRE OF VEHICLES,HOME TO SCHOOL TRANSPORT,Transport,Revenue
Walsall Council,http://opendatacommunities.org/id/metropolitan-district-council/walsall,WC113-725,29/02/2020,Childrens,ALDRIDGE & BARONS LIMITED,27/02/2020,288.00,52000-WITH DRIVER-HIRE OF VEHICLES,HOME TO SCHOOL TRANSPORT,Transport,Revenue
Walsall Council,http://opendatacommunities.org/id/metropolitan-district-council/walsall,WC113-726,29/02/2020,Childrens,ALDRIDGE & BARONS LIMITED,03/02/2020,297.20,52000-WITH DRIVER-HIRE OF VEHICLES,HOME TO SCHOOL TRANSPORT,Transport,Revenue
Walsall Council,http://opendatacommunities.org/id/metropolitan-district-council/walsall,WC113-727,29/02/2020,Childrens,ALDRIDGE & BARONS LIMITED,03/02/2020,297.20,52000-WITH DRIVER-HIRE OF VEHICLES,HOME TO SCHOOL TRANSPORT,Transport,Revenue
Walsall Council,http://opendatacommunities.org/id/metropolitan-district-council/walsall,WC113-728,29/02/2020,Childrens,ALDRIDGE & BARONS LIMITED,03/02/2020,297.20,52000-WITH DRIVER-HIRE OF VEHICLES,HOME TO SCHOOL TRANSPORT,Transport,Revenue
Walsall Council,http://opendatacommunities.org/id/metropolitan-district-council/walsall,WC113-729,29/02/2020,Childrens,ALDRIDGE & BARONS LIMITED,03/02/2020,297.20,52000-WITH DRIVER-HIRE OF VEHICLES,HOME TO SCHOOL TRANSPORT,Transport,Revenue
Walsall Council,http://opendatacommunities.org/id/metropolitan-district-council/walsall,WC113-730,29/02/2020,Childrens,ALDRIDGE & BARONS LIMITED,03/02/2020,297.20,52000-WITH DRIVER-HIRE OF VEHICLES,HOME TO SCHOOL TRANSPORT,Transport,Revenue
Walsall Council,http://opendatacommunities.org/id/metropolitan-district-council/walsall,WC113-731,29/02/2020,Childrens,ALDRIDGE & BARONS LIMITED,03/02/2020,297.20,52000-WITH DRIVER-HIRE OF VEHICLES,HOME TO SCHOOL TRANSPORT,Transport,Revenue
Walsall Council,http://opendatacommunities.org/id/metropolitan-district-council/walsall,WC113-732,29/02/2020,Childrens,ALDRIDGE & BARONS LIMITED,03/02/2020,297.20,52000-WITH DRIVER-HIRE OF VEHICLES,HOME TO SCHOOL TRANSPORT,Transport,Revenue
Walsall Council,http://opendatacommunities.org/id/metropolitan-district-council/walsall,WC113-733,29/02/2020,Childrens,ALDRIDGE & BARONS LIMITED,27/02/2020,297.20,52000-WITH DRIVER-HIRE OF VEHICLES,HOME TO SCHOOL TRANSPORT,Transport,Revenue
Walsall Council,http://opendatacommunities.org/id/metropolitan-district-council/walsall,WC113-734,29/02/2020,Childrens,ALDRIDGE & BARONS LIMITED,27/02/2020,297.20,52000-WITH DRIVER-HIRE OF VEHICLES,HOME TO SCHOOL TRANSPORT,Transport,Revenue
Walsall Council,http://opendatacommunities.org/id/metropolitan-district-council/walsall,WC113-735,29/02/2020,Childrens,ALDRIDGE & BARONS LIMITED,27/02/2020,297.20,52000-WITH DRIVER-HIRE OF VEHICLES,HOME TO SCHOOL TRANSPORT,Transport,Revenue
Walsall Council,http://opendatacommunities.org/id/metropolitan-district-council/walsall,WC113-736,29/02/2020,Childrens,ALDRIDGE & BARONS LIMITED,27/02/2020,297.20,52000-WITH DRIVER-HIRE OF VEHICLES,HOME TO SCHOOL TRANSPORT,Transport,Revenue
Walsall Council,http://opendatacommunities.org/id/metropolitan-district-council/walsall,WC113-737,29/02/2020,Childrens,ALDRIDGE & BARONS LIMITED,27/02/2020,297.20,52000-WITH DRIVER-HIRE OF VEHICLES,HOME TO SCHOOL TRANSPORT,Transport,Revenue
Walsall Council,http://opendatacommunities.org/id/metropolitan-district-council/walsall,WC113-738,29/02/2020,Childrens,ALDRIDGE & BARONS LIMITED,27/02/2020,297.20,52000-WITH DRIVER-HIRE OF VEHICLES,HOME TO SCHOOL TRANSPORT,Transport,Revenue
Walsall Council,http://opendatacommunities.org/id/metropolitan-district-council/walsall,WC113-739,29/02/2020,Childrens,ALDRIDGE & BARONS LIMITED,27/02/2020,297.20,52000-WITH DRIVER-HIRE OF VEHICLES,HOME TO SCHOOL TRANSPORT,Transport,Revenue
Walsall Council,http://opendatacommunities.org/id/metropolitan-district-council/walsall,WC113-740,29/02/2020,Childrens,ALDRIDGE & BARONS LIMITED,03/02/2020,310.80,52000-WITH DRIVER-HIRE OF VEHICLES,HOME TO SCHOOL TRANSPORT,Transport,Revenue
Walsall Council,http://opendatacommunities.org/id/metropolitan-district-council/walsall,WC113-741,29/02/2020,Childrens,ALDRIDGE & BARONS LIMITED,03/02/2020,310.80,52000-WITH DRIVER-HIRE OF VEHICLES,HOME TO SCHOOL TRANSPORT,Transport,Revenue
Walsall Council,http://opendatacommunities.org/id/metropolitan-district-council/walsall,WC113-742,29/02/2020,Childrens,ALDRIDGE & BARONS LIMITED,03/02/2020,310.80,52000-WITH DRIVER-HIRE OF VEHICLES,HOME TO SCHOOL TRANSPORT,Transport,Revenue
Walsall Council,http://opendatacommunities.org/id/metropolitan-district-council/walsall,WC113-743,29/02/2020,Childrens,ALDRIDGE & BARONS LIMITED,27/02/2020,310.80,52000-WITH DRIVER-HIRE OF VEHICLES,HOME TO SCHOOL TRANSPORT,Transport,Revenue
Walsall Council,http://opendatacommunities.org/id/metropolitan-district-council/walsall,WC113-744,29/02/2020,Childrens,ALDRIDGE & BARONS LIMITED,27/02/2020,310.80,52000-WITH DRIVER-HIRE OF VEHICLES,HOME TO SCHOOL TRANSPORT,Transport,Revenue
Walsall Council,http://opendatacommunities.org/id/metropolitan-district-council/walsall,WC113-745,29/02/2020,Childrens,ALDRIDGE & BARONS LIMITED,27/02/2020,310.80,52000-WITH DRIVER-HIRE OF VEHICLES,HOME TO SCHOOL TRANSPORT,Transport,Revenue
Walsall Council,http://opendatacommunities.org/id/metropolitan-district-council/walsall,WC113-746,29/02/2020,Childrens,ALDRIDGE & BARONS LIMITED,03/02/2020,320.00,52000-WITH DRIVER-HIRE OF VEHICLES,HOME TO SCHOOL TRANSPORT,Transport,Revenue
Walsall Council,http://opendatacommunities.org/id/metropolitan-district-council/walsall,WC113-747,29/02/2020,Childrens,ALDRIDGE & BARONS LIMITED,03/02/2020,320.00,52000-WITH DRIVER-HIRE OF VEHICLES,HOME TO SCHOOL TRANSPORT,Transport,Revenue
Walsall Council,http://opendatacommunities.org/id/metropolitan-district-council/walsall,WC113-748,29/02/2020,Childrens,ALDRIDGE & BARONS LIMITED,03/02/2020,320.00,52000-WITH DRIVER-HIRE OF VEHICLES,HOME TO SCHOOL TRANSPORT,Transport,Revenue
Walsall Council,http://opendatacommunities.org/id/metropolitan-district-council/walsall,WC113-749,29/02/2020,Childrens,ALDRIDGE & BARONS LIMITED,03/02/2020,320.00,52000-WITH DRIVER-HIRE OF VEHICLES,HOME TO SCHOOL TRANSPORT,Transport,Revenue
Walsall Council,http://opendatacommunities.org/id/metropolitan-district-council/walsall,WC113-750,29/02/2020,Childrens,ALDRIDGE & BARONS LIMITED,03/02/2020,320.00,52000-WITH DRIVER-HIRE OF VEHICLES,HOME TO SCHOOL TRANSPORT,Transport,Revenue
Walsall Council,http://opendatacommunities.org/id/metropolitan-district-council/walsall,WC113-751,29/02/2020,Childrens,ALDRIDGE & BARONS LIMITED,03/02/2020,320.00,52000-WITH DRIVER-HIRE OF VEHICLES,HOME TO SCHOOL TRANSPORT,Transport,Revenue
Walsall Council,http://opendatacommunities.org/id/metropolitan-district-council/walsall,WC113-752,29/02/2020,Childrens,ALDRIDGE & BARONS LIMITED,03/02/2020,320.00,52000-WITH DRIVER-HIRE OF VEHICLES,HOME TO SCHOOL TRANSPORT,Transport,Revenue
Walsall Council,http://opendatacommunities.org/id/metropolitan-district-council/walsall,WC113-753,29/02/2020,Childrens,ALDRIDGE & BARONS LIMITED,03/02/2020,320.00,52000-WITH DRIVER-HIRE OF VEHICLES,HOME TO SCHOOL TRANSPORT,Transport,Revenue
Walsall Council,http://opendatacommunities.org/id/metropolitan-district-council/walsall,WC113-754,29/02/2020,Childrens,ALDRIDGE & BARONS LIMITED,03/02/2020,320.00,52000-WITH DRIVER-HIRE OF VEHICLES,HOME TO SCHOOL TRANSPORT,Transport,Revenue
Walsall Council,http://opendatacommunities.org/id/metropolitan-district-council/walsall,WC113-755,29/02/2020,Childrens,ALDRIDGE & BARONS LIMITED,27/02/2020,320.00,52000-WITH DRIVER-HIRE OF VEHICLES,HOME TO SCHOOL TRANSPORT,Transport,Revenue
Walsall Council,http://opendatacommunities.org/id/metropolitan-district-council/walsall,WC113-756,29/02/2020,Childrens,ALDRIDGE & BARONS LIMITED,27/02/2020,320.00,52000-WITH DRIVER-HIRE OF VEHICLES,HOME TO SCHOOL TRANSPORT,Transport,Revenue
Walsall Council,http://opendatacommunities.org/id/metropolitan-district-council/walsall,WC113-757,29/02/2020,Childrens,ALDRIDGE & BARONS LIMITED,27/02/2020,320.00,52000-WITH DRIVER-HIRE OF VEHICLES,HOME TO SCHOOL TRANSPORT,Transport,Revenue
Walsall Council,http://opendatacommunities.org/id/metropolitan-district-council/walsall,WC113-758,29/02/2020,Childrens,ALDRIDGE & BARONS LIMITED,27/02/2020,320.00,52000-WITH DRIVER-HIRE OF VEHICLES,HOME TO SCHOOL TRANSPORT,Transport,Revenue
Walsall Council,http://opendatacommunities.org/id/metropolitan-district-council/walsall,WC113-759,29/02/2020,Childrens,ALDRIDGE & BARONS LIMITED,27/02/2020,320.00,52000-WITH DRIVER-HIRE OF VEHICLES,HOME TO SCHOOL TRANSPORT,Transport,Revenue
Walsall Council,http://opendatacommunities.org/id/metropolitan-district-council/walsall,WC113-760,29/02/2020,Childrens,ALDRIDGE & BARONS LIMITED,03/02/2020,331.60,52000-WITH DRIVER-HIRE OF VEHICLES,HOME TO SCHOOL TRANSPORT,Transport,Revenue
Walsall Council,http://opendatacommunities.org/id/metropolitan-district-council/walsall,WC113-761,29/02/2020,Childrens,ALDRIDGE & BARONS LIMITED,03/02/2020,331.60,52000-WITH DRIVER-HIRE OF VEHICLES,HOME TO SCHOOL TRANSPORT,Transport,Revenue
Walsall Council,http://opendatacommunities.org/id/metropolitan-district-council/walsall,WC113-762,29/02/2020,Childrens,ALDRIDGE & BARONS LIMITED,03/02/2020,331.60,52000-WITH DRIVER-HIRE OF VEHICLES,HOME TO SCHOOL TRANSPORT,Transport,Revenue
Walsall Council,http://opendatacommunities.org/id/metropolitan-district-council/walsall,WC113-763,29/02/2020,Childrens,ALDRIDGE & BARONS LIMITED,03/02/2020,331.60,52000-WITH DRIVER-HIRE OF VEHICLES,HOME TO SCHOOL TRANSPORT,Transport,Revenue
Walsall Council,http://opendatacommunities.org/id/metropolitan-district-council/walsall,WC113-764,29/02/2020,Childrens,ALDRIDGE & BARONS LIMITED,27/02/2020,331.60,52000-WITH DRIVER-HIRE OF VEHICLES,HOME TO SCHOOL TRANSPORT,Transport,Revenue
Walsall Council,http://opendatacommunities.org/id/metropolitan-district-council/walsall,WC113-765,29/02/2020,Childrens,ALDRIDGE & BARONS LIMITED,27/02/2020,331.60,52000-WITH DRIVER-HIRE OF VEHICLES,HOME TO SCHOOL TRANSPORT,Transport,Revenue
Walsall Council,http://opendatacommunities.org/id/metropolitan-district-council/walsall,WC113-766,29/02/2020,Childrens,ALDRIDGE & BARONS LIMITED,27/02/2020,331.60,52000-WITH DRIVER-HIRE OF VEHICLES,HOME TO SCHOOL TRANSPORT,Transport,Revenue
Walsall Council,http://opendatacommunities.org/id/metropolitan-district-council/walsall,WC113-767,29/02/2020,Childrens,ALDRIDGE & BARONS LIMITED,27/02/2020,331.60,52000-WITH DRIVER-HIRE OF VEHICLES,HOME TO SCHOOL TRANSPORT,Transport,Revenue
Walsall Council,http://opendatacommunities.org/id/metropolitan-district-council/walsall,WC113-768,29/02/2020,Childrens,ALDRIDGE & BARONS LIMITED,03/02/2020,344.00,52000-WITH DRIVER-HIRE OF VEHICLES,HOME TO SCHOOL TRANSPORT,Transport,Revenue
Walsall Council,http://opendatacommunities.org/id/metropolitan-district-council/walsall,WC113-769,29/02/2020,Childrens,ALDRIDGE & BARONS LIMITED,03/02/2020,344.00,52000-WITH DRIVER-HIRE OF VEHICLES,HOME TO SCHOOL TRANSPORT,Transport,Revenue
Walsall Council,http://opendatacommunities.org/id/metropolitan-district-council/walsall,WC113-770,29/02/2020,Childrens,ALDRIDGE & BARONS LIMITED,03/02/2020,344.00,52000-WITH DRIVER-HIRE OF VEHICLES,HOME TO SCHOOL TRANSPORT,Transport,Revenue
Walsall Council,http://opendatacommunities.org/id/metropolitan-district-council/walsall,WC113-771,29/02/2020,Childrens,ALDRIDGE & BARONS LIMITED,03/02/2020,344.00,52000-WITH DRIVER-HIRE OF VEHICLES,HOME TO SCHOOL TRANSPORT,Transport,Revenue
Walsall Council,http://opendatacommunities.org/id/metropolitan-district-council/walsall,WC113-772,29/02/2020,Childrens,ALDRIDGE & BARONS LIMITED,27/02/2020,344.00,52000-WITH DRIVER-HIRE OF VEHICLES,HOME TO SCHOOL TRANSPORT,Transport,Revenue
Walsall Council,http://opendatacommunities.org/id/metropolitan-district-council/walsall,WC113-773,29/02/2020,Childrens,ALDRIDGE & BARONS LIMITED,27/02/2020,344.00,52000-WITH DRIVER-HIRE OF VEHICLES,HOME TO SCHOOL TRANSPORT,Transport,Revenue
Walsall Council,http://opendatacommunities.org/id/metropolitan-district-council/walsall,WC113-774,29/02/2020,Childrens,ALDRIDGE & BARONS LIMITED,27/02/2020,344.00,52000-WITH DRIVER-HIRE OF VEHICLES,HOME TO SCHOOL TRANSPORT,Transport,Revenue
Walsall Council,http://opendatacommunities.org/id/metropolitan-district-council/walsall,WC113-775,29/02/2020,Childrens,ALDRIDGE & BARONS LIMITED,27/02/2020,344.00,52000-WITH DRIVER-HIRE OF VEHICLES,HOME TO SCHOOL TRANSPORT,Transport,Revenue
Walsall Council,http://opendatacommunities.org/id/metropolitan-district-council/walsall,WC113-776,29/02/2020,Childrens,ALDRIDGE & BARONS LIMITED,27/02/2020,344.00,52000-WITH DRIVER-HIRE OF VEHICLES,HOME TO SCHOOL TRANSPORT,Transport,Revenue
Walsall Council,http://opendatacommunities.org/id/metropolitan-district-council/walsall,WC113-777,29/02/2020,Childrens,ALDRIDGE & BARONS LIMITED,03/02/2020,356.00,52000-WITH DRIVER-HIRE OF VEHICLES,HOME TO SCHOOL TRANSPORT,Transport,Revenue
Walsall Council,http://opendatacommunities.org/id/metropolitan-district-council/walsall,WC113-778,29/02/2020,Childrens,ALDRIDGE & BARONS LIMITED,03/02/2020,356.00,52000-WITH DRIVER-HIRE OF VEHICLES,HOME TO SCHOOL TRANSPORT,Transport,Revenue
Walsall Council,http://opendatacommunities.org/id/metropolitan-district-council/walsall,WC113-779,29/02/2020,Childrens,ALDRIDGE & BARONS LIMITED,03/02/2020,356.00,52000-WITH DRIVER-HIRE OF VEHICLES,HOME TO SCHOOL TRANSPORT,Transport,Revenue
Walsall Council,http://opendatacommunities.org/id/metropolitan-district-council/walsall,WC113-780,29/02/2020,Childrens,ALDRIDGE & BARONS LIMITED,03/02/2020,356.00,52000-WITH DRIVER-HIRE OF VEHICLES,HOME TO SCHOOL TRANSPORT,Transport,Revenue
Walsall Council,http://opendatacommunities.org/id/metropolitan-district-council/walsall,WC113-781,29/02/2020,Childrens,ALDRIDGE & BARONS LIMITED,27/02/2020,356.00,52000-WITH DRIVER-HIRE OF VEHICLES,HOME TO SCHOOL TRANSPORT,Transport,Revenue
Walsall Council,http://opendatacommunities.org/id/metropolitan-district-council/walsall,WC113-782,29/02/2020,Childrens,ALDRIDGE & BARONS LIMITED,27/02/2020,356.00,52000-WITH DRIVER-HIRE OF VEHICLES,HOME TO SCHOOL TRANSPORT,Transport,Revenue
Walsall Council,http://opendatacommunities.org/id/metropolitan-district-council/walsall,WC113-783,29/02/2020,Childrens,ALDRIDGE & BARONS LIMITED,27/02/2020,356.00,52000-WITH DRIVER-HIRE OF VEHICLES,HOME TO SCHOOL TRANSPORT,Transport,Revenue
Walsall Council,http://opendatacommunities.org/id/metropolitan-district-council/walsall,WC113-784,29/02/2020,Childrens,ALDRIDGE & BARONS LIMITED,27/02/2020,356.00,52000-WITH DRIVER-HIRE OF VEHICLES,HOME TO SCHOOL TRANSPORT,Transport,Revenue
Walsall Council,http://opendatacommunities.org/id/metropolitan-district-council/walsall,WC113-785,29/02/2020,Childrens,ALDRIDGE & BARONS LIMITED,27/02/2020,356.00,52000-WITH DRIVER-HIRE OF VEHICLES,HOME TO SCHOOL TRANSPORT,Transport,Revenue
Walsall Council,http://opendatacommunities.org/id/metropolitan-district-council/walsall,WC113-786,29/02/2020,Childrens,ALDRIDGE & BARONS LIMITED,03/02/2020,372.00,52000-WITH DRIVER-HIRE OF VEHICLES,HOME TO SCHOOL TRANSPORT,Transport,Revenue
Walsall Council,http://opendatacommunities.org/id/metropolitan-district-council/walsall,WC113-787,29/02/2020,Childrens,ALDRIDGE & BARONS LIMITED,27/02/2020,372.00,52000-WITH DRIVER-HIRE OF VEHICLES,HOME TO SCHOOL TRANSPORT,Transport,Revenue
Walsall Council,http://opendatacommunities.org/id/metropolitan-district-council/walsall,WC113-788,29/02/2020,Childrens,ALDRIDGE & BARONS LIMITED,27/02/2020,384.00,52000-WITH DRIVER-HIRE OF VEHICLES,HOME TO SCHOOL TRANSPORT,Transport,Revenue
Walsall Council,http://opendatacommunities.org/id/metropolitan-district-council/walsall,WC113-789,29/02/2020,Childrens,ALDRIDGE & BARONS LIMITED,27/02/2020,384.00,52000-WITH DRIVER-HIRE OF VEHICLES,HOME TO SCHOOL TRANSPORT,Transport,Revenue
Walsall Council,http://opendatacommunities.org/id/metropolitan-district-council/walsall,WC113-790,29/02/2020,Childrens,ALDRIDGE & BARONS LIMITED,03/02/2020,388.80,52000-WITH DRIVER-HIRE OF VEHICLES,HOME TO SCHOOL TRANSPORT,Transport,Revenue
Walsall Council,http://opendatacommunities.org/id/metropolitan-district-council/walsall,WC113-791,29/02/2020,Childrens,ALDRIDGE & BARONS LIMITED,03/02/2020,388.80,52000-WITH DRIVER-HIRE OF VEHICLES,HOME TO SCHOOL TRANSPORT,Transport,Revenue
Walsall Council,http://opendatacommunities.org/id/metropolitan-district-council/walsall,WC113-792,29/02/2020,Childrens,ALDRIDGE & BARONS LIMITED,03/02/2020,388.80,52000-WITH DRIVER-HIRE OF VEHICLES,HOME TO SCHOOL TRANSPORT,Transport,Revenue
Walsall Council,http://opendatacommunities.org/id/metropolitan-district-council/walsall,WC113-793,29/02/2020,Childrens,ALDRIDGE & BARONS LIMITED,27/02/2020,388.80,52000-WITH DRIVER-HIRE OF VEHICLES,HOME TO SCHOOL TRANSPORT,Transport,Revenue
Walsall Council,http://opendatacommunities.org/id/metropolitan-district-council/walsall,WC113-794,29/02/2020,Childrens,ALDRIDGE & BARONS LIMITED,27/02/2020,388.80,52000-WITH DRIVER-HIRE OF VEHICLES,HOME TO SCHOOL TRANSPORT,Transport,Revenue
Walsall Council,http://opendatacommunities.org/id/metropolitan-district-council/walsall,WC113-795,29/02/2020,Childrens,ALDRIDGE & BARONS LIMITED,27/02/2020,388.80,52000-WITH DRIVER-HIRE OF VEHICLES,HOME TO SCHOOL TRANSPORT,Transport,Revenue
